{"text_format":"1","workbook":"xlsx","n_sheets":3,"sheets":["עבודות מרובות","סך שעות","תשלומים"],"not_rendered":{"charts":0,"images":0,"macros":1,"external_links":0,"defined_names":5,"comments":0,"pivot_tables":0},"unopened":[],"bounds":{"document_bytes":16777216,"sheet_cells":100000,"rows_first":2000,"rows_last":500,"rows_between":2000,"halvings":0,"cell_chars":16384,"cell_head_chars":4096},"cells_cut":0,"cells_raw":0,"read":"whole","date_system":"1900"}

{"sheet":"עבודות מרובות","index":0,"n_rows":205,"n_cols":34,"rows_kept":205,"cut":false,"hidden":false,"merged":[[94,13,97,15],[90,10,92,15],[17,14,17,15],[18,14,18,15],[19,14,19,15],[20,14,20,15],[23,14,23,15],[38,10,40,15],[45,10,49,15],[50,10,51,15],[52,10,55,15],[56,10,61,15],[84,10,84,15],[85,10,87,15],[88,10,89,15],[83,10,83,15],[16,14,16,15],[79,10,81,15],[69,10,71,15],[68,10,68,15],[62,10,65,15],[21,14,21,15],[22,14,22,15],[24,14,24,15],[35,10,37,15],[66,10,67,15],[28,10,34,15],[72,10,75,15],[41,10,44,15],[82,10,82,15],[27,10,27,15],[4,14,4,15],[5,14,5,15],[6,14,6,15],[7,14,7,15],[8,14,8,15],[9,14,9,15],[10,14,10,15],[11,14,11,15],[12,14,12,15],[13,14,13,15],[14,14,14,15],[15,14,15,15],[76,10,78,15]]}
[]
[null,null,null,null,null,null,null,null,null,null,"שעות העבודה היום","השכר להיום","כל שעות העבודה","המשכורת שלי","אחוזים מהיעד","יעד חודשי"]
[null,null,null,null,null,null,null,null,null,null,{"$f":"IF(SUMIFS(שעות_עבודה7[שעות],שעות_עבודה7[תאריך],TODAY())=0,\"\",SUMIFS(שעות_עבודה7[שעות],שעות_עבודה7[תאריך],TODAY()))","v":7.50925925925926E-2},{"$f":"IF(K3=\"\",\"\",\nIF(SUMIFS(שעות_עבודה7[השכר],שעות_עבודה7[תאריך],TODAY())=0,\"\",\nSUMIFS(שעות_עבודה7[השכר],שעות_עבודה7[תאריך],TODAY())))","v":106.01249999999986},{"$f":"IF(SUM(שעות_עבודה7[שעות])=0,\"\",SUM(שעות_עבודה7[שעות]))","v":7.50925925925926E-2},{"$f":"IF(M3=\"\",\"\",\nIF(SUM(תעריפים_וסיכום8[השכר לעבודה])=0,\"\",\nSUM(תעריפים_וסיכום8[השכר לעבודה])))","v":106.01249999999987},{"$f":"IFERROR(N3/P3,\"\")","v":""}]
[]
[null,null,"תאריך","העבודה","התחלה","סיום","שעות","השכר","הערות",null,"שמות העבודות","שכר לשעה","שעות העבודה","השכר לעבודה","הערות"]
[null,{"$f":"IF(שעות_עבודה7[[#This Row],[תאריך]]=\"\",\"\",ROW(A1))","v":1},"2024-01-03","הבית לעורך","14:38:44","14:55:34",{"$f":"IF(שעות_עבודה7[[#This Row],[התחלה]]=\"\",\"\",\nIF(שעות_עבודה7[[#This Row],[התחלה]]>שעות_עבודה7[[#This Row],[סיום]],\"\",\nשעות_עבודה7[[#This Row],[סיום]]-שעות_עבודה7[[#This Row],[התחלה]]))","v":1.1689814814814903E-2},{"$f":"IF(שעות_עבודה7[[#This Row],[שעות]]=\"\",\"\",\nIF(SUMPRODUCT((שעות_עבודה7[[#This Row],[העבודה]]=תעריפים_וסיכום8[שמות העבודות])*שעות_עבודה7[[#This Row],[שעות]]*(תעריפים_וסיכום8[שכר לשעה]*24))=0,\"\",\nSUMPRODUCT((שעות_עבודה7[[#This Row],[העבודה]]=תעריפים_וסיכום8[שמות העבודות])*שעות_עבודה7[[#This Row],[שעות]]*(תעריפים_וסיכום8[שכר לשעה]*24))))","v":8.41666666666673},null,null,"הבית לעורך",30,{"$f":"IF(תעריפים_וסיכום8[[#This Row],[שמות העבודות]]=\"\",\"\",\nIFERROR(IF(SUMIFS(שעות_עבודה7[שעות],שעות_עבודה7[העבודה],תעריפים_וסיכום8[[#This Row],[שמות העבודות]])=0,\"\",SUMIFS(שעות_עבודה7[שעות],שעות_עבודה7[העבודה],תעריפים_וסיכום8[[#This Row],[שמות העבודות]])),\"\"))","v":1.1759259259259469E-2},{"$f":"IF(OR(תעריפים_וסיכום8[[#This Row],[שכר לשעה]]=\"\",תעריפים_וסיכום8[[#This Row],[שעות העבודה]]=\"\"),\"\",\nIF(תעריפים_וסיכום8[[#This Row],[שעות העבודה]]*תעריפים_וסיכום8[[#This Row],[שכר לשעה]]*24=0,\"\",תעריפים_וסיכום8[[#This Row],[שעות העבודה]]*תעריפים_וסיכום8[[#This Row],[שכר לשעה]]*24))","v":8.4666666666668178}]
[null,{"$f":"IF(שעות_עבודה7[[#This Row],[תאריך]]=\"\",\"\",ROW(A2))","v":2},"2024-01-03","העורך התורני","14:38:51","14:57:10",{"$f":"IF(שעות_עבודה7[[#This Row],[התחלה]]=\"\",\"\",\nIF(שעות_עבודה7[[#This Row],[התחלה]]>שעות_עבודה7[[#This Row],[סיום]],\"\",\nשעות_עבודה7[[#This Row],[סיום]]-שעות_עבודה7[[#This Row],[התחלה]]))","v":1.271990740740736E-2},{"$f":"IF(שעות_עבודה7[[#This Row],[שעות]]=\"\",\"\",\nIF(SUMPRODUCT((שעות_עבודה7[[#This Row],[העבודה]]=תעריפים_וסיכום8[שמות העבודות])*שעות_עבודה7[[#This Row],[שעות]]*(תעריפים_וסיכום8[שכר לשעה]*24))=0,\"\",\nSUMPRODUCT((שעות_עבודה7[[#This Row],[העבודה]]=תעריפים_וסיכום8[שמות העבודות])*שעות_עבודה7[[#This Row],[שעות]]*(תעריפים_וסיכום8[שכר לשעה]*24))))","v":15.263888888888832},null,null,"העורך התורני",50,{"$f":"IF(תעריפים_וסיכום8[[#This Row],[שמות העבודות]]=\"\",\"\",\nIFERROR(IF(SUMIFS(שעות_עבודה7[שעות],שעות_עבודה7[העבודה],תעריפים_וסיכום8[[#This Row],[שמות העבודות]])=0,\"\",SUMIFS(שעות_עבודה7[שעות],שעות_עבודה7[העבודה],תעריפים_וסיכום8[[#This Row],[שמות העבודות]])),\"\"))","v":2.4317129629629619E-2},{"$f":"IF(OR(תעריפים_וסיכום8[[#This Row],[שכר לשעה]]=\"\",תעריפים_וסיכום8[[#This Row],[שעות העבודה]]=\"\"),\"\",\nIF(תעריפים_וסיכום8[[#This Row],[שעות העבודה]]*תעריפים_וסיכום8[[#This Row],[שכר לשעה]]*24=0,\"\",תעריפים_וסיכום8[[#This Row],[שעות העבודה]]*תעריפים_וסיכום8[[#This Row],[שכר לשעה]]*24))","v":29.180555555555543}]
[null,{"$f":"IF(שעות_עבודה7[[#This Row],[תאריך]]=\"\",\"\",ROW(A3))","v":3},"2024-01-03","העורך התורני","14:38:56","14:55:38",{"$f":"IF(שעות_עבודה7[[#This Row],[התחלה]]=\"\",\"\",\nIF(שעות_עבודה7[[#This Row],[התחלה]]>שעות_עבודה7[[#This Row],[סיום]],\"\",\nשעות_עבודה7[[#This Row],[סיום]]-שעות_עבודה7[[#This Row],[התחלה]]))","v":1.1597222222222259E-2},{"$f":"IF(שעות_עבודה7[[#This Row],[שעות]]=\"\",\"\",\nIF(SUMPRODUCT((שעות_עבודה7[[#This Row],[העבודה]]=תעריפים_וסיכום8[שמות העבודות])*שעות_עבודה7[[#This Row],[שעות]]*(תעריפים_וסיכום8[שכר לשעה]*24))=0,\"\",\nSUMPRODUCT((שעות_עבודה7[[#This Row],[העבודה]]=תעריפים_וסיכום8[שמות העבודות])*שעות_עבודה7[[#This Row],[שעות]]*(תעריפים_וסיכום8[שכר לשעה]*24))))","v":13.91666666666671},null,null,"חיים של תורה",40,{"$f":"IF(תעריפים_וסיכום8[[#This Row],[שמות העבודות]]=\"\",\"\",\nIFERROR(IF(SUMIFS(שעות_עבודה7[שעות],שעות_עבודה7[העבודה],תעריפים_וסיכום8[[#This Row],[שמות העבודות]])=0,\"\",SUMIFS(שעות_עבודה7[שעות],שעות_עבודה7[העבודה],תעריפים_וסיכום8[[#This Row],[שמות העבודות]])),\"\"))","v":2.3148148148077752E-5},{"$f":"IF(OR(תעריפים_וסיכום8[[#This Row],[שכר לשעה]]=\"\",תעריפים_וסיכום8[[#This Row],[שעות העבודה]]=\"\"),\"\",\nIF(תעריפים_וסיכום8[[#This Row],[שעות העבודה]]*תעריפים_וסיכום8[[#This Row],[שכר לשעה]]*24=0,\"\",תעריפים_וסיכום8[[#This Row],[שעות העבודה]]*תעריפים_וסיכום8[[#This Row],[שכר לשעה]]*24))","v":2.2222222222154642E-2}]
[null,{"$f":"IF(שעות_עבודה7[[#This Row],[תאריך]]=\"\",\"\",ROW(A4))","v":4},"2024-01-03","המאיר לדרים","14:39:00","15:03:49",{"$f":"IF(שעות_עבודה7[[#This Row],[התחלה]]=\"\",\"\",\nIF(שעות_עבודה7[[#This Row],[התחלה]]>שעות_עבודה7[[#This Row],[סיום]],\"\",\nשעות_עבודה7[[#This Row],[סיום]]-שעות_עבודה7[[#This Row],[התחלה]]))","v":1.7233796296296289E-2},{"$f":"IF(שעות_עבודה7[[#This Row],[שעות]]=\"\",\"\",\nIF(SUMPRODUCT((שעות_עבודה7[[#This Row],[העבודה]]=תעריפים_וסיכום8[שמות העבודות])*שעות_עבודה7[[#This Row],[שעות]]*(תעריפים_וסיכום8[שכר לשעה]*24))=0,\"\",\nSUMPRODUCT((שעות_עבודה7[[#This Row],[העבודה]]=תעריפים_וסיכום8[שמות העבודות])*שעות_עבודה7[[#This Row],[שעות]]*(תעריפים_וסיכום8[שכר לשעה]*24))))","v":33.088888888888874},null,null,"המאיר לדרים",80,{"$f":"IF(תעריפים_וסיכום8[[#This Row],[שמות העבודות]]=\"\",\"\",\nIFERROR(IF(SUMIFS(שעות_עבודה7[שעות],שעות_עבודה7[העבודה],תעריפים_וסיכום8[[#This Row],[שמות העבודות]])=0,\"\",SUMIFS(שעות_עבודה7[שעות],שעות_עבודה7[העבודה],תעריפים_וסיכום8[[#This Row],[שמות העבודות]])),\"\"))","v":1.7268518518518516E-2},{"$f":"IF(OR(תעריפים_וסיכום8[[#This Row],[שכר לשעה]]=\"\",תעריפים_וסיכום8[[#This Row],[שעות העבודה]]=\"\"),\"\",\nIF(תעריפים_וסיכום8[[#This Row],[שעות העבודה]]*תעריפים_וסיכום8[[#This Row],[שכר לשעה]]*24=0,\"\",תעריפים_וסיכום8[[#This Row],[שעות העבודה]]*תעריפים_וסיכום8[[#This Row],[שכר לשעה]]*24))","v":33.155555555555551}]
[null,{"$f":"IF(שעות_עבודה7[[#This Row],[תאריך]]=\"\",\"\",ROW(A5))","v":5},"2024-01-03","עיון במקורות","14:39:56","14:55:27",{"$f":"IF(שעות_עבודה7[[#This Row],[התחלה]]=\"\",\"\",\nIF(שעות_עבודה7[[#This Row],[התחלה]]>שעות_עבודה7[[#This Row],[סיום]],\"\",\nשעות_עבודה7[[#This Row],[סיום]]-שעות_עבודה7[[#This Row],[התחלה]]))","v":1.0775462962962945E-2},{"$f":"IF(שעות_עבודה7[[#This Row],[שעות]]=\"\",\"\",\nIF(SUMPRODUCT((שעות_עבודה7[[#This Row],[העבודה]]=תעריפים_וסיכום8[שמות העבודות])*שעות_עבודה7[[#This Row],[שעות]]*(תעריפים_וסיכום8[שכר לשעה]*24))=0,\"\",\nSUMPRODUCT((שעות_עבודה7[[#This Row],[העבודה]]=תעריפים_וסיכום8[שמות העבודות])*שעות_עבודה7[[#This Row],[שעות]]*(תעריפים_וסיכום8[שכר לשעה]*24))))","v":18.102777777777746},null,null,"עריכת מהדו\"ת",65,{"$f":"IF(תעריפים_וסיכום8[[#This Row],[שמות העבודות]]=\"\",\"\",\nIFERROR(IF(SUMIFS(שעות_עבודה7[שעות],שעות_עבודה7[העבודה],תעריפים_וסיכום8[[#This Row],[שמות העבודות]])=0,\"\",SUMIFS(שעות_עבודה7[שעות],שעות_עבודה7[העבודה],תעריפים_וסיכום8[[#This Row],[שמות העבודות]])),\"\"))","v":1.0914351851851856E-2},{"$f":"IF(OR(תעריפים_וסיכום8[[#This Row],[שכר לשעה]]=\"\",תעריפים_וסיכום8[[#This Row],[שעות העבודה]]=\"\"),\"\",\nIF(תעריפים_וסיכום8[[#This Row],[שעות העבודה]]*תעריפים_וסיכום8[[#This Row],[שכר לשעה]]*24=0,\"\",תעריפים_וסיכום8[[#This Row],[שעות העבודה]]*תעריפים_וסיכום8[[#This Row],[שכר לשעה]]*24))","v":17.026388888888896}]
[null,{"$f":"IF(שעות_עבודה7[[#This Row],[תאריך]]=\"\",\"\",ROW(A6))","v":6},"2024-01-03","עריכת מהדו\"ת","14:40:02","14:55:45",{"$f":"IF(שעות_עבודה7[[#This Row],[התחלה]]=\"\",\"\",\nIF(שעות_עבודה7[[#This Row],[התחלה]]>שעות_עבודה7[[#This Row],[סיום]],\"\",\nשעות_עבודה7[[#This Row],[סיום]]-שעות_עבודה7[[#This Row],[התחלה]]))","v":1.0914351851851856E-2},{"$f":"IF(שעות_עבודה7[[#This Row],[שעות]]=\"\",\"\",\nIF(SUMPRODUCT((שעות_עבודה7[[#This Row],[העבודה]]=תעריפים_וסיכום8[שמות העבודות])*שעות_עבודה7[[#This Row],[שעות]]*(תעריפים_וסיכום8[שכר לשעה]*24))=0,\"\",\nSUMPRODUCT((שעות_עבודה7[[#This Row],[העבודה]]=תעריפים_וסיכום8[שמות העבודות])*שעות_עבודה7[[#This Row],[שעות]]*(תעריפים_וסיכום8[שכר לשעה]*24))))","v":17.026388888888896},null,null,"עיון במקורות",70,{"$f":"IF(תעריפים_וסיכום8[[#This Row],[שמות העבודות]]=\"\",\"\",\nIFERROR(IF(SUMIFS(שעות_עבודה7[שעות],שעות_עבודה7[העבודה],תעריפים_וסיכום8[[#This Row],[שמות העבודות]])=0,\"\",SUMIFS(שעות_עבודה7[שעות],שעות_עבודה7[העבודה],תעריפים_וסיכום8[[#This Row],[שמות העבודות]])),\"\"))","v":1.0810185185185062E-2},{"$f":"IF(OR(תעריפים_וסיכום8[[#This Row],[שכר לשעה]]=\"\",תעריפים_וסיכום8[[#This Row],[שעות העבודה]]=\"\"),\"\",\nIF(תעריפים_וסיכום8[[#This Row],[שעות העבודה]]*תעריפים_וסיכום8[[#This Row],[שכר לשעה]]*24=0,\"\",תעריפים_וסיכום8[[#This Row],[שעות העבודה]]*תעריפים_וסיכום8[[#This Row],[שכר לשעה]]*24))","v":18.161111111110905}]
[null,{"$f":"IF(שעות_עבודה7[[#This Row],[תאריך]]=\"\",\"\",ROW(A7))","v":7},"2024-01-03","המאיר לדרים","14:55:50","14:55:52",{"$f":"IF(שעות_עבודה7[[#This Row],[התחלה]]=\"\",\"\",\nIF(שעות_עבודה7[[#This Row],[התחלה]]>שעות_עבודה7[[#This Row],[סיום]],\"\",\nשעות_עבודה7[[#This Row],[סיום]]-שעות_עבודה7[[#This Row],[התחלה]]))","v":2.3148148148077752E-5},{"$f":"IF(שעות_עבודה7[[#This Row],[שעות]]=\"\",\"\",\nIF(SUMPRODUCT((שעות_עבודה7[[#This Row],[העבודה]]=תעריפים_וסיכום8[שמות העבודות])*שעות_עבודה7[[#This Row],[שעות]]*(תעריפים_וסיכום8[שכר לשעה]*24))=0,\"\",\nSUMPRODUCT((שעות_עבודה7[[#This Row],[העבודה]]=תעריפים_וסיכום8[שמות העבודות])*שעות_עבודה7[[#This Row],[שעות]]*(תעריפים_וסיכום8[שכר לשעה]*24))))","v":4.4444444444309283E-2},null,null,null,null,{"$f":"IF(תעריפים_וסיכום8[[#This Row],[שמות העבודות]]=\"\",\"\",\nIFERROR(IF(SUMIFS(שעות_עבודה7[שעות],שעות_עבודה7[העבודה],תעריפים_וסיכום8[[#This Row],[שמות העבודות]])=0,\"\",SUMIFS(שעות_עבודה7[שעות],שעות_עבודה7[העבודה],תעריפים_וסיכום8[[#This Row],[שמות העבודות]])),\"\"))","v":""},{"$f":"IF(OR(תעריפים_וסיכום8[[#This Row],[שכר לשעה]]=\"\",תעריפים_וסיכום8[[#This Row],[שעות העבודה]]=\"\"),\"\",\nIF(תעריפים_וסיכום8[[#This Row],[שעות העבודה]]*תעריפים_וסיכום8[[#This Row],[שכר לשעה]]*24=0,\"\",תעריפים_וסיכום8[[#This Row],[שעות העבודה]]*תעריפים_וסיכום8[[#This Row],[שכר לשעה]]*24))","v":""}]
[null,{"$f":"IF(שעות_עבודה7[[#This Row],[תאריך]]=\"\",\"\",ROW(A8))","v":8},"2024-01-03","המאיר לדרים","14:57:04","14:57:05",{"$f":"IF(שעות_עבודה7[[#This Row],[התחלה]]=\"\",\"\",\nIF(שעות_עבודה7[[#This Row],[התחלה]]>שעות_עבודה7[[#This Row],[סיום]],\"\",\nשעות_עבודה7[[#This Row],[סיום]]-שעות_עבודה7[[#This Row],[התחלה]]))","v":1.1574074074149898E-5},{"$f":"IF(שעות_עבודה7[[#This Row],[שעות]]=\"\",\"\",\nIF(SUMPRODUCT((שעות_עבודה7[[#This Row],[העבודה]]=תעריפים_וסיכום8[שמות העבודות])*שעות_עבודה7[[#This Row],[שעות]]*(תעריפים_וסיכום8[שכר לשעה]*24))=0,\"\",\nSUMPRODUCT((שעות_עבודה7[[#This Row],[העבודה]]=תעריפים_וסיכום8[שמות העבודות])*שעות_עבודה7[[#This Row],[שעות]]*(תעריפים_וסיכום8[שכר לשעה]*24))))","v":2.2222222222367805E-2},null,null,null,null,{"$f":"IF(תעריפים_וסיכום8[[#This Row],[שמות העבודות]]=\"\",\"\",\nIFERROR(IF(SUMIFS(שעות_עבודה7[שעות],שעות_עבודה7[העבודה],תעריפים_וסיכום8[[#This Row],[שמות העבודות]])=0,\"\",SUMIFS(שעות_עבודה7[שעות],שעות_עבודה7[העבודה],תעריפים_וסיכום8[[#This Row],[שמות העבודות]])),\"\"))","v":""},{"$f":"IF(OR(תעריפים_וסיכום8[[#This Row],[שכר לשעה]]=\"\",תעריפים_וסיכום8[[#This Row],[שעות העבודה]]=\"\"),\"\",\nIF(תעריפים_וסיכום8[[#This Row],[שעות העבודה]]*תעריפים_וסיכום8[[#This Row],[שכר לשעה]]*24=0,\"\",תעריפים_וסיכום8[[#This Row],[שעות העבודה]]*תעריפים_וסיכום8[[#This Row],[שכר לשעה]]*24))","v":""}]
[null,{"$f":"IF(שעות_עבודה7[[#This Row],[תאריך]]=\"\",\"\",ROW(A9))","v":9},"2024-01-03","הבית לעורך","15:00:11","15:00:12",{"$f":"IF(שעות_עבודה7[[#This Row],[התחלה]]=\"\",\"\",\nIF(שעות_עבודה7[[#This Row],[התחלה]]>שעות_עבודה7[[#This Row],[סיום]],\"\",\nשעות_עבודה7[[#This Row],[סיום]]-שעות_עבודה7[[#This Row],[התחלה]]))","v":1.1574074074149898E-5},{"$f":"IF(שעות_עבודה7[[#This Row],[שעות]]=\"\",\"\",\nIF(SUMPRODUCT((שעות_עבודה7[[#This Row],[העבודה]]=תעריפים_וסיכום8[שמות העבודות])*שעות_עבודה7[[#This Row],[שעות]]*(תעריפים_וסיכום8[שכר לשעה]*24))=0,\"\",\nSUMPRODUCT((שעות_עבודה7[[#This Row],[העבודה]]=תעריפים_וסיכום8[שמות העבודות])*שעות_עבודה7[[#This Row],[שעות]]*(תעריפים_וסיכום8[שכר לשעה]*24))))","v":8.3333333333879267E-3},null,null,null,null,{"$f":"IF(תעריפים_וסיכום8[[#This Row],[שמות העבודות]]=\"\",\"\",\nIFERROR(IF(SUMIFS(שעות_עבודה7[שעות],שעות_עבודה7[העבודה],תעריפים_וסיכום8[[#This Row],[שמות העבודות]])=0,\"\",SUMIFS(שעות_עבודה7[שעות],שעות_עבודה7[העבודה],תעריפים_וסיכום8[[#This Row],[שמות העבודות]])),\"\"))","v":""},{"$f":"IF(OR(תעריפים_וסיכום8[[#This Row],[שכר לשעה]]=\"\",תעריפים_וסיכום8[[#This Row],[שעות העבודה]]=\"\"),\"\",\nIF(תעריפים_וסיכום8[[#This Row],[שעות העבודה]]*תעריפים_וסיכום8[[#This Row],[שכר לשעה]]*24=0,\"\",תעריפים_וסיכום8[[#This Row],[שעות העבודה]]*תעריפים_וסיכום8[[#This Row],[שכר לשעה]]*24))","v":""}]
[null,{"$f":"IF(שעות_עבודה7[[#This Row],[תאריך]]=\"\",\"\",ROW(A10))","v":10},"2024-01-03","עיון במקורות","15:01:18","15:01:20",{"$f":"IF(שעות_עבודה7[[#This Row],[התחלה]]=\"\",\"\",\nIF(שעות_עבודה7[[#This Row],[התחלה]]>שעות_עבודה7[[#This Row],[סיום]],\"\",\nשעות_עבודה7[[#This Row],[סיום]]-שעות_עבודה7[[#This Row],[התחלה]]))","v":2.3148148148077752E-5},{"$f":"IF(שעות_עבודה7[[#This Row],[שעות]]=\"\",\"\",\nIF(SUMPRODUCT((שעות_עבודה7[[#This Row],[העבודה]]=תעריפים_וסיכום8[שמות העבודות])*שעות_עבודה7[[#This Row],[שעות]]*(תעריפים_וסיכום8[שכר לשעה]*24))=0,\"\",\nSUMPRODUCT((שעות_עבודה7[[#This Row],[העבודה]]=תעריפים_וסיכום8[שמות העבודות])*שעות_עבודה7[[#This Row],[שעות]]*(תעריפים_וסיכום8[שכר לשעה]*24))))","v":3.8888888888770623E-2},null,null,null,null,{"$f":"IF(תעריפים_וסיכום8[[#This Row],[שמות העבודות]]=\"\",\"\",\nIFERROR(IF(SUMIFS(שעות_עבודה7[שעות],שעות_עבודה7[העבודה],תעריפים_וסיכום8[[#This Row],[שמות העבודות]])=0,\"\",SUMIFS(שעות_עבודה7[שעות],שעות_עבודה7[העבודה],תעריפים_וסיכום8[[#This Row],[שמות העבודות]])),\"\"))","v":""},{"$f":"IF(OR(תעריפים_וסיכום8[[#This Row],[שכר לשעה]]=\"\",תעריפים_וסיכום8[[#This Row],[שעות העבודה]]=\"\"),\"\",\nIF(תעריפים_וסיכום8[[#This Row],[שעות העבודה]]*תעריפים_וסיכום8[[#This Row],[שכר לשעה]]*24=0,\"\",תעריפים_וסיכום8[[#This Row],[שעות העבודה]]*תעריפים_וסיכום8[[#This Row],[שכר לשעה]]*24))","v":""}]
[null,{"$f":"IF(שעות_עבודה7[[#This Row],[תאריך]]=\"\",\"\",ROW(A11))","v":11},"2024-01-03","עיון במקורות","15:03:23","15:03:24",{"$f":"IF(שעות_עבודה7[[#This Row],[התחלה]]=\"\",\"\",\nIF(שעות_עבודה7[[#This Row],[התחלה]]>שעות_עבודה7[[#This Row],[סיום]],\"\",\nשעות_עבודה7[[#This Row],[סיום]]-שעות_עבודה7[[#This Row],[התחלה]]))","v":1.1574074074038876E-5},{"$f":"IF(שעות_עבודה7[[#This Row],[שעות]]=\"\",\"\",\nIF(SUMPRODUCT((שעות_עבודה7[[#This Row],[העבודה]]=תעריפים_וסיכום8[שמות העבודות])*שעות_עבודה7[[#This Row],[שעות]]*(תעריפים_וסיכום8[שכר לשעה]*24))=0,\"\",\nSUMPRODUCT((שעות_עבודה7[[#This Row],[העבודה]]=תעריפים_וסיכום8[שמות העבודות])*שעות_עבודה7[[#This Row],[שעות]]*(תעריפים_וסיכום8[שכר לשעה]*24))))","v":1.9444444444385311E-2},null,null,null,null,{"$f":"IF(תעריפים_וסיכום8[[#This Row],[שמות העבודות]]=\"\",\"\",\nIFERROR(IF(SUMIFS(שעות_עבודה7[שעות],שעות_עבודה7[העבודה],תעריפים_וסיכום8[[#This Row],[שמות העבודות]])=0,\"\",SUMIFS(שעות_עבודה7[שעות],שעות_עבודה7[העבודה],תעריפים_וסיכום8[[#This Row],[שמות העבודות]])),\"\"))","v":""},{"$f":"IF(OR(תעריפים_וסיכום8[[#This Row],[שכר לשעה]]=\"\",תעריפים_וסיכום8[[#This Row],[שעות העבודה]]=\"\"),\"\",\nIF(תעריפים_וסיכום8[[#This Row],[שעות העבודה]]*תעריפים_וסיכום8[[#This Row],[שכר לשעה]]*24=0,\"\",תעריפים_וסיכום8[[#This Row],[שעות העבודה]]*תעריפים_וסיכום8[[#This Row],[שכר לשעה]]*24))","v":""}]
[null,{"$f":"IF(שעות_עבודה7[[#This Row],[תאריך]]=\"\",\"\",ROW(A12))","v":12},"2024-01-03","הבית לעורך","15:03:37","15:03:42",{"$f":"IF(שעות_עבודה7[[#This Row],[התחלה]]=\"\",\"\",\nIF(שעות_עבודה7[[#This Row],[התחלה]]>שעות_עבודה7[[#This Row],[סיום]],\"\",\nשעות_עבודה7[[#This Row],[סיום]]-שעות_עבודה7[[#This Row],[התחלה]]))","v":5.7870370370416424E-5},{"$f":"IF(שעות_עבודה7[[#This Row],[שעות]]=\"\",\"\",\nIF(SUMPRODUCT((שעות_עבודה7[[#This Row],[העבודה]]=תעריפים_וסיכום8[שמות העבודות])*שעות_עבודה7[[#This Row],[שעות]]*(תעריפים_וסיכום8[שכר לשעה]*24))=0,\"\",\nSUMPRODUCT((שעות_עבודה7[[#This Row],[העבודה]]=תעריפים_וסיכום8[שמות העבודות])*שעות_עבודה7[[#This Row],[שעות]]*(תעריפים_וסיכום8[שכר לשעה]*24))))","v":4.1666666666699825E-2},null,null,null,null,{"$f":"IF(תעריפים_וסיכום8[[#This Row],[שמות העבודות]]=\"\",\"\",\nIFERROR(IF(SUMIFS(שעות_עבודה7[שעות],שעות_עבודה7[העבודה],תעריפים_וסיכום8[[#This Row],[שמות העבודות]])=0,\"\",SUMIFS(שעות_עבודה7[שעות],שעות_עבודה7[העבודה],תעריפים_וסיכום8[[#This Row],[שמות העבודות]])),\"\"))","v":""},{"$f":"IF(OR(תעריפים_וסיכום8[[#This Row],[שכר לשעה]]=\"\",תעריפים_וסיכום8[[#This Row],[שעות העבודה]]=\"\"),\"\",\nIF(תעריפים_וסיכום8[[#This Row],[שעות העבודה]]*תעריפים_וסיכום8[[#This Row],[שכר לשעה]]*24=0,\"\",תעריפים_וסיכום8[[#This Row],[שעות העבודה]]*תעריפים_וסיכום8[[#This Row],[שכר לשעה]]*24))","v":""}]
[null,{"$f":"IF(שעות_עבודה7[[#This Row],[תאריך]]=\"\",\"\",ROW(A13))","v":13},"2024-01-03","חיים של תורה","15:11:35","15:11:37",{"$f":"IF(שעות_עבודה7[[#This Row],[התחלה]]=\"\",\"\",\nIF(שעות_עבודה7[[#This Row],[התחלה]]>שעות_עבודה7[[#This Row],[סיום]],\"\",\nשעות_עבודה7[[#This Row],[סיום]]-שעות_עבודה7[[#This Row],[התחלה]]))","v":2.3148148148077752E-5},{"$f":"IF(שעות_עבודה7[[#This Row],[שעות]]=\"\",\"\",\nIF(SUMPRODUCT((שעות_עבודה7[[#This Row],[העבודה]]=תעריפים_וסיכום8[שמות העבודות])*שעות_עבודה7[[#This Row],[שעות]]*(תעריפים_וסיכום8[שכר לשעה]*24))=0,\"\",\nSUMPRODUCT((שעות_עבודה7[[#This Row],[העבודה]]=תעריפים_וסיכום8[שמות העבודות])*שעות_עבודה7[[#This Row],[שעות]]*(תעריפים_וסיכום8[שכר לשעה]*24))))","v":2.2222222222154642E-2},null,null,null,null,{"$f":"IF(תעריפים_וסיכום8[[#This Row],[שמות העבודות]]=\"\",\"\",\nIFERROR(IF(SUMIFS(שעות_עבודה7[שעות],שעות_עבודה7[העבודה],תעריפים_וסיכום8[[#This Row],[שמות העבודות]])=0,\"\",SUMIFS(שעות_עבודה7[שעות],שעות_עבודה7[העבודה],תעריפים_וסיכום8[[#This Row],[שמות העבודות]])),\"\"))","v":""},{"$f":"IF(OR(תעריפים_וסיכום8[[#This Row],[שכר לשעה]]=\"\",תעריפים_וסיכום8[[#This Row],[שעות העבודה]]=\"\"),\"\",\nIF(תעריפים_וסיכום8[[#This Row],[שעות העבודה]]*תעריפים_וסיכום8[[#This Row],[שכר לשעה]]*24=0,\"\",תעריפים_וסיכום8[[#This Row],[שעות העבודה]]*תעריפים_וסיכום8[[#This Row],[שכר לשעה]]*24))","v":""}]
[null,{"$f":"IF(שעות_עבודה7[[#This Row],[תאריך]]=\"\",\"\",ROW(A14))","v":""},null,null,null,null,{"$f":"IF(שעות_עבודה7[[#This Row],[התחלה]]=\"\",\"\",\nIF(שעות_עבודה7[[#This Row],[התחלה]]>שעות_עבודה7[[#This Row],[סיום]],\"\",\nשעות_עבודה7[[#This Row],[סיום]]-שעות_עבודה7[[#This Row],[התחלה]]))","v":""},{"$f":"IF(שעות_עבודה7[[#This Row],[שעות]]=\"\",\"\",\nIF(SUMPRODUCT((שעות_עבודה7[[#This Row],[העבודה]]=תעריפים_וסיכום8[שמות העבודות])*שעות_עבודה7[[#This Row],[שעות]]*(תעריפים_וסיכום8[שכר לשעה]*24))=0,\"\",\nSUMPRODUCT((שעות_עבודה7[[#This Row],[העבודה]]=תעריפים_וסיכום8[שמות העבודות])*שעות_עבודה7[[#This Row],[שעות]]*(תעריפים_וסיכום8[שכר לשעה]*24))))","v":""},null,null,null,null,{"$f":"IF(תעריפים_וסיכום8[[#This Row],[שמות העבודות]]=\"\",\"\",\nIFERROR(IF(SUMIFS(שעות_עבודה7[שעות],שעות_עבודה7[העבודה],תעריפים_וסיכום8[[#This Row],[שמות העבודות]])=0,\"\",SUMIFS(שעות_עבודה7[שעות],שעות_עבודה7[העבודה],תעריפים_וסיכום8[[#This Row],[שמות העבודות]])),\"\"))","v":""},{"$f":"IF(OR(תעריפים_וסיכום8[[#This Row],[שכר לשעה]]=\"\",תעריפים_וסיכום8[[#This Row],[שעות העבודה]]=\"\"),\"\",\nIF(תעריפים_וסיכום8[[#This Row],[שעות העבודה]]*תעריפים_וסיכום8[[#This Row],[שכר לשעה]]*24=0,\"\",תעריפים_וסיכום8[[#This Row],[שעות העבודה]]*תעריפים_וסיכום8[[#This Row],[שכר לשעה]]*24))","v":""}]
[null,{"$f":"IF(שעות_עבודה7[[#This Row],[תאריך]]=\"\",\"\",ROW(A15))","v":""},null,null,null,null,{"$f":"IF(שעות_עבודה7[[#This Row],[התחלה]]=\"\",\"\",\nIF(שעות_עבודה7[[#This Row],[התחלה]]>שעות_עבודה7[[#This Row],[סיום]],\"\",\nשעות_עבודה7[[#This Row],[סיום]]-שעות_עבודה7[[#This Row],[התחלה]]))","v":""},{"$f":"IF(שעות_עבודה7[[#This Row],[שעות]]=\"\",\"\",\nIF(SUMPRODUCT((שעות_עבודה7[[#This Row],[העבודה]]=תעריפים_וסיכום8[שמות העבודות])*שעות_עבודה7[[#This Row],[שעות]]*(תעריפים_וסיכום8[שכר לשעה]*24))=0,\"\",\nSUMPRODUCT((שעות_עבודה7[[#This Row],[העבודה]]=תעריפים_וסיכום8[שמות העבודות])*שעות_עבודה7[[#This Row],[שעות]]*(תעריפים_וסיכום8[שכר לשעה]*24))))","v":""},null,null,null,null,{"$f":"IF(תעריפים_וסיכום8[[#This Row],[שמות העבודות]]=\"\",\"\",\nIFERROR(IF(SUMIFS(שעות_עבודה7[שעות],שעות_עבודה7[העבודה],תעריפים_וסיכום8[[#This Row],[שמות העבודות]])=0,\"\",SUMIFS(שעות_עבודה7[שעות],שעות_עבודה7[העבודה],תעריפים_וסיכום8[[#This Row],[שמות העבודות]])),\"\"))","v":""},{"$f":"IF(OR(תעריפים_וסיכום8[[#This Row],[שכר לשעה]]=\"\",תעריפים_וסיכום8[[#This Row],[שעות העבודה]]=\"\"),\"\",\nIF(תעריפים_וסיכום8[[#This Row],[שעות העבודה]]*תעריפים_וסיכום8[[#This Row],[שכר לשעה]]*24=0,\"\",תעריפים_וסיכום8[[#This Row],[שעות העבודה]]*תעריפים_וסיכום8[[#This Row],[שכר לשעה]]*24))","v":""},null,null,null,null,null,null,null,null,null,null,null,null,null,null,null,null,null,null,null,"שמירה אוטומטית1=שמור, 0=אל תשמור"]
[null,{"$f":"IF(שעות_עבודה7[[#This Row],[תאריך]]=\"\",\"\",ROW(A16))","v":""},null,null,null,null,{"$f":"IF(שעות_עבודה7[[#This Row],[התחלה]]=\"\",\"\",\nIF(שעות_עבודה7[[#This Row],[התחלה]]>שעות_עבודה7[[#This Row],[סיום]],\"\",\nשעות_עבודה7[[#This Row],[סיום]]-שעות_עבודה7[[#This Row],[התחלה]]))","v":""},{"$f":"IF(שעות_עבודה7[[#This Row],[שעות]]=\"\",\"\",\nIF(SUMPRODUCT((שעות_עבודה7[[#This Row],[העבודה]]=תעריפים_וסיכום8[שמות העבודות])*שעות_עבודה7[[#This Row],[שעות]]*(תעריפים_וסיכום8[שכר לשעה]*24))=0,\"\",\nSUMPRODUCT((שעות_עבודה7[[#This Row],[העבודה]]=תעריפים_וסיכום8[שמות העבודות])*שעות_עבודה7[[#This Row],[שעות]]*(תעריפים_וסיכום8[שכר לשעה]*24))))","v":""},null,null,null,null,{"$f":"IF(תעריפים_וסיכום8[[#This Row],[שמות העבודות]]=\"\",\"\",\nIFERROR(IF(SUMIFS(שעות_עבודה7[שעות],שעות_עבודה7[העבודה],תעריפים_וסיכום8[[#This Row],[שמות העבודות]])=0,\"\",SUMIFS(שעות_עבודה7[שעות],שעות_עבודה7[העבודה],תעריפים_וסיכום8[[#This Row],[שמות העבודות]])),\"\"))","v":""},{"$f":"IF(OR(תעריפים_וסיכום8[[#This Row],[שכר לשעה]]=\"\",תעריפים_וסיכום8[[#This Row],[שעות העבודה]]=\"\"),\"\",\nIF(תעריפים_וסיכום8[[#This Row],[שעות העבודה]]*תעריפים_וסיכום8[[#This Row],[שכר לשעה]]*24=0,\"\",תעריפים_וסיכום8[[#This Row],[שעות העבודה]]*תעריפים_וסיכום8[[#This Row],[שכר לשעה]]*24))","v":""},null,null,null,null,null,null,null,null,null,null,null,null,null,null,null,null,null,null,null,0]
[null,{"$f":"IF(שעות_עבודה7[[#This Row],[תאריך]]=\"\",\"\",ROW(A17))","v":""},null,null,null,null,{"$f":"IF(שעות_עבודה7[[#This Row],[התחלה]]=\"\",\"\",\nIF(שעות_עבודה7[[#This Row],[התחלה]]>שעות_עבודה7[[#This Row],[סיום]],\"\",\nשעות_עבודה7[[#This Row],[סיום]]-שעות_עבודה7[[#This Row],[התחלה]]))","v":""},{"$f":"IF(שעות_עבודה7[[#This Row],[שעות]]=\"\",\"\",\nIF(SUMPRODUCT((שעות_עבודה7[[#This Row],[העבודה]]=תעריפים_וסיכום8[שמות העבודות])*שעות_עבודה7[[#This Row],[שעות]]*(תעריפים_וסיכום8[שכר לשעה]*24))=0,\"\",\nSUMPRODUCT((שעות_עבודה7[[#This Row],[העבודה]]=תעריפים_וסיכום8[שמות העבודות])*שעות_עבודה7[[#This Row],[שעות]]*(תעריפים_וסיכום8[שכר לשעה]*24))))","v":""},null,null,null,null,{"$f":"IF(תעריפים_וסיכום8[[#This Row],[שמות העבודות]]=\"\",\"\",\nIFERROR(IF(SUMIFS(שעות_עבודה7[שעות],שעות_עבודה7[העבודה],תעריפים_וסיכום8[[#This Row],[שמות העבודות]])=0,\"\",SUMIFS(שעות_עבודה7[שעות],שעות_עבודה7[העבודה],תעריפים_וסיכום8[[#This Row],[שמות העבודות]])),\"\"))","v":""},{"$f":"IF(OR(תעריפים_וסיכום8[[#This Row],[שכר לשעה]]=\"\",תעריפים_וסיכום8[[#This Row],[שעות העבודה]]=\"\"),\"\",\nIF(תעריפים_וסיכום8[[#This Row],[שעות העבודה]]*תעריפים_וסיכום8[[#This Row],[שכר לשעה]]*24=0,\"\",תעריפים_וסיכום8[[#This Row],[שעות העבודה]]*תעריפים_וסיכום8[[#This Row],[שכר לשעה]]*24))","v":""},null,null,null,null,null,null,null,null,null,null,null,null,null,null,null,null,null,null,null,"עבודה נבחרת"]
[null,{"$f":"IF(שעות_עבודה7[[#This Row],[תאריך]]=\"\",\"\",ROW(A18))","v":""},null,null,null,null,{"$f":"IF(שעות_עבודה7[[#This Row],[התחלה]]=\"\",\"\",\nIF(שעות_עבודה7[[#This Row],[התחלה]]>שעות_עבודה7[[#This Row],[סיום]],\"\",\nשעות_עבודה7[[#This Row],[סיום]]-שעות_עבודה7[[#This Row],[התחלה]]))","v":""},{"$f":"IF(שעות_עבודה7[[#This Row],[שעות]]=\"\",\"\",\nIF(SUMPRODUCT((שעות_עבודה7[[#This Row],[העבודה]]=תעריפים_וסיכום8[שמות העבודות])*שעות_עבודה7[[#This Row],[שעות]]*(תעריפים_וסיכום8[שכר לשעה]*24))=0,\"\",\nSUMPRODUCT((שעות_עבודה7[[#This Row],[העבודה]]=תעריפים_וסיכום8[שמות העבודות])*שעות_עבודה7[[#This Row],[שעות]]*(תעריפים_וסיכום8[שכר לשעה]*24))))","v":""},null,null,null,null,{"$f":"IF(תעריפים_וסיכום8[[#This Row],[שמות העבודות]]=\"\",\"\",\nIFERROR(IF(SUMIFS(שעות_עבודה7[שעות],שעות_עבודה7[העבודה],תעריפים_וסיכום8[[#This Row],[שמות העבודות]])=0,\"\",SUMIFS(שעות_עבודה7[שעות],שעות_עבודה7[העבודה],תעריפים_וסיכום8[[#This Row],[שמות העבודות]])),\"\"))","v":""},{"$f":"IF(OR(תעריפים_וסיכום8[[#This Row],[שכר לשעה]]=\"\",תעריפים_וסיכום8[[#This Row],[שעות העבודה]]=\"\"),\"\",\nIF(תעריפים_וסיכום8[[#This Row],[שעות העבודה]]*תעריפים_וסיכום8[[#This Row],[שכר לשעה]]*24=0,\"\",תעריפים_וסיכום8[[#This Row],[שעות העבודה]]*תעריפים_וסיכום8[[#This Row],[שכר לשעה]]*24))","v":""},null,null,null,null,null,null,null,null,null,null,null,null,null,null,null,null,null,null,null,3]
[null,{"$f":"IF(שעות_עבודה7[[#This Row],[תאריך]]=\"\",\"\",ROW(A19))","v":""},null,null,null,null,{"$f":"IF(שעות_עבודה7[[#This Row],[התחלה]]=\"\",\"\",\nIF(שעות_עבודה7[[#This Row],[התחלה]]>שעות_עבודה7[[#This Row],[סיום]],\"\",\nשעות_עבודה7[[#This Row],[סיום]]-שעות_עבודה7[[#This Row],[התחלה]]))","v":""},{"$f":"IF(שעות_עבודה7[[#This Row],[שעות]]=\"\",\"\",\nIF(SUMPRODUCT((שעות_עבודה7[[#This Row],[העבודה]]=תעריפים_וסיכום8[שמות העבודות])*שעות_עבודה7[[#This Row],[שעות]]*(תעריפים_וסיכום8[שכר לשעה]*24))=0,\"\",\nSUMPRODUCT((שעות_עבודה7[[#This Row],[העבודה]]=תעריפים_וסיכום8[שמות העבודות])*שעות_עבודה7[[#This Row],[שעות]]*(תעריפים_וסיכום8[שכר לשעה]*24))))","v":""},null,null,null,null,{"$f":"IF(תעריפים_וסיכום8[[#This Row],[שמות העבודות]]=\"\",\"\",\nIFERROR(IF(SUMIFS(שעות_עבודה7[שעות],שעות_עבודה7[העבודה],תעריפים_וסיכום8[[#This Row],[שמות העבודות]])=0,\"\",SUMIFS(שעות_עבודה7[שעות],שעות_עבודה7[העבודה],תעריפים_וסיכום8[[#This Row],[שמות העבודות]])),\"\"))","v":""},{"$f":"IF(OR(תעריפים_וסיכום8[[#This Row],[שכר לשעה]]=\"\",תעריפים_וסיכום8[[#This Row],[שעות העבודה]]=\"\"),\"\",\nIF(תעריפים_וסיכום8[[#This Row],[שעות העבודה]]*תעריפים_וסיכום8[[#This Row],[שכר לשעה]]*24=0,\"\",תעריפים_וסיכום8[[#This Row],[שעות העבודה]]*תעריפים_וסיכום8[[#This Row],[שכר לשעה]]*24))","v":""},null,null,null,null,null,null,null,null,null,null,null,null,null,null,null,null,null,null,null,"שם עבודה נבחרת"]
[null,{"$f":"IF(שעות_עבודה7[[#This Row],[תאריך]]=\"\",\"\",ROW(A20))","v":""},null,null,null,null,{"$f":"IF(שעות_עבודה7[[#This Row],[התחלה]]=\"\",\"\",\nIF(שעות_עבודה7[[#This Row],[התחלה]]>שעות_עבודה7[[#This Row],[סיום]],\"\",\nשעות_עבודה7[[#This Row],[סיום]]-שעות_עבודה7[[#This Row],[התחלה]]))","v":""},{"$f":"IF(שעות_עבודה7[[#This Row],[שעות]]=\"\",\"\",\nIF(SUMPRODUCT((שעות_עבודה7[[#This Row],[העבודה]]=תעריפים_וסיכום8[שמות העבודות])*שעות_עבודה7[[#This Row],[שעות]]*(תעריפים_וסיכום8[שכר לשעה]*24))=0,\"\",\nSUMPRODUCT((שעות_עבודה7[[#This Row],[העבודה]]=תעריפים_וסיכום8[שמות העבודות])*שעות_עבודה7[[#This Row],[שעות]]*(תעריפים_וסיכום8[שכר לשעה]*24))))","v":""},null,null,null,null,{"$f":"IF(תעריפים_וסיכום8[[#This Row],[שמות העבודות]]=\"\",\"\",\nIFERROR(IF(SUMIFS(שעות_עבודה7[שעות],שעות_עבודה7[העבודה],תעריפים_וסיכום8[[#This Row],[שמות העבודות]])=0,\"\",SUMIFS(שעות_עבודה7[שעות],שעות_עבודה7[העבודה],תעריפים_וסיכום8[[#This Row],[שמות העבודות]])),\"\"))","v":""},{"$f":"IF(OR(תעריפים_וסיכום8[[#This Row],[שכר לשעה]]=\"\",תעריפים_וסיכום8[[#This Row],[שעות העבודה]]=\"\"),\"\",\nIF(תעריפים_וסיכום8[[#This Row],[שעות העבודה]]*תעריפים_וסיכום8[[#This Row],[שכר לשעה]]*24=0,\"\",תעריפים_וסיכום8[[#This Row],[שעות העבודה]]*תעריפים_וסיכום8[[#This Row],[שכר לשעה]]*24))","v":""},null,null,null,null,null,null,null,null,null,null,null,null,null,null,null,null,null,null,null,{"$f":"INDEX(תעריפים_וסיכום8[שמות העבודות],AH23)","v":"חיים של תורה"}]
[null,{"$f":"IF(שעות_עבודה7[[#This Row],[תאריך]]=\"\",\"\",ROW(A21))","v":""},null,null,null,null,{"$f":"IF(שעות_עבודה7[[#This Row],[התחלה]]=\"\",\"\",\nIF(שעות_עבודה7[[#This Row],[התחלה]]>שעות_עבודה7[[#This Row],[סיום]],\"\",\nשעות_עבודה7[[#This Row],[סיום]]-שעות_עבודה7[[#This Row],[התחלה]]))","v":""},{"$f":"IF(שעות_עבודה7[[#This Row],[שעות]]=\"\",\"\",\nIF(SUMPRODUCT((שעות_עבודה7[[#This Row],[העבודה]]=תעריפים_וסיכום8[שמות העבודות])*שעות_עבודה7[[#This Row],[שעות]]*(תעריפים_וסיכום8[שכר לשעה]*24))=0,\"\",\nSUMPRODUCT((שעות_עבודה7[[#This Row],[העבודה]]=תעריפים_וסיכום8[שמות העבודות])*שעות_עבודה7[[#This Row],[שעות]]*(תעריפים_וסיכום8[שכר לשעה]*24))))","v":""},null,null,null,null,null,null,null,null,null,null,null,null,null,null,null,null,null,null,null,null,null,null,null,null,null,"שכר לעבודה נבחרת"]
[null,{"$f":"IF(שעות_עבודה7[[#This Row],[תאריך]]=\"\",\"\",ROW(A22))","v":""},null,null,null,null,{"$f":"IF(שעות_עבודה7[[#This Row],[התחלה]]=\"\",\"\",\nIF(שעות_עבודה7[[#This Row],[התחלה]]>שעות_עבודה7[[#This Row],[סיום]],\"\",\nשעות_עבודה7[[#This Row],[סיום]]-שעות_עבודה7[[#This Row],[התחלה]]))","v":""},{"$f":"IF(שעות_עבודה7[[#This Row],[שעות]]=\"\",\"\",\nIF(SUMPRODUCT((שעות_עבודה7[[#This Row],[העבודה]]=תעריפים_וסיכום8[שמות העבודות])*שעות_עבודה7[[#This Row],[שעות]]*(תעריפים_וסיכום8[שכר לשעה]*24))=0,\"\",\nSUMPRODUCT((שעות_עבודה7[[#This Row],[העבודה]]=תעריפים_וסיכום8[שמות העבודות])*שעות_עבודה7[[#This Row],[שעות]]*(תעריפים_וסיכום8[שכר לשעה]*24))))","v":""},null,null,null,null,null,null,null,null,null,null,null,null,null,null,null,null,null,null,null,null,null,null,null,null,null,{"$f":"VLOOKUP(שם_העבודה,תעריפים_וסיכום8[],3)","v":2.3148148148077752E-5}]
[null,{"$f":"IF(שעות_עבודה7[[#This Row],[תאריך]]=\"\",\"\",ROW(A23))","v":""},null,null,null,null,{"$f":"IF(שעות_עבודה7[[#This Row],[התחלה]]=\"\",\"\",\nIF(שעות_עבודה7[[#This Row],[התחלה]]>שעות_עבודה7[[#This Row],[סיום]],\"\",\nשעות_עבודה7[[#This Row],[סיום]]-שעות_עבודה7[[#This Row],[התחלה]]))","v":""},{"$f":"IF(שעות_עבודה7[[#This Row],[שעות]]=\"\",\"\",\nIF(SUMPRODUCT((שעות_עבודה7[[#This Row],[העבודה]]=תעריפים_וסיכום8[שמות העבודות])*שעות_עבודה7[[#This Row],[שעות]]*(תעריפים_וסיכום8[שכר לשעה]*24))=0,\"\",\nSUMPRODUCT((שעות_עבודה7[[#This Row],[העבודה]]=תעריפים_וסיכום8[שמות העבודות])*שעות_עבודה7[[#This Row],[שעות]]*(תעריפים_וסיכום8[שכר לשעה]*24))))","v":""},null,null,"הדרכה"]
[null,{"$f":"IF(שעות_עבודה7[[#This Row],[תאריך]]=\"\",\"\",ROW(A24))","v":""},null,null,null,null,{"$f":"IF(שעות_עבודה7[[#This Row],[התחלה]]=\"\",\"\",\nIF(שעות_עבודה7[[#This Row],[התחלה]]>שעות_עבודה7[[#This Row],[סיום]],\"\",\nשעות_עבודה7[[#This Row],[סיום]]-שעות_עבודה7[[#This Row],[התחלה]]))","v":""},{"$f":"IF(שעות_עבודה7[[#This Row],[שעות]]=\"\",\"\",\nIF(SUMPRODUCT((שעות_עבודה7[[#This Row],[העבודה]]=תעריפים_וסיכום8[שמות העבודות])*שעות_עבודה7[[#This Row],[שעות]]*(תעריפים_וסיכום8[שכר לשעה]*24))=0,\"\",\nSUMPRODUCT((שעות_עבודה7[[#This Row],[העבודה]]=תעריפים_וסיכום8[שמות העבודות])*שעות_עבודה7[[#This Row],[שעות]]*(תעריפים_וסיכום8[שכר לשעה]*24))))","v":""},null,null,"ראשית, עליכם לוודא שיש לכם הרשאות מתאימות להרצת פקודות המאקרו, לצורך כך יש לבדוק 2 בדיקות-\n1- קליק ימני על הקובץ מתוך סייר הקבצים, להיכנס ל'מאפינים' ולבדוק אם מוצעת שם למטה האופציה של 'בטל חסימה', אם כן יש לאשרו בתיבת הסימון שלצידו.\n2- לאחר פתיחת הקובץ להיכנס ל- קובץ > אפשרויות > מרכז יחסי האמון > הגדרות מרכז יחסי האמון > הגדרות מאקרו, ולסמן או 'הפוך פקודות מאקרו לבלתי זמינות עם הודעה', או 'הפוך פקודות מאקרו לזמינות' לבחירתכם."]
[null,{"$f":"IF(שעות_עבודה7[[#This Row],[תאריך]]=\"\",\"\",ROW(A25))","v":""},null,null,null,null,{"$f":"IF(שעות_עבודה7[[#This Row],[התחלה]]=\"\",\"\",\nIF(שעות_עבודה7[[#This Row],[התחלה]]>שעות_עבודה7[[#This Row],[סיום]],\"\",\nשעות_עבודה7[[#This Row],[סיום]]-שעות_עבודה7[[#This Row],[התחלה]]))","v":""},{"$f":"IF(שעות_עבודה7[[#This Row],[שעות]]=\"\",\"\",\nIF(SUMPRODUCT((שעות_עבודה7[[#This Row],[העבודה]]=תעריפים_וסיכום8[שמות העבודות])*שעות_עבודה7[[#This Row],[שעות]]*(תעריפים_וסיכום8[שכר לשעה]*24))=0,\"\",\nSUMPRODUCT((שעות_עבודה7[[#This Row],[העבודה]]=תעריפים_וסיכום8[שמות העבודות])*שעות_עבודה7[[#This Row],[שעות]]*(תעריפים_וסיכום8[שכר לשעה]*24))))","v":""}]
[null,{"$f":"IF(שעות_עבודה7[[#This Row],[תאריך]]=\"\",\"\",ROW(A26))","v":""},null,null,null,null,{"$f":"IF(שעות_עבודה7[[#This Row],[התחלה]]=\"\",\"\",\nIF(שעות_עבודה7[[#This Row],[התחלה]]>שעות_עבודה7[[#This Row],[סיום]],\"\",\nשעות_עבודה7[[#This Row],[סיום]]-שעות_עבודה7[[#This Row],[התחלה]]))","v":""},{"$f":"IF(שעות_עבודה7[[#This Row],[שעות]]=\"\",\"\",\nIF(SUMPRODUCT((שעות_עבודה7[[#This Row],[העבודה]]=תעריפים_וסיכום8[שמות העבודות])*שעות_עבודה7[[#This Row],[שעות]]*(תעריפים_וסיכום8[שכר לשעה]*24))=0,\"\",\nSUMPRODUCT((שעות_עבודה7[[#This Row],[העבודה]]=תעריפים_וסיכום8[שמות העבודות])*שעות_עבודה7[[#This Row],[שעות]]*(תעריפים_וסיכום8[שכר לשעה]*24))))","v":""}]
[null,{"$f":"IF(שעות_עבודה7[[#This Row],[תאריך]]=\"\",\"\",ROW(A27))","v":""},null,null,null,null,{"$f":"IF(שעות_עבודה7[[#This Row],[התחלה]]=\"\",\"\",\nIF(שעות_עבודה7[[#This Row],[התחלה]]>שעות_עבודה7[[#This Row],[סיום]],\"\",\nשעות_עבודה7[[#This Row],[סיום]]-שעות_עבודה7[[#This Row],[התחלה]]))","v":""},{"$f":"IF(שעות_עבודה7[[#This Row],[שעות]]=\"\",\"\",\nIF(SUMPRODUCT((שעות_עבודה7[[#This Row],[העבודה]]=תעריפים_וסיכום8[שמות העבודות])*שעות_עבודה7[[#This Row],[שעות]]*(תעריפים_וסיכום8[שכר לשעה]*24))=0,\"\",\nSUMPRODUCT((שעות_עבודה7[[#This Row],[העבודה]]=תעריפים_וסיכום8[שמות העבודות])*שעות_עבודה7[[#This Row],[שעות]]*(תעריפים_וסיכום8[שכר לשעה]*24))))","v":""}]
[null,{"$f":"IF(שעות_עבודה7[[#This Row],[תאריך]]=\"\",\"\",ROW(A28))","v":""},null,null,null,null,{"$f":"IF(שעות_עבודה7[[#This Row],[התחלה]]=\"\",\"\",\nIF(שעות_עבודה7[[#This Row],[התחלה]]>שעות_עבודה7[[#This Row],[סיום]],\"\",\nשעות_עבודה7[[#This Row],[סיום]]-שעות_עבודה7[[#This Row],[התחלה]]))","v":""},{"$f":"IF(שעות_עבודה7[[#This Row],[שעות]]=\"\",\"\",\nIF(SUMPRODUCT((שעות_עבודה7[[#This Row],[העבודה]]=תעריפים_וסיכום8[שמות העבודות])*שעות_עבודה7[[#This Row],[שעות]]*(תעריפים_וסיכום8[שכר לשעה]*24))=0,\"\",\nSUMPRODUCT((שעות_עבודה7[[#This Row],[העבודה]]=תעריפים_וסיכום8[שמות העבודות])*שעות_עבודה7[[#This Row],[שעות]]*(תעריפים_וסיכום8[שכר לשעה]*24))))","v":""}]
[null,{"$f":"IF(שעות_עבודה7[[#This Row],[תאריך]]=\"\",\"\",ROW(A29))","v":""},null,null,null,null,{"$f":"IF(שעות_עבודה7[[#This Row],[התחלה]]=\"\",\"\",\nIF(שעות_עבודה7[[#This Row],[התחלה]]>שעות_עבודה7[[#This Row],[סיום]],\"\",\nשעות_עבודה7[[#This Row],[סיום]]-שעות_עבודה7[[#This Row],[התחלה]]))","v":""},{"$f":"IF(שעות_עבודה7[[#This Row],[שעות]]=\"\",\"\",\nIF(SUMPRODUCT((שעות_עבודה7[[#This Row],[העבודה]]=תעריפים_וסיכום8[שמות העבודות])*שעות_עבודה7[[#This Row],[שעות]]*(תעריפים_וסיכום8[שכר לשעה]*24))=0,\"\",\nSUMPRODUCT((שעות_עבודה7[[#This Row],[העבודה]]=תעריפים_וסיכום8[שמות העבודות])*שעות_עבודה7[[#This Row],[שעות]]*(תעריפים_וסיכום8[שכר לשעה]*24))))","v":""}]
[null,{"$f":"IF(שעות_עבודה7[[#This Row],[תאריך]]=\"\",\"\",ROW(A30))","v":""},null,null,null,null,{"$f":"IF(שעות_עבודה7[[#This Row],[התחלה]]=\"\",\"\",\nIF(שעות_עבודה7[[#This Row],[התחלה]]>שעות_עבודה7[[#This Row],[סיום]],\"\",\nשעות_עבודה7[[#This Row],[סיום]]-שעות_עבודה7[[#This Row],[התחלה]]))","v":""},{"$f":"IF(שעות_עבודה7[[#This Row],[שעות]]=\"\",\"\",\nIF(SUMPRODUCT((שעות_עבודה7[[#This Row],[העבודה]]=תעריפים_וסיכום8[שמות העבודות])*שעות_עבודה7[[#This Row],[שעות]]*(תעריפים_וסיכום8[שכר לשעה]*24))=0,\"\",\nSUMPRODUCT((שעות_עבודה7[[#This Row],[העבודה]]=תעריפים_וסיכום8[שמות העבודות])*שעות_עבודה7[[#This Row],[שעות]]*(תעריפים_וסיכום8[שכר לשעה]*24))))","v":""}]
[null,{"$f":"IF(שעות_עבודה7[[#This Row],[תאריך]]=\"\",\"\",ROW(A31))","v":""},null,null,null,null,{"$f":"IF(שעות_עבודה7[[#This Row],[התחלה]]=\"\",\"\",\nIF(שעות_עבודה7[[#This Row],[התחלה]]>שעות_עבודה7[[#This Row],[סיום]],\"\",\nשעות_עבודה7[[#This Row],[סיום]]-שעות_עבודה7[[#This Row],[התחלה]]))","v":""},{"$f":"IF(שעות_עבודה7[[#This Row],[שעות]]=\"\",\"\",\nIF(SUMPRODUCT((שעות_עבודה7[[#This Row],[העבודה]]=תעריפים_וסיכום8[שמות העבודות])*שעות_עבודה7[[#This Row],[שעות]]*(תעריפים_וסיכום8[שכר לשעה]*24))=0,\"\",\nSUMPRODUCT((שעות_עבודה7[[#This Row],[העבודה]]=תעריפים_וסיכום8[שמות העבודות])*שעות_עבודה7[[#This Row],[שעות]]*(תעריפים_וסיכום8[שכר לשעה]*24))))","v":""},null,null,"וכעת לגיליון העבודה, גיליון העבודה הנוכחי מחולק ל-4 חלקים, בחלק העליון של הגיליון נמצאים, מימין 'פאנל העדכון' שבתוכו מוצבים כל הפקדים, ומשמאל 'שורת הסיכום', ובחלק התחתון 2 טבלאות, מימין 'טבלת העדכון', ומשמאל 'טבלת הסיכום'."]
[null,{"$f":"IF(שעות_עבודה7[[#This Row],[תאריך]]=\"\",\"\",ROW(A32))","v":""},null,null,null,null,{"$f":"IF(שעות_עבודה7[[#This Row],[התחלה]]=\"\",\"\",\nIF(שעות_עבודה7[[#This Row],[התחלה]]>שעות_עבודה7[[#This Row],[סיום]],\"\",\nשעות_עבודה7[[#This Row],[סיום]]-שעות_עבודה7[[#This Row],[התחלה]]))","v":""},{"$f":"IF(שעות_עבודה7[[#This Row],[שעות]]=\"\",\"\",\nIF(SUMPRODUCT((שעות_עבודה7[[#This Row],[העבודה]]=תעריפים_וסיכום8[שמות העבודות])*שעות_עבודה7[[#This Row],[שעות]]*(תעריפים_וסיכום8[שכר לשעה]*24))=0,\"\",\nSUMPRODUCT((שעות_עבודה7[[#This Row],[העבודה]]=תעריפים_וסיכום8[שמות העבודות])*שעות_עבודה7[[#This Row],[שעות]]*(תעריפים_וסיכום8[שכר לשעה]*24))))","v":""}]
[null,{"$f":"IF(שעות_עבודה7[[#This Row],[תאריך]]=\"\",\"\",ROW(A33))","v":""},null,null,null,null,{"$f":"IF(שעות_עבודה7[[#This Row],[התחלה]]=\"\",\"\",\nIF(שעות_עבודה7[[#This Row],[התחלה]]>שעות_עבודה7[[#This Row],[סיום]],\"\",\nשעות_עבודה7[[#This Row],[סיום]]-שעות_עבודה7[[#This Row],[התחלה]]))","v":""},{"$f":"IF(שעות_עבודה7[[#This Row],[שעות]]=\"\",\"\",\nIF(SUMPRODUCT((שעות_עבודה7[[#This Row],[העבודה]]=תעריפים_וסיכום8[שמות העבודות])*שעות_עבודה7[[#This Row],[שעות]]*(תעריפים_וסיכום8[שכר לשעה]*24))=0,\"\",\nSUMPRODUCT((שעות_עבודה7[[#This Row],[העבודה]]=תעריפים_וסיכום8[שמות העבודות])*שעות_עבודה7[[#This Row],[שעות]]*(תעריפים_וסיכום8[שכר לשעה]*24))))","v":""}]
[null,{"$f":"IF(שעות_עבודה7[[#This Row],[תאריך]]=\"\",\"\",ROW(A34))","v":""},null,null,null,null,{"$f":"IF(שעות_עבודה7[[#This Row],[התחלה]]=\"\",\"\",\nIF(שעות_עבודה7[[#This Row],[התחלה]]>שעות_עבודה7[[#This Row],[סיום]],\"\",\nשעות_עבודה7[[#This Row],[סיום]]-שעות_עבודה7[[#This Row],[התחלה]]))","v":""},{"$f":"IF(שעות_עבודה7[[#This Row],[שעות]]=\"\",\"\",\nIF(SUMPRODUCT((שעות_עבודה7[[#This Row],[העבודה]]=תעריפים_וסיכום8[שמות העבודות])*שעות_עבודה7[[#This Row],[שעות]]*(תעריפים_וסיכום8[שכר לשעה]*24))=0,\"\",\nSUMPRODUCT((שעות_עבודה7[[#This Row],[העבודה]]=תעריפים_וסיכום8[שמות העבודות])*שעות_עבודה7[[#This Row],[שעות]]*(תעריפים_וסיכום8[שכר לשעה]*24))))","v":""},null,null,"צבעי התאים- רוב התאים בגיליון הם תאים של חישובים אוטומטיים, התאים שבצבע ירוק הם תאים של 'מילוי אוטומטי' והתאים שבצבע תכלת הם תאים של 'חישוב אוטומטי', חוץ מהתאים שבצבע אפור שהם תאים שנועדו למילוי ידני."]
[null,{"$f":"IF(שעות_עבודה7[[#This Row],[תאריך]]=\"\",\"\",ROW(A35))","v":""},null,null,null,null,{"$f":"IF(שעות_עבודה7[[#This Row],[התחלה]]=\"\",\"\",\nIF(שעות_עבודה7[[#This Row],[התחלה]]>שעות_עבודה7[[#This Row],[סיום]],\"\",\nשעות_עבודה7[[#This Row],[סיום]]-שעות_עבודה7[[#This Row],[התחלה]]))","v":""},{"$f":"IF(שעות_עבודה7[[#This Row],[שעות]]=\"\",\"\",\nIF(SUMPRODUCT((שעות_עבודה7[[#This Row],[העבודה]]=תעריפים_וסיכום8[שמות העבודות])*שעות_עבודה7[[#This Row],[שעות]]*(תעריפים_וסיכום8[שכר לשעה]*24))=0,\"\",\nSUMPRODUCT((שעות_עבודה7[[#This Row],[העבודה]]=תעריפים_וסיכום8[שמות העבודות])*שעות_עבודה7[[#This Row],[שעות]]*(תעריפים_וסיכום8[שכר לשעה]*24))))","v":""}]
[null,{"$f":"IF(שעות_עבודה7[[#This Row],[תאריך]]=\"\",\"\",ROW(A36))","v":""},null,null,null,null,{"$f":"IF(שעות_עבודה7[[#This Row],[התחלה]]=\"\",\"\",\nIF(שעות_עבודה7[[#This Row],[התחלה]]>שעות_עבודה7[[#This Row],[סיום]],\"\",\nשעות_עבודה7[[#This Row],[סיום]]-שעות_עבודה7[[#This Row],[התחלה]]))","v":""},{"$f":"IF(שעות_עבודה7[[#This Row],[שעות]]=\"\",\"\",\nIF(SUMPRODUCT((שעות_עבודה7[[#This Row],[העבודה]]=תעריפים_וסיכום8[שמות העבודות])*שעות_עבודה7[[#This Row],[שעות]]*(תעריפים_וסיכום8[שכר לשעה]*24))=0,\"\",\nSUMPRODUCT((שעות_עבודה7[[#This Row],[העבודה]]=תעריפים_וסיכום8[שמות העבודות])*שעות_עבודה7[[#This Row],[שעות]]*(תעריפים_וסיכום8[שכר לשעה]*24))))","v":""}]
[null,{"$f":"IF(שעות_עבודה7[[#This Row],[תאריך]]=\"\",\"\",ROW(A37))","v":""},null,null,null,null,{"$f":"IF(שעות_עבודה7[[#This Row],[התחלה]]=\"\",\"\",\nIF(שעות_עבודה7[[#This Row],[התחלה]]>שעות_עבודה7[[#This Row],[סיום]],\"\",\nשעות_עבודה7[[#This Row],[סיום]]-שעות_עבודה7[[#This Row],[התחלה]]))","v":""},{"$f":"IF(שעות_עבודה7[[#This Row],[שעות]]=\"\",\"\",\nIF(SUMPRODUCT((שעות_עבודה7[[#This Row],[העבודה]]=תעריפים_וסיכום8[שמות העבודות])*שעות_עבודה7[[#This Row],[שעות]]*(תעריפים_וסיכום8[שכר לשעה]*24))=0,\"\",\nSUMPRODUCT((שעות_עבודה7[[#This Row],[העבודה]]=תעריפים_וסיכום8[שמות העבודות])*שעות_עבודה7[[#This Row],[שעות]]*(תעריפים_וסיכום8[שכר לשעה]*24))))","v":""},null,null,"קודם התחלת השימוש, (במידה והקובץ הגיע אליכם אם חלק נתונים מלאים, ניתן לנקות את הגיליון בלחיצה על פקד 'ניקוי הנתונים' כמפורט למטה), עליכם להזין פרטים בטבלת הסיכום, בעמודת 'העבודות שלי' יש להזין סוגי עבודות בהם אתם עובדים, זו יכולה להיות גם עבודה אחת, ובעמודת 'שכר לשעה' להזין את השכר המתאים עבור כל עבודה מהעבודות שהזנתם בעמודת 'העבודות שלי'."]
[null,{"$f":"IF(שעות_עבודה7[[#This Row],[תאריך]]=\"\",\"\",ROW(A38))","v":""},null,null,null,null,{"$f":"IF(שעות_עבודה7[[#This Row],[התחלה]]=\"\",\"\",\nIF(שעות_עבודה7[[#This Row],[התחלה]]>שעות_עבודה7[[#This Row],[סיום]],\"\",\nשעות_עבודה7[[#This Row],[סיום]]-שעות_עבודה7[[#This Row],[התחלה]]))","v":""},{"$f":"IF(שעות_עבודה7[[#This Row],[שעות]]=\"\",\"\",\nIF(SUMPRODUCT((שעות_עבודה7[[#This Row],[העבודה]]=תעריפים_וסיכום8[שמות העבודות])*שעות_עבודה7[[#This Row],[שעות]]*(תעריפים_וסיכום8[שכר לשעה]*24))=0,\"\",\nSUMPRODUCT((שעות_עבודה7[[#This Row],[העבודה]]=תעריפים_וסיכום8[שמות העבודות])*שעות_עבודה7[[#This Row],[שעות]]*(תעריפים_וסיכום8[שכר לשעה]*24))))","v":""}]
[null,{"$f":"IF(שעות_עבודה7[[#This Row],[תאריך]]=\"\",\"\",ROW(A39))","v":""},null,null,null,null,{"$f":"IF(שעות_עבודה7[[#This Row],[התחלה]]=\"\",\"\",\nIF(שעות_עבודה7[[#This Row],[התחלה]]>שעות_עבודה7[[#This Row],[סיום]],\"\",\nשעות_עבודה7[[#This Row],[סיום]]-שעות_עבודה7[[#This Row],[התחלה]]))","v":""},{"$f":"IF(שעות_עבודה7[[#This Row],[שעות]]=\"\",\"\",\nIF(SUMPRODUCT((שעות_עבודה7[[#This Row],[העבודה]]=תעריפים_וסיכום8[שמות העבודות])*שעות_עבודה7[[#This Row],[שעות]]*(תעריפים_וסיכום8[שכר לשעה]*24))=0,\"\",\nSUMPRODUCT((שעות_עבודה7[[#This Row],[העבודה]]=תעריפים_וסיכום8[שמות העבודות])*שעות_עבודה7[[#This Row],[שעות]]*(תעריפים_וסיכום8[שכר לשעה]*24))))","v":""}]
[null,{"$f":"IF(שעות_עבודה7[[#This Row],[תאריך]]=\"\",\"\",ROW(A40))","v":""},null,null,null,null,{"$f":"IF(שעות_עבודה7[[#This Row],[התחלה]]=\"\",\"\",\nIF(שעות_עבודה7[[#This Row],[התחלה]]>שעות_עבודה7[[#This Row],[סיום]],\"\",\nשעות_עבודה7[[#This Row],[סיום]]-שעות_עבודה7[[#This Row],[התחלה]]))","v":""},{"$f":"IF(שעות_עבודה7[[#This Row],[שעות]]=\"\",\"\",\nIF(SUMPRODUCT((שעות_עבודה7[[#This Row],[העבודה]]=תעריפים_וסיכום8[שמות העבודות])*שעות_עבודה7[[#This Row],[שעות]]*(תעריפים_וסיכום8[שכר לשעה]*24))=0,\"\",\nSUMPRODUCT((שעות_עבודה7[[#This Row],[העבודה]]=תעריפים_וסיכום8[שמות העבודות])*שעות_עבודה7[[#This Row],[שעות]]*(תעריפים_וסיכום8[שכר לשעה]*24))))","v":""}]
[null,{"$f":"IF(שעות_עבודה7[[#This Row],[תאריך]]=\"\",\"\",ROW(A41))","v":""},null,null,null,null,{"$f":"IF(שעות_עבודה7[[#This Row],[התחלה]]=\"\",\"\",\nIF(שעות_עבודה7[[#This Row],[התחלה]]>שעות_עבודה7[[#This Row],[סיום]],\"\",\nשעות_עבודה7[[#This Row],[סיום]]-שעות_עבודה7[[#This Row],[התחלה]]))","v":""},{"$f":"IF(שעות_עבודה7[[#This Row],[שעות]]=\"\",\"\",\nIF(SUMPRODUCT((שעות_עבודה7[[#This Row],[העבודה]]=תעריפים_וסיכום8[שמות העבודות])*שעות_עבודה7[[#This Row],[שעות]]*(תעריפים_וסיכום8[שכר לשעה]*24))=0,\"\",\nSUMPRODUCT((שעות_עבודה7[[#This Row],[העבודה]]=תעריפים_וסיכום8[שמות העבודות])*שעות_עבודה7[[#This Row],[שעות]]*(תעריפים_וסיכום8[שכר לשעה]*24))))","v":""},null,null,"כעת ניתן להתחיל בעבודה, בתחילת כל עבודה אתם פותחים את הגיליון הנוכחי, ועוברים על פאנל העדכון, לוחצים על פקד 'העבודה' כדי לבחור את העבודה בה אתם עומדים לעסוק כעת, תפתח לפניכם רשימת העבודות שהזנתם בטבלת הסיכום בעמודת 'העבודות שלי', משם תבחרו את העבודה הרלוונטית, אחר כך לוחצים על 'התחלה', ואוטומטית יתמלאו בטבלת העדכון פרטי העבודה- התאריך שם העבודה ושעת ההתחלה."]
[null,{"$f":"IF(שעות_עבודה7[[#This Row],[תאריך]]=\"\",\"\",ROW(A42))","v":""},null,null,null,null,{"$f":"IF(שעות_עבודה7[[#This Row],[התחלה]]=\"\",\"\",\nIF(שעות_עבודה7[[#This Row],[התחלה]]>שעות_עבודה7[[#This Row],[סיום]],\"\",\nשעות_עבודה7[[#This Row],[סיום]]-שעות_עבודה7[[#This Row],[התחלה]]))","v":""},{"$f":"IF(שעות_עבודה7[[#This Row],[שעות]]=\"\",\"\",\nIF(SUMPRODUCT((שעות_עבודה7[[#This Row],[העבודה]]=תעריפים_וסיכום8[שמות העבודות])*שעות_עבודה7[[#This Row],[שעות]]*(תעריפים_וסיכום8[שכר לשעה]*24))=0,\"\",\nSUMPRODUCT((שעות_עבודה7[[#This Row],[העבודה]]=תעריפים_וסיכום8[שמות העבודות])*שעות_עבודה7[[#This Row],[שעות]]*(תעריפים_וסיכום8[שכר לשעה]*24))))","v":""}]
[null,{"$f":"IF(שעות_עבודה7[[#This Row],[תאריך]]=\"\",\"\",ROW(A43))","v":""},null,null,null,null,{"$f":"IF(שעות_עבודה7[[#This Row],[התחלה]]=\"\",\"\",\nIF(שעות_עבודה7[[#This Row],[התחלה]]>שעות_עבודה7[[#This Row],[סיום]],\"\",\nשעות_עבודה7[[#This Row],[סיום]]-שעות_עבודה7[[#This Row],[התחלה]]))","v":""},{"$f":"IF(שעות_עבודה7[[#This Row],[שעות]]=\"\",\"\",\nIF(SUMPRODUCT((שעות_עבודה7[[#This Row],[העבודה]]=תעריפים_וסיכום8[שמות העבודות])*שעות_עבודה7[[#This Row],[שעות]]*(תעריפים_וסיכום8[שכר לשעה]*24))=0,\"\",\nSUMPRODUCT((שעות_עבודה7[[#This Row],[העבודה]]=תעריפים_וסיכום8[שמות העבודות])*שעות_עבודה7[[#This Row],[שעות]]*(תעריפים_וסיכום8[שכר לשעה]*24))))","v":""}]
[null,{"$f":"IF(שעות_עבודה7[[#This Row],[תאריך]]=\"\",\"\",ROW(A44))","v":""},null,null,null,null,{"$f":"IF(שעות_עבודה7[[#This Row],[התחלה]]=\"\",\"\",\nIF(שעות_עבודה7[[#This Row],[התחלה]]>שעות_עבודה7[[#This Row],[סיום]],\"\",\nשעות_עבודה7[[#This Row],[סיום]]-שעות_עבודה7[[#This Row],[התחלה]]))","v":""},{"$f":"IF(שעות_עבודה7[[#This Row],[שעות]]=\"\",\"\",\nIF(SUMPRODUCT((שעות_עבודה7[[#This Row],[העבודה]]=תעריפים_וסיכום8[שמות העבודות])*שעות_עבודה7[[#This Row],[שעות]]*(תעריפים_וסיכום8[שכר לשעה]*24))=0,\"\",\nSUMPRODUCT((שעות_עבודה7[[#This Row],[העבודה]]=תעריפים_וסיכום8[שמות העבודות])*שעות_עבודה7[[#This Row],[שעות]]*(תעריפים_וסיכום8[שכר לשעה]*24))))","v":""}]
[null,{"$f":"IF(שעות_עבודה7[[#This Row],[תאריך]]=\"\",\"\",ROW(A45))","v":""},null,null,null,null,{"$f":"IF(שעות_עבודה7[[#This Row],[התחלה]]=\"\",\"\",\nIF(שעות_עבודה7[[#This Row],[התחלה]]>שעות_עבודה7[[#This Row],[סיום]],\"\",\nשעות_עבודה7[[#This Row],[סיום]]-שעות_עבודה7[[#This Row],[התחלה]]))","v":""},{"$f":"IF(שעות_עבודה7[[#This Row],[שעות]]=\"\",\"\",\nIF(SUMPRODUCT((שעות_עבודה7[[#This Row],[העבודה]]=תעריפים_וסיכום8[שמות העבודות])*שעות_עבודה7[[#This Row],[שעות]]*(תעריפים_וסיכום8[שכר לשעה]*24))=0,\"\",\nSUMPRODUCT((שעות_עבודה7[[#This Row],[העבודה]]=תעריפים_וסיכום8[שמות העבודות])*שעות_עבודה7[[#This Row],[שעות]]*(תעריפים_וסיכום8[שכר לשעה]*24))))","v":""}]
[null,{"$f":"IF(שעות_עבודה7[[#This Row],[תאריך]]=\"\",\"\",ROW(A46))","v":""},null,null,null,null,{"$f":"IF(שעות_עבודה7[[#This Row],[התחלה]]=\"\",\"\",\nIF(שעות_עבודה7[[#This Row],[התחלה]]>שעות_עבודה7[[#This Row],[סיום]],\"\",\nשעות_עבודה7[[#This Row],[סיום]]-שעות_עבודה7[[#This Row],[התחלה]]))","v":""},{"$f":"IF(שעות_עבודה7[[#This Row],[שעות]]=\"\",\"\",\nIF(SUMPRODUCT((שעות_עבודה7[[#This Row],[העבודה]]=תעריפים_וסיכום8[שמות העבודות])*שעות_עבודה7[[#This Row],[שעות]]*(תעריפים_וסיכום8[שכר לשעה]*24))=0,\"\",\nSUMPRODUCT((שעות_עבודה7[[#This Row],[העבודה]]=תעריפים_וסיכום8[שמות העבודות])*שעות_עבודה7[[#This Row],[שעות]]*(תעריפים_וסיכום8[שכר לשעה]*24))))","v":""},null,null,"בסיום העבודה, אתם לוחצים על 'סוף', ותתעדכן אוטומטית השעה הנוכחית כשעת סיום העבודה שלכם בטבלת העדכון."]
[null,{"$f":"IF(שעות_עבודה7[[#This Row],[תאריך]]=\"\",\"\",ROW(A47))","v":""},null,null,null,null,{"$f":"IF(שעות_עבודה7[[#This Row],[התחלה]]=\"\",\"\",\nIF(שעות_עבודה7[[#This Row],[התחלה]]>שעות_עבודה7[[#This Row],[סיום]],\"\",\nשעות_עבודה7[[#This Row],[סיום]]-שעות_עבודה7[[#This Row],[התחלה]]))","v":""},{"$f":"IF(שעות_עבודה7[[#This Row],[שעות]]=\"\",\"\",\nIF(SUMPRODUCT((שעות_עבודה7[[#This Row],[העבודה]]=תעריפים_וסיכום8[שמות העבודות])*שעות_עבודה7[[#This Row],[שעות]]*(תעריפים_וסיכום8[שכר לשעה]*24))=0,\"\",\nSUMPRODUCT((שעות_עבודה7[[#This Row],[העבודה]]=תעריפים_וסיכום8[שמות העבודות])*שעות_עבודה7[[#This Row],[שעות]]*(תעריפים_וסיכום8[שכר לשעה]*24))))","v":""}]
[null,{"$f":"IF(שעות_עבודה7[[#This Row],[תאריך]]=\"\",\"\",ROW(A48))","v":""},null,null,null,null,{"$f":"IF(שעות_עבודה7[[#This Row],[התחלה]]=\"\",\"\",\nIF(שעות_עבודה7[[#This Row],[התחלה]]>שעות_עבודה7[[#This Row],[סיום]],\"\",\nשעות_עבודה7[[#This Row],[סיום]]-שעות_עבודה7[[#This Row],[התחלה]]))","v":""},{"$f":"IF(שעות_עבודה7[[#This Row],[שעות]]=\"\",\"\",\nIF(SUMPRODUCT((שעות_עבודה7[[#This Row],[העבודה]]=תעריפים_וסיכום8[שמות העבודות])*שעות_עבודה7[[#This Row],[שעות]]*(תעריפים_וסיכום8[שכר לשעה]*24))=0,\"\",\nSUMPRODUCT((שעות_עבודה7[[#This Row],[העבודה]]=תעריפים_וסיכום8[שמות העבודות])*שעות_עבודה7[[#This Row],[שעות]]*(תעריפים_וסיכום8[שכר לשעה]*24))))","v":""},null,null,"וזהו, זה כל מה שאתם צריכים לעשות, כל השאר מתעדכן אוטומטית, בטבלת העדכון תוכלו לראות את סך השעות שעבדתם והשכר שלכם בכל עבודה, ובטבלת הסיכום תוכלו לראות את סך שעות העבודה והתשלום המגיע לכם בכל סוג עבודה, ובשורת הסיכום למעלה, תוכלו לראות את סך שעות העבודה והשכר שלכם ליום הנוכחי, וכן את סך כל שעות העבודה והשכר המגיע לכם עד כה."]
[null,{"$f":"IF(שעות_עבודה7[[#This Row],[תאריך]]=\"\",\"\",ROW(A49))","v":""},null,null,null,null,{"$f":"IF(שעות_עבודה7[[#This Row],[התחלה]]=\"\",\"\",\nIF(שעות_עבודה7[[#This Row],[התחלה]]>שעות_עבודה7[[#This Row],[סיום]],\"\",\nשעות_עבודה7[[#This Row],[סיום]]-שעות_עבודה7[[#This Row],[התחלה]]))","v":""},{"$f":"IF(שעות_עבודה7[[#This Row],[שעות]]=\"\",\"\",\nIF(SUMPRODUCT((שעות_עבודה7[[#This Row],[העבודה]]=תעריפים_וסיכום8[שמות העבודות])*שעות_עבודה7[[#This Row],[שעות]]*(תעריפים_וסיכום8[שכר לשעה]*24))=0,\"\",\nSUMPRODUCT((שעות_עבודה7[[#This Row],[העבודה]]=תעריפים_וסיכום8[שמות העבודות])*שעות_עבודה7[[#This Row],[שעות]]*(תעריפים_וסיכום8[שכר לשעה]*24))))","v":""}]
[null,{"$f":"IF(שעות_עבודה7[[#This Row],[תאריך]]=\"\",\"\",ROW(A50))","v":""},null,null,null,null,{"$f":"IF(שעות_עבודה7[[#This Row],[התחלה]]=\"\",\"\",\nIF(שעות_עבודה7[[#This Row],[התחלה]]>שעות_עבודה7[[#This Row],[סיום]],\"\",\nשעות_עבודה7[[#This Row],[סיום]]-שעות_עבודה7[[#This Row],[התחלה]]))","v":""},{"$f":"IF(שעות_עבודה7[[#This Row],[שעות]]=\"\",\"\",\nIF(SUMPRODUCT((שעות_עבודה7[[#This Row],[העבודה]]=תעריפים_וסיכום8[שמות העבודות])*שעות_עבודה7[[#This Row],[שעות]]*(תעריפים_וסיכום8[שכר לשעה]*24))=0,\"\",\nSUMPRODUCT((שעות_עבודה7[[#This Row],[העבודה]]=תעריפים_וסיכום8[שמות העבודות])*שעות_עבודה7[[#This Row],[שעות]]*(תעריפים_וסיכום8[שכר לשעה]*24))))","v":""}]
[null,{"$f":"IF(שעות_עבודה7[[#This Row],[תאריך]]=\"\",\"\",ROW(A51))","v":""},null,null,null,null,{"$f":"IF(שעות_עבודה7[[#This Row],[התחלה]]=\"\",\"\",\nIF(שעות_עבודה7[[#This Row],[התחלה]]>שעות_עבודה7[[#This Row],[סיום]],\"\",\nשעות_עבודה7[[#This Row],[סיום]]-שעות_עבודה7[[#This Row],[התחלה]]))","v":""},{"$f":"IF(שעות_עבודה7[[#This Row],[שעות]]=\"\",\"\",\nIF(SUMPRODUCT((שעות_עבודה7[[#This Row],[העבודה]]=תעריפים_וסיכום8[שמות העבודות])*שעות_עבודה7[[#This Row],[שעות]]*(תעריפים_וסיכום8[שכר לשעה]*24))=0,\"\",\nSUMPRODUCT((שעות_עבודה7[[#This Row],[העבודה]]=תעריפים_וסיכום8[שמות העבודות])*שעות_עבודה7[[#This Row],[שעות]]*(תעריפים_וסיכום8[שכר לשעה]*24))))","v":""}]
[null,{"$f":"IF(שעות_עבודה7[[#This Row],[תאריך]]=\"\",\"\",ROW(A52))","v":""},null,null,null,null,{"$f":"IF(שעות_עבודה7[[#This Row],[התחלה]]=\"\",\"\",\nIF(שעות_עבודה7[[#This Row],[התחלה]]>שעות_עבודה7[[#This Row],[סיום]],\"\",\nשעות_עבודה7[[#This Row],[סיום]]-שעות_עבודה7[[#This Row],[התחלה]]))","v":""},{"$f":"IF(שעות_עבודה7[[#This Row],[שעות]]=\"\",\"\",\nIF(SUMPRODUCT((שעות_עבודה7[[#This Row],[העבודה]]=תעריפים_וסיכום8[שמות העבודות])*שעות_עבודה7[[#This Row],[שעות]]*(תעריפים_וסיכום8[שכר לשעה]*24))=0,\"\",\nSUMPRODUCT((שעות_עבודה7[[#This Row],[העבודה]]=תעריפים_וסיכום8[שמות העבודות])*שעות_עבודה7[[#This Row],[שעות]]*(תעריפים_וסיכום8[שכר לשעה]*24))))","v":""},null,null,"אופציה נוספת- שימוש בהקלקה כפולה בתוך טבלת העדכון, הקלקה כפולה על התא הראשון הפנוי שבעמודה הראשונה- עמודת ה'תאריך' תעדכן לכם את שעת ופרטי ההתחלה כמו בלחיצה על פקד ה'התחלה', הקלקה כפולה על התא הראשון הפנוי שבעמודת 'סיום' תעדכן לכם את שעת הסיום כמו בלחיצה על 'סוף', ובעמודת 'העבודה' באפשרותכם להקליק הקלקה כפולה על התא בכדי להעתיק את שם העבודה הקיים בתא שלמעלה ממנו בעבודה הקודמת גם לתא הזה, או להיכנס לסמן שמצד שמאל של התא ותפתח לפניכם רשימת העבודות לבחירה מתוכם."]
[null,{"$f":"IF(שעות_עבודה7[[#This Row],[תאריך]]=\"\",\"\",ROW(A53))","v":""},null,null,null,null,{"$f":"IF(שעות_עבודה7[[#This Row],[התחלה]]=\"\",\"\",\nIF(שעות_עבודה7[[#This Row],[התחלה]]>שעות_עבודה7[[#This Row],[סיום]],\"\",\nשעות_עבודה7[[#This Row],[סיום]]-שעות_עבודה7[[#This Row],[התחלה]]))","v":""},{"$f":"IF(שעות_עבודה7[[#This Row],[שעות]]=\"\",\"\",\nIF(SUMPRODUCT((שעות_עבודה7[[#This Row],[העבודה]]=תעריפים_וסיכום8[שמות העבודות])*שעות_עבודה7[[#This Row],[שעות]]*(תעריפים_וסיכום8[שכר לשעה]*24))=0,\"\",\nSUMPRODUCT((שעות_עבודה7[[#This Row],[העבודה]]=תעריפים_וסיכום8[שמות העבודות])*שעות_עבודה7[[#This Row],[שעות]]*(תעריפים_וסיכום8[שכר לשעה]*24))))","v":""}]
[null,{"$f":"IF(שעות_עבודה7[[#This Row],[תאריך]]=\"\",\"\",ROW(A54))","v":""},null,null,null,null,{"$f":"IF(שעות_עבודה7[[#This Row],[התחלה]]=\"\",\"\",\nIF(שעות_עבודה7[[#This Row],[התחלה]]>שעות_עבודה7[[#This Row],[סיום]],\"\",\nשעות_עבודה7[[#This Row],[סיום]]-שעות_עבודה7[[#This Row],[התחלה]]))","v":""},{"$f":"IF(שעות_עבודה7[[#This Row],[שעות]]=\"\",\"\",\nIF(SUMPRODUCT((שעות_עבודה7[[#This Row],[העבודה]]=תעריפים_וסיכום8[שמות העבודות])*שעות_עבודה7[[#This Row],[שעות]]*(תעריפים_וסיכום8[שכר לשעה]*24))=0,\"\",\nSUMPRODUCT((שעות_עבודה7[[#This Row],[העבודה]]=תעריפים_וסיכום8[שמות העבודות])*שעות_עבודה7[[#This Row],[שעות]]*(תעריפים_וסיכום8[שכר לשעה]*24))))","v":""}]
[null,{"$f":"IF(שעות_עבודה7[[#This Row],[תאריך]]=\"\",\"\",ROW(A55))","v":""},null,null,null,null,{"$f":"IF(שעות_עבודה7[[#This Row],[התחלה]]=\"\",\"\",\nIF(שעות_עבודה7[[#This Row],[התחלה]]>שעות_עבודה7[[#This Row],[סיום]],\"\",\nשעות_עבודה7[[#This Row],[סיום]]-שעות_עבודה7[[#This Row],[התחלה]]))","v":""},{"$f":"IF(שעות_עבודה7[[#This Row],[שעות]]=\"\",\"\",\nIF(SUMPRODUCT((שעות_עבודה7[[#This Row],[העבודה]]=תעריפים_וסיכום8[שמות העבודות])*שעות_עבודה7[[#This Row],[שעות]]*(תעריפים_וסיכום8[שכר לשעה]*24))=0,\"\",\nSUMPRODUCT((שעות_עבודה7[[#This Row],[העבודה]]=תעריפים_וסיכום8[שמות העבודות])*שעות_עבודה7[[#This Row],[שעות]]*(תעריפים_וסיכום8[שכר לשעה]*24))))","v":""}]
[null,{"$f":"IF(שעות_עבודה7[[#This Row],[תאריך]]=\"\",\"\",ROW(A56))","v":""},null,null,null,null,{"$f":"IF(שעות_עבודה7[[#This Row],[התחלה]]=\"\",\"\",\nIF(שעות_עבודה7[[#This Row],[התחלה]]>שעות_עבודה7[[#This Row],[סיום]],\"\",\nשעות_עבודה7[[#This Row],[סיום]]-שעות_עבודה7[[#This Row],[התחלה]]))","v":""},{"$f":"IF(שעות_עבודה7[[#This Row],[שעות]]=\"\",\"\",\nIF(SUMPRODUCT((שעות_עבודה7[[#This Row],[העבודה]]=תעריפים_וסיכום8[שמות העבודות])*שעות_עבודה7[[#This Row],[שעות]]*(תעריפים_וסיכום8[שכר לשעה]*24))=0,\"\",\nSUMPRODUCT((שעות_עבודה7[[#This Row],[העבודה]]=תעריפים_וסיכום8[שמות העבודות])*שעות_עבודה7[[#This Row],[שעות]]*(תעריפים_וסיכום8[שכר לשעה]*24))))","v":""}]
[null,{"$f":"IF(שעות_עבודה7[[#This Row],[תאריך]]=\"\",\"\",ROW(A57))","v":""},null,null,null,null,{"$f":"IF(שעות_עבודה7[[#This Row],[התחלה]]=\"\",\"\",\nIF(שעות_עבודה7[[#This Row],[התחלה]]>שעות_עבודה7[[#This Row],[סיום]],\"\",\nשעות_עבודה7[[#This Row],[סיום]]-שעות_עבודה7[[#This Row],[התחלה]]))","v":""},{"$f":"IF(שעות_עבודה7[[#This Row],[שעות]]=\"\",\"\",\nIF(SUMPRODUCT((שעות_עבודה7[[#This Row],[העבודה]]=תעריפים_וסיכום8[שמות העבודות])*שעות_עבודה7[[#This Row],[שעות]]*(תעריפים_וסיכום8[שכר לשעה]*24))=0,\"\",\nSUMPRODUCT((שעות_עבודה7[[#This Row],[העבודה]]=תעריפים_וסיכום8[שמות העבודות])*שעות_עבודה7[[#This Row],[שעות]]*(תעריפים_וסיכום8[שכר לשעה]*24))))","v":""}]
[null,{"$f":"IF(שעות_עבודה7[[#This Row],[תאריך]]=\"\",\"\",ROW(A58))","v":""},null,null,null,null,{"$f":"IF(שעות_עבודה7[[#This Row],[התחלה]]=\"\",\"\",\nIF(שעות_עבודה7[[#This Row],[התחלה]]>שעות_עבודה7[[#This Row],[סיום]],\"\",\nשעות_עבודה7[[#This Row],[סיום]]-שעות_עבודה7[[#This Row],[התחלה]]))","v":""},{"$f":"IF(שעות_עבודה7[[#This Row],[שעות]]=\"\",\"\",\nIF(SUMPRODUCT((שעות_עבודה7[[#This Row],[העבודה]]=תעריפים_וסיכום8[שמות העבודות])*שעות_עבודה7[[#This Row],[שעות]]*(תעריפים_וסיכום8[שכר לשעה]*24))=0,\"\",\nSUMPRODUCT((שעות_עבודה7[[#This Row],[העבודה]]=תעריפים_וסיכום8[שמות העבודות])*שעות_עבודה7[[#This Row],[שעות]]*(תעריפים_וסיכום8[שכר לשעה]*24))))","v":""},null,null,"אופציה זו שימושית יותר כאשר אתם רוצים לעדכן שעת התחלה או סוף שכבר הזנתם לשעה הנוכחית, כגון שעדכנתם שעת התחלה ולבסוף עדיין לא התחלתם, אז כשאתם רוצים להתחיל באפשרותכם לגשת על תא התאריך בשורה שאתם רוצים לעדכן להקליק עליו פעמיים והוא יתעדכן לכם מחדש לשעה הנוכחית, וכמו כן בעדכון שעת סיום באופן שהמשכתם בעבודה לאחר עדכון הסיום."]
[null,{"$f":"IF(שעות_עבודה7[[#This Row],[תאריך]]=\"\",\"\",ROW(A59))","v":""},null,null,null,null,{"$f":"IF(שעות_עבודה7[[#This Row],[התחלה]]=\"\",\"\",\nIF(שעות_עבודה7[[#This Row],[התחלה]]>שעות_עבודה7[[#This Row],[סיום]],\"\",\nשעות_עבודה7[[#This Row],[סיום]]-שעות_עבודה7[[#This Row],[התחלה]]))","v":""},{"$f":"IF(שעות_עבודה7[[#This Row],[שעות]]=\"\",\"\",\nIF(SUMPRODUCT((שעות_עבודה7[[#This Row],[העבודה]]=תעריפים_וסיכום8[שמות העבודות])*שעות_עבודה7[[#This Row],[שעות]]*(תעריפים_וסיכום8[שכר לשעה]*24))=0,\"\",\nSUMPRODUCT((שעות_עבודה7[[#This Row],[העבודה]]=תעריפים_וסיכום8[שמות העבודות])*שעות_עבודה7[[#This Row],[שעות]]*(תעריפים_וסיכום8[שכר לשעה]*24))))","v":""}]
[null,{"$f":"IF(שעות_עבודה7[[#This Row],[תאריך]]=\"\",\"\",ROW(A60))","v":""},null,null,null,null,{"$f":"IF(שעות_עבודה7[[#This Row],[התחלה]]=\"\",\"\",\nIF(שעות_עבודה7[[#This Row],[התחלה]]>שעות_עבודה7[[#This Row],[סיום]],\"\",\nשעות_עבודה7[[#This Row],[סיום]]-שעות_עבודה7[[#This Row],[התחלה]]))","v":""},{"$f":"IF(שעות_עבודה7[[#This Row],[שעות]]=\"\",\"\",\nIF(SUMPRODUCT((שעות_עבודה7[[#This Row],[העבודה]]=תעריפים_וסיכום8[שמות העבודות])*שעות_עבודה7[[#This Row],[שעות]]*(תעריפים_וסיכום8[שכר לשעה]*24))=0,\"\",\nSUMPRODUCT((שעות_עבודה7[[#This Row],[העבודה]]=תעריפים_וסיכום8[שמות העבודות])*שעות_עבודה7[[#This Row],[שעות]]*(תעריפים_וסיכום8[שכר לשעה]*24))))","v":""}]
[null,{"$f":"IF(שעות_עבודה7[[#This Row],[תאריך]]=\"\",\"\",ROW(A61))","v":""},null,null,null,null,{"$f":"IF(שעות_עבודה7[[#This Row],[התחלה]]=\"\",\"\",\nIF(שעות_עבודה7[[#This Row],[התחלה]]>שעות_עבודה7[[#This Row],[סיום]],\"\",\nשעות_עבודה7[[#This Row],[סיום]]-שעות_עבודה7[[#This Row],[התחלה]]))","v":""},{"$f":"IF(שעות_עבודה7[[#This Row],[שעות]]=\"\",\"\",\nIF(SUMPRODUCT((שעות_עבודה7[[#This Row],[העבודה]]=תעריפים_וסיכום8[שמות העבודות])*שעות_עבודה7[[#This Row],[שעות]]*(תעריפים_וסיכום8[שכר לשעה]*24))=0,\"\",\nSUMPRODUCT((שעות_עבודה7[[#This Row],[העבודה]]=תעריפים_וסיכום8[שמות העבודות])*שעות_עבודה7[[#This Row],[שעות]]*(תעריפים_וסיכום8[שכר לשעה]*24))))","v":""}]
[null,{"$f":"IF(שעות_עבודה7[[#This Row],[תאריך]]=\"\",\"\",ROW(A62))","v":""},null,null,null,null,{"$f":"IF(שעות_עבודה7[[#This Row],[התחלה]]=\"\",\"\",\nIF(שעות_עבודה7[[#This Row],[התחלה]]>שעות_עבודה7[[#This Row],[סיום]],\"\",\nשעות_עבודה7[[#This Row],[סיום]]-שעות_עבודה7[[#This Row],[התחלה]]))","v":""},{"$f":"IF(שעות_עבודה7[[#This Row],[שעות]]=\"\",\"\",\nIF(SUMPRODUCT((שעות_עבודה7[[#This Row],[העבודה]]=תעריפים_וסיכום8[שמות העבודות])*שעות_עבודה7[[#This Row],[שעות]]*(תעריפים_וסיכום8[שכר לשעה]*24))=0,\"\",\nSUMPRODUCT((שעות_עבודה7[[#This Row],[העבודה]]=תעריפים_וסיכום8[שמות העבודות])*שעות_עבודה7[[#This Row],[שעות]]*(תעריפים_וסיכום8[שכר לשעה]*24))))","v":""},null,null,"פקד 'בטל' יציג לכם הודעה האם ברצונכם למחוק את התוכן שהזנתם לתוך שורת העבודה האחרונה שקיימת בטבלת העדכון, ובהקשה על 'אישור' היא תימחק."]
[null,{"$f":"IF(שעות_עבודה7[[#This Row],[תאריך]]=\"\",\"\",ROW(A63))","v":""},null,null,null,null,{"$f":"IF(שעות_עבודה7[[#This Row],[התחלה]]=\"\",\"\",\nIF(שעות_עבודה7[[#This Row],[התחלה]]>שעות_עבודה7[[#This Row],[סיום]],\"\",\nשעות_עבודה7[[#This Row],[סיום]]-שעות_עבודה7[[#This Row],[התחלה]]))","v":""},{"$f":"IF(שעות_עבודה7[[#This Row],[שעות]]=\"\",\"\",\nIF(SUMPRODUCT((שעות_עבודה7[[#This Row],[העבודה]]=תעריפים_וסיכום8[שמות העבודות])*שעות_עבודה7[[#This Row],[שעות]]*(תעריפים_וסיכום8[שכר לשעה]*24))=0,\"\",\nSUMPRODUCT((שעות_עבודה7[[#This Row],[העבודה]]=תעריפים_וסיכום8[שמות העבודות])*שעות_עבודה7[[#This Row],[שעות]]*(תעריפים_וסיכום8[שכר לשעה]*24))))","v":""}]
[null,{"$f":"IF(שעות_עבודה7[[#This Row],[תאריך]]=\"\",\"\",ROW(A64))","v":""},null,null,null,null,{"$f":"IF(שעות_עבודה7[[#This Row],[התחלה]]=\"\",\"\",\nIF(שעות_עבודה7[[#This Row],[התחלה]]>שעות_עבודה7[[#This Row],[סיום]],\"\",\nשעות_עבודה7[[#This Row],[סיום]]-שעות_עבודה7[[#This Row],[התחלה]]))","v":""},{"$f":"IF(שעות_עבודה7[[#This Row],[שעות]]=\"\",\"\",\nIF(SUMPRODUCT((שעות_עבודה7[[#This Row],[העבודה]]=תעריפים_וסיכום8[שמות העבודות])*שעות_עבודה7[[#This Row],[שעות]]*(תעריפים_וסיכום8[שכר לשעה]*24))=0,\"\",\nSUMPRODUCT((שעות_עבודה7[[#This Row],[העבודה]]=תעריפים_וסיכום8[שמות העבודות])*שעות_עבודה7[[#This Row],[שעות]]*(תעריפים_וסיכום8[שכר לשעה]*24))))","v":""},null,null,"פעולות נוספות"]
[null,{"$f":"IF(שעות_עבודה7[[#This Row],[תאריך]]=\"\",\"\",ROW(A65))","v":""},null,null,null,null,{"$f":"IF(שעות_עבודה7[[#This Row],[התחלה]]=\"\",\"\",\nIF(שעות_עבודה7[[#This Row],[התחלה]]>שעות_עבודה7[[#This Row],[סיום]],\"\",\nשעות_עבודה7[[#This Row],[סיום]]-שעות_עבודה7[[#This Row],[התחלה]]))","v":""},{"$f":"IF(שעות_עבודה7[[#This Row],[שעות]]=\"\",\"\",\nIF(SUMPRODUCT((שעות_עבודה7[[#This Row],[העבודה]]=תעריפים_וסיכום8[שמות העבודות])*שעות_עבודה7[[#This Row],[שעות]]*(תעריפים_וסיכום8[שכר לשעה]*24))=0,\"\",\nSUMPRODUCT((שעות_עבודה7[[#This Row],[העבודה]]=תעריפים_וסיכום8[שמות העבודות])*שעות_עבודה7[[#This Row],[שעות]]*(תעריפים_וסיכום8[שכר לשעה]*24))))","v":""},null,null,"פקד 'שמירה' נותן 2 מצבים, בלחיצה עליו תקבלו הודעה שמופעל מצב שמירה אוטומטית אחרי כל פעולה, ובלחיצה נוספת עליו תקבלו הודעה שמצב שמירה אוטומטית מושבת והשמירה תתבצע רק עם סגירת ושמירת הקובץ."]
[null,{"$f":"IF(שעות_עבודה7[[#This Row],[תאריך]]=\"\",\"\",ROW(A66))","v":""},null,null,null,null,{"$f":"IF(שעות_עבודה7[[#This Row],[התחלה]]=\"\",\"\",\nIF(שעות_עבודה7[[#This Row],[התחלה]]>שעות_עבודה7[[#This Row],[סיום]],\"\",\nשעות_עבודה7[[#This Row],[סיום]]-שעות_עבודה7[[#This Row],[התחלה]]))","v":""},{"$f":"IF(שעות_עבודה7[[#This Row],[שעות]]=\"\",\"\",\nIF(SUMPRODUCT((שעות_עבודה7[[#This Row],[העבודה]]=תעריפים_וסיכום8[שמות העבודות])*שעות_עבודה7[[#This Row],[שעות]]*(תעריפים_וסיכום8[שכר לשעה]*24))=0,\"\",\nSUMPRODUCT((שעות_עבודה7[[#This Row],[העבודה]]=תעריפים_וסיכום8[שמות העבודות])*שעות_עבודה7[[#This Row],[שעות]]*(תעריפים_וסיכום8[שכר לשעה]*24))))","v":""}]
[null,{"$f":"IF(שעות_עבודה7[[#This Row],[תאריך]]=\"\",\"\",ROW(A67))","v":""},null,null,null,null,{"$f":"IF(שעות_עבודה7[[#This Row],[התחלה]]=\"\",\"\",\nIF(שעות_עבודה7[[#This Row],[התחלה]]>שעות_עבודה7[[#This Row],[סיום]],\"\",\nשעות_עבודה7[[#This Row],[סיום]]-שעות_עבודה7[[#This Row],[התחלה]]))","v":""},{"$f":"IF(שעות_עבודה7[[#This Row],[שעות]]=\"\",\"\",\nIF(SUMPRODUCT((שעות_עבודה7[[#This Row],[העבודה]]=תעריפים_וסיכום8[שמות העבודות])*שעות_עבודה7[[#This Row],[שעות]]*(תעריפים_וסיכום8[שכר לשעה]*24))=0,\"\",\nSUMPRODUCT((שעות_עבודה7[[#This Row],[העבודה]]=תעריפים_וסיכום8[שמות העבודות])*שעות_עבודה7[[#This Row],[שעות]]*(תעריפים_וסיכום8[שכר לשעה]*24))))","v":""}]
[null,{"$f":"IF(שעות_עבודה7[[#This Row],[תאריך]]=\"\",\"\",ROW(A68))","v":""},null,null,null,null,{"$f":"IF(שעות_עבודה7[[#This Row],[התחלה]]=\"\",\"\",\nIF(שעות_עבודה7[[#This Row],[התחלה]]>שעות_עבודה7[[#This Row],[סיום]],\"\",\nשעות_עבודה7[[#This Row],[סיום]]-שעות_עבודה7[[#This Row],[התחלה]]))","v":""},{"$f":"IF(שעות_עבודה7[[#This Row],[שעות]]=\"\",\"\",\nIF(SUMPRODUCT((שעות_עבודה7[[#This Row],[העבודה]]=תעריפים_וסיכום8[שמות העבודות])*שעות_עבודה7[[#This Row],[שעות]]*(תעריפים_וסיכום8[שכר לשעה]*24))=0,\"\",\nSUMPRODUCT((שעות_עבודה7[[#This Row],[העבודה]]=תעריפים_וסיכום8[שמות העבודות])*שעות_עבודה7[[#This Row],[שעות]]*(תעריפים_וסיכום8[שכר לשעה]*24))))","v":""},null,null,"פקד 'צור גליון חדש' נועד כשנגמר לכם המקום בטבלת העדכון (לאחר 200 שורות), או סתם כשאתם רוצים ליצור גיליון חדש ריק בקובץ האקסל, בלחיצה עליו תתבקשו להזין שם לגיליון החדש, ואחר כך בלחיצה על 'OK' יתווסף לכם אוטומטית גיליון חדש ריק לצד הגיליון הנוכחי, אליו תוכלו להגיע דרך לשוניות הגילונות למטה מימין."]
[null,{"$f":"IF(שעות_עבודה7[[#This Row],[תאריך]]=\"\",\"\",ROW(A69))","v":""},null,null,null,null,{"$f":"IF(שעות_עבודה7[[#This Row],[התחלה]]=\"\",\"\",\nIF(שעות_עבודה7[[#This Row],[התחלה]]>שעות_עבודה7[[#This Row],[סיום]],\"\",\nשעות_עבודה7[[#This Row],[סיום]]-שעות_עבודה7[[#This Row],[התחלה]]))","v":""},{"$f":"IF(שעות_עבודה7[[#This Row],[שעות]]=\"\",\"\",\nIF(SUMPRODUCT((שעות_עבודה7[[#This Row],[העבודה]]=תעריפים_וסיכום8[שמות העבודות])*שעות_עבודה7[[#This Row],[שעות]]*(תעריפים_וסיכום8[שכר לשעה]*24))=0,\"\",\nSUMPRODUCT((שעות_עבודה7[[#This Row],[העבודה]]=תעריפים_וסיכום8[שמות העבודות])*שעות_עבודה7[[#This Row],[שעות]]*(תעריפים_וסיכום8[שכר לשעה]*24))))","v":""}]
[null,{"$f":"IF(שעות_עבודה7[[#This Row],[תאריך]]=\"\",\"\",ROW(A70))","v":""},null,null,null,null,{"$f":"IF(שעות_עבודה7[[#This Row],[התחלה]]=\"\",\"\",\nIF(שעות_עבודה7[[#This Row],[התחלה]]>שעות_עבודה7[[#This Row],[סיום]],\"\",\nשעות_עבודה7[[#This Row],[סיום]]-שעות_עבודה7[[#This Row],[התחלה]]))","v":""},{"$f":"IF(שעות_עבודה7[[#This Row],[שעות]]=\"\",\"\",\nIF(SUMPRODUCT((שעות_עבודה7[[#This Row],[העבודה]]=תעריפים_וסיכום8[שמות העבודות])*שעות_עבודה7[[#This Row],[שעות]]*(תעריפים_וסיכום8[שכר לשעה]*24))=0,\"\",\nSUMPRODUCT((שעות_עבודה7[[#This Row],[העבודה]]=תעריפים_וסיכום8[שמות העבודות])*שעות_עבודה7[[#This Row],[שעות]]*(תעריפים_וסיכום8[שכר לשעה]*24))))","v":""}]
[null,{"$f":"IF(שעות_עבודה7[[#This Row],[תאריך]]=\"\",\"\",ROW(A71))","v":""},null,null,null,null,{"$f":"IF(שעות_עבודה7[[#This Row],[התחלה]]=\"\",\"\",\nIF(שעות_עבודה7[[#This Row],[התחלה]]>שעות_עבודה7[[#This Row],[סיום]],\"\",\nשעות_עבודה7[[#This Row],[סיום]]-שעות_עבודה7[[#This Row],[התחלה]]))","v":""},{"$f":"IF(שעות_עבודה7[[#This Row],[שעות]]=\"\",\"\",\nIF(SUMPRODUCT((שעות_עבודה7[[#This Row],[העבודה]]=תעריפים_וסיכום8[שמות העבודות])*שעות_עבודה7[[#This Row],[שעות]]*(תעריפים_וסיכום8[שכר לשעה]*24))=0,\"\",\nSUMPRODUCT((שעות_עבודה7[[#This Row],[העבודה]]=תעריפים_וסיכום8[שמות העבודות])*שעות_עבודה7[[#This Row],[שעות]]*(תעריפים_וסיכום8[שכר לשעה]*24))))","v":""}]
[null,{"$f":"IF(שעות_עבודה7[[#This Row],[תאריך]]=\"\",\"\",ROW(A72))","v":""},null,null,null,null,{"$f":"IF(שעות_עבודה7[[#This Row],[התחלה]]=\"\",\"\",\nIF(שעות_עבודה7[[#This Row],[התחלה]]>שעות_עבודה7[[#This Row],[סיום]],\"\",\nשעות_עבודה7[[#This Row],[סיום]]-שעות_עבודה7[[#This Row],[התחלה]]))","v":""},{"$f":"IF(שעות_עבודה7[[#This Row],[שעות]]=\"\",\"\",\nIF(SUMPRODUCT((שעות_עבודה7[[#This Row],[העבודה]]=תעריפים_וסיכום8[שמות העבודות])*שעות_עבודה7[[#This Row],[שעות]]*(תעריפים_וסיכום8[שכר לשעה]*24))=0,\"\",\nSUMPRODUCT((שעות_עבודה7[[#This Row],[העבודה]]=תעריפים_וסיכום8[שמות העבודות])*שעות_עבודה7[[#This Row],[שעות]]*(תעריפים_וסיכום8[שכר לשעה]*24))))","v":""},null,null,"פקד 'ניקוי הנתונים' נועד כשברצונכם לנקות את כל הנתונים שהזנתם לגיליון הנוכחי כולל שמות העבודות והיעד החודשי, בלחיצה עליו תקבלו הודעה האם ברצונכם לנקות את כל הנתונים מהגיליון, וב'אישור' ימחקו כל הנתונים, כמובן שהעיצוב והנוסחאות ישארו ותוכלו להזין נתונים חדשים."]
[null,{"$f":"IF(שעות_עבודה7[[#This Row],[תאריך]]=\"\",\"\",ROW(A73))","v":""},null,null,null,null,{"$f":"IF(שעות_עבודה7[[#This Row],[התחלה]]=\"\",\"\",\nIF(שעות_עבודה7[[#This Row],[התחלה]]>שעות_עבודה7[[#This Row],[סיום]],\"\",\nשעות_עבודה7[[#This Row],[סיום]]-שעות_עבודה7[[#This Row],[התחלה]]))","v":""},{"$f":"IF(שעות_עבודה7[[#This Row],[שעות]]=\"\",\"\",\nIF(SUMPRODUCT((שעות_עבודה7[[#This Row],[העבודה]]=תעריפים_וסיכום8[שמות העבודות])*שעות_עבודה7[[#This Row],[שעות]]*(תעריפים_וסיכום8[שכר לשעה]*24))=0,\"\",\nSUMPRODUCT((שעות_עבודה7[[#This Row],[העבודה]]=תעריפים_וסיכום8[שמות העבודות])*שעות_עבודה7[[#This Row],[שעות]]*(תעריפים_וסיכום8[שכר לשעה]*24))))","v":""}]
[null,{"$f":"IF(שעות_עבודה7[[#This Row],[תאריך]]=\"\",\"\",ROW(A74))","v":""},null,null,null,null,{"$f":"IF(שעות_עבודה7[[#This Row],[התחלה]]=\"\",\"\",\nIF(שעות_עבודה7[[#This Row],[התחלה]]>שעות_עבודה7[[#This Row],[סיום]],\"\",\nשעות_עבודה7[[#This Row],[סיום]]-שעות_עבודה7[[#This Row],[התחלה]]))","v":""},{"$f":"IF(שעות_עבודה7[[#This Row],[שעות]]=\"\",\"\",\nIF(SUMPRODUCT((שעות_עבודה7[[#This Row],[העבודה]]=תעריפים_וסיכום8[שמות העבודות])*שעות_עבודה7[[#This Row],[שעות]]*(תעריפים_וסיכום8[שכר לשעה]*24))=0,\"\",\nSUMPRODUCT((שעות_עבודה7[[#This Row],[העבודה]]=תעריפים_וסיכום8[שמות העבודות])*שעות_עבודה7[[#This Row],[שעות]]*(תעריפים_וסיכום8[שכר לשעה]*24))))","v":""}]
[null,{"$f":"IF(שעות_עבודה7[[#This Row],[תאריך]]=\"\",\"\",ROW(A75))","v":""},null,null,null,null,{"$f":"IF(שעות_עבודה7[[#This Row],[התחלה]]=\"\",\"\",\nIF(שעות_עבודה7[[#This Row],[התחלה]]>שעות_עבודה7[[#This Row],[סיום]],\"\",\nשעות_עבודה7[[#This Row],[סיום]]-שעות_עבודה7[[#This Row],[התחלה]]))","v":""},{"$f":"IF(שעות_עבודה7[[#This Row],[שעות]]=\"\",\"\",\nIF(SUMPRODUCT((שעות_עבודה7[[#This Row],[העבודה]]=תעריפים_וסיכום8[שמות העבודות])*שעות_עבודה7[[#This Row],[שעות]]*(תעריפים_וסיכום8[שכר לשעה]*24))=0,\"\",\nSUMPRODUCT((שעות_עבודה7[[#This Row],[העבודה]]=תעריפים_וסיכום8[שמות העבודות])*שעות_עבודה7[[#This Row],[שעות]]*(תעריפים_וסיכום8[שכר לשעה]*24))))","v":""},null,null,"יעד חודשי- בשורת הסיכום ישנה אפשרות ליצור יעד חודשי, בתא שמתחת הכותרת 'יעד חודשי' תוכלו להזין את הסכום אליו תרצו להגיע החודש, ובתא שמימינו שתחת הכותרת 'אחוזים מהיעד' יוצגו לכם האחוזים בהם אתם אוחזים כעת ביחס ליעד הסופי שלכם."]
[null,{"$f":"IF(שעות_עבודה7[[#This Row],[תאריך]]=\"\",\"\",ROW(A76))","v":""},null,null,null,null,{"$f":"IF(שעות_עבודה7[[#This Row],[התחלה]]=\"\",\"\",\nIF(שעות_עבודה7[[#This Row],[התחלה]]>שעות_עבודה7[[#This Row],[סיום]],\"\",\nשעות_עבודה7[[#This Row],[סיום]]-שעות_עבודה7[[#This Row],[התחלה]]))","v":""},{"$f":"IF(שעות_עבודה7[[#This Row],[שעות]]=\"\",\"\",\nIF(SUMPRODUCT((שעות_עבודה7[[#This Row],[העבודה]]=תעריפים_וסיכום8[שמות העבודות])*שעות_עבודה7[[#This Row],[שעות]]*(תעריפים_וסיכום8[שכר לשעה]*24))=0,\"\",\nSUMPRODUCT((שעות_עבודה7[[#This Row],[העבודה]]=תעריפים_וסיכום8[שמות העבודות])*שעות_עבודה7[[#This Row],[שעות]]*(תעריפים_וסיכום8[שכר לשעה]*24))))","v":""}]
[null,{"$f":"IF(שעות_עבודה7[[#This Row],[תאריך]]=\"\",\"\",ROW(A77))","v":""},null,null,null,null,{"$f":"IF(שעות_עבודה7[[#This Row],[התחלה]]=\"\",\"\",\nIF(שעות_עבודה7[[#This Row],[התחלה]]>שעות_עבודה7[[#This Row],[סיום]],\"\",\nשעות_עבודה7[[#This Row],[סיום]]-שעות_עבודה7[[#This Row],[התחלה]]))","v":""},{"$f":"IF(שעות_עבודה7[[#This Row],[שעות]]=\"\",\"\",\nIF(SUMPRODUCT((שעות_עבודה7[[#This Row],[העבודה]]=תעריפים_וסיכום8[שמות העבודות])*שעות_עבודה7[[#This Row],[שעות]]*(תעריפים_וסיכום8[שכר לשעה]*24))=0,\"\",\nSUMPRODUCT((שעות_עבודה7[[#This Row],[העבודה]]=תעריפים_וסיכום8[שמות העבודות])*שעות_עבודה7[[#This Row],[שעות]]*(תעריפים_וסיכום8[שכר לשעה]*24))))","v":""}]
[null,{"$f":"IF(שעות_עבודה7[[#This Row],[תאריך]]=\"\",\"\",ROW(A78))","v":""},null,null,null,null,{"$f":"IF(שעות_עבודה7[[#This Row],[התחלה]]=\"\",\"\",\nIF(שעות_עבודה7[[#This Row],[התחלה]]>שעות_עבודה7[[#This Row],[סיום]],\"\",\nשעות_עבודה7[[#This Row],[סיום]]-שעות_עבודה7[[#This Row],[התחלה]]))","v":""},{"$f":"IF(שעות_עבודה7[[#This Row],[שעות]]=\"\",\"\",\nIF(SUMPRODUCT((שעות_עבודה7[[#This Row],[העבודה]]=תעריפים_וסיכום8[שמות העבודות])*שעות_עבודה7[[#This Row],[שעות]]*(תעריפים_וסיכום8[שכר לשעה]*24))=0,\"\",\nSUMPRODUCT((שעות_עבודה7[[#This Row],[העבודה]]=תעריפים_וסיכום8[שמות העבודות])*שעות_עבודה7[[#This Row],[שעות]]*(תעריפים_וסיכום8[שכר לשעה]*24))))","v":""},null,null,"עמודות ההערות ב-2 הטבלאות מיועדות לכתיבת טקסט חופשי."]
[null,{"$f":"IF(שעות_עבודה7[[#This Row],[תאריך]]=\"\",\"\",ROW(A79))","v":""},null,null,null,null,{"$f":"IF(שעות_עבודה7[[#This Row],[התחלה]]=\"\",\"\",\nIF(שעות_עבודה7[[#This Row],[התחלה]]>שעות_עבודה7[[#This Row],[סיום]],\"\",\nשעות_עבודה7[[#This Row],[סיום]]-שעות_עבודה7[[#This Row],[התחלה]]))","v":""},{"$f":"IF(שעות_עבודה7[[#This Row],[שעות]]=\"\",\"\",\nIF(SUMPRODUCT((שעות_עבודה7[[#This Row],[העבודה]]=תעריפים_וסיכום8[שמות העבודות])*שעות_עבודה7[[#This Row],[שעות]]*(תעריפים_וסיכום8[שכר לשעה]*24))=0,\"\",\nSUMPRODUCT((שעות_עבודה7[[#This Row],[העבודה]]=תעריפים_וסיכום8[שמות העבודות])*שעות_עבודה7[[#This Row],[שעות]]*(תעריפים_וסיכום8[שכר לשעה]*24))))","v":""},null,null,"וקצת על מבנה קובץ אקסל"]
[null,{"$f":"IF(שעות_עבודה7[[#This Row],[תאריך]]=\"\",\"\",ROW(A80))","v":""},null,null,null,null,{"$f":"IF(שעות_עבודה7[[#This Row],[התחלה]]=\"\",\"\",\nIF(שעות_עבודה7[[#This Row],[התחלה]]>שעות_עבודה7[[#This Row],[סיום]],\"\",\nשעות_עבודה7[[#This Row],[סיום]]-שעות_עבודה7[[#This Row],[התחלה]]))","v":""},{"$f":"IF(שעות_עבודה7[[#This Row],[שעות]]=\"\",\"\",\nIF(SUMPRODUCT((שעות_עבודה7[[#This Row],[העבודה]]=תעריפים_וסיכום8[שמות העבודות])*שעות_עבודה7[[#This Row],[שעות]]*(תעריפים_וסיכום8[שכר לשעה]*24))=0,\"\",\nSUMPRODUCT((שעות_עבודה7[[#This Row],[העבודה]]=תעריפים_וסיכום8[שמות העבודות])*שעות_עבודה7[[#This Row],[שעות]]*(תעריפים_וסיכום8[שכר לשעה]*24))))","v":""},null,null,"קובץ אקסל מורכב מ-3 כיווני פריסה-"]
[null,{"$f":"IF(שעות_עבודה7[[#This Row],[תאריך]]=\"\",\"\",ROW(A81))","v":""},null,null,null,null,{"$f":"IF(שעות_עבודה7[[#This Row],[התחלה]]=\"\",\"\",\nIF(שעות_עבודה7[[#This Row],[התחלה]]>שעות_עבודה7[[#This Row],[סיום]],\"\",\nשעות_עבודה7[[#This Row],[סיום]]-שעות_עבודה7[[#This Row],[התחלה]]))","v":""},{"$f":"IF(שעות_עבודה7[[#This Row],[שעות]]=\"\",\"\",\nIF(SUMPRODUCT((שעות_עבודה7[[#This Row],[העבודה]]=תעריפים_וסיכום8[שמות העבודות])*שעות_עבודה7[[#This Row],[שעות]]*(תעריפים_וסיכום8[שכר לשעה]*24))=0,\"\",\nSUMPRODUCT((שעות_עבודה7[[#This Row],[העבודה]]=תעריפים_וסיכום8[שמות העבודות])*שעות_עבודה7[[#This Row],[שעות]]*(תעריפים_וסיכום8[שכר לשעה]*24))))","v":""},null,null,"עמודות- זה הקווים שעומדים לרוחב כל הגיליון במאונח וממוספרים למעלה באמצעות האותיות באנגלית, יש מאות עמודות כאלה שממשיכות לשמאל הקובץ, הניווט בעמודות נעשה באמצעות המחוון שבתחתית התוכנה מצד שמאל."]
[null,{"$f":"IF(שעות_עבודה7[[#This Row],[תאריך]]=\"\",\"\",ROW(A82))","v":""},null,null,null,null,{"$f":"IF(שעות_עבודה7[[#This Row],[התחלה]]=\"\",\"\",\nIF(שעות_עבודה7[[#This Row],[התחלה]]>שעות_עבודה7[[#This Row],[סיום]],\"\",\nשעות_עבודה7[[#This Row],[סיום]]-שעות_עבודה7[[#This Row],[התחלה]]))","v":""},{"$f":"IF(שעות_עבודה7[[#This Row],[שעות]]=\"\",\"\",\nIF(SUMPRODUCT((שעות_עבודה7[[#This Row],[העבודה]]=תעריפים_וסיכום8[שמות העבודות])*שעות_עבודה7[[#This Row],[שעות]]*(תעריפים_וסיכום8[שכר לשעה]*24))=0,\"\",\nSUMPRODUCT((שעות_עבודה7[[#This Row],[העבודה]]=תעריפים_וסיכום8[שמות העבודות])*שעות_עבודה7[[#This Row],[שעות]]*(תעריפים_וסיכום8[שכר לשעה]*24))))","v":""}]
[null,{"$f":"IF(שעות_עבודה7[[#This Row],[תאריך]]=\"\",\"\",ROW(A83))","v":""},null,null,null,null,{"$f":"IF(שעות_עבודה7[[#This Row],[התחלה]]=\"\",\"\",\nIF(שעות_עבודה7[[#This Row],[התחלה]]>שעות_עבודה7[[#This Row],[סיום]],\"\",\nשעות_עבודה7[[#This Row],[סיום]]-שעות_עבודה7[[#This Row],[התחלה]]))","v":""},{"$f":"IF(שעות_עבודה7[[#This Row],[שעות]]=\"\",\"\",\nIF(SUMPRODUCT((שעות_עבודה7[[#This Row],[העבודה]]=תעריפים_וסיכום8[שמות העבודות])*שעות_עבודה7[[#This Row],[שעות]]*(תעריפים_וסיכום8[שכר לשעה]*24))=0,\"\",\nSUMPRODUCT((שעות_עבודה7[[#This Row],[העבודה]]=תעריפים_וסיכום8[שמות העבודות])*שעות_עבודה7[[#This Row],[שעות]]*(תעריפים_וסיכום8[שכר לשעה]*24))))","v":""}]
[null,{"$f":"IF(שעות_עבודה7[[#This Row],[תאריך]]=\"\",\"\",ROW(A84))","v":""},null,null,null,null,{"$f":"IF(שעות_עבודה7[[#This Row],[התחלה]]=\"\",\"\",\nIF(שעות_עבודה7[[#This Row],[התחלה]]>שעות_עבודה7[[#This Row],[סיום]],\"\",\nשעות_עבודה7[[#This Row],[סיום]]-שעות_עבודה7[[#This Row],[התחלה]]))","v":""},{"$f":"IF(שעות_עבודה7[[#This Row],[שעות]]=\"\",\"\",\nIF(SUMPRODUCT((שעות_עבודה7[[#This Row],[העבודה]]=תעריפים_וסיכום8[שמות העבודות])*שעות_עבודה7[[#This Row],[שעות]]*(תעריפים_וסיכום8[שכר לשעה]*24))=0,\"\",\nSUMPRODUCT((שעות_עבודה7[[#This Row],[העבודה]]=תעריפים_וסיכום8[שמות העבודות])*שעות_עבודה7[[#This Row],[שעות]]*(תעריפים_וסיכום8[שכר לשעה]*24))))","v":""},null,null,"שורות- קובץ האקסל נמשך למטה עם אלפי שורות, וגם שם ניתן לנווט באמצעות המחוון שנמצא בשולי התוכנה מצד שמאל."]
[null,{"$f":"IF(שעות_עבודה7[[#This Row],[תאריך]]=\"\",\"\",ROW(A85))","v":""},null,null,null,null,{"$f":"IF(שעות_עבודה7[[#This Row],[התחלה]]=\"\",\"\",\nIF(שעות_עבודה7[[#This Row],[התחלה]]>שעות_עבודה7[[#This Row],[סיום]],\"\",\nשעות_עבודה7[[#This Row],[סיום]]-שעות_עבודה7[[#This Row],[התחלה]]))","v":""},{"$f":"IF(שעות_עבודה7[[#This Row],[שעות]]=\"\",\"\",\nIF(SUMPRODUCT((שעות_עבודה7[[#This Row],[העבודה]]=תעריפים_וסיכום8[שמות העבודות])*שעות_עבודה7[[#This Row],[שעות]]*(תעריפים_וסיכום8[שכר לשעה]*24))=0,\"\",\nSUMPRODUCT((שעות_עבודה7[[#This Row],[העבודה]]=תעריפים_וסיכום8[שמות העבודות])*שעות_עבודה7[[#This Row],[שעות]]*(תעריפים_וסיכום8[שכר לשעה]*24))))","v":""}]
[null,{"$f":"IF(שעות_עבודה7[[#This Row],[תאריך]]=\"\",\"\",ROW(A86))","v":""},null,null,null,null,{"$f":"IF(שעות_עבודה7[[#This Row],[התחלה]]=\"\",\"\",\nIF(שעות_עבודה7[[#This Row],[התחלה]]>שעות_עבודה7[[#This Row],[סיום]],\"\",\nשעות_עבודה7[[#This Row],[סיום]]-שעות_עבודה7[[#This Row],[התחלה]]))","v":""},{"$f":"IF(שעות_עבודה7[[#This Row],[שעות]]=\"\",\"\",\nIF(SUMPRODUCT((שעות_עבודה7[[#This Row],[העבודה]]=תעריפים_וסיכום8[שמות העבודות])*שעות_עבודה7[[#This Row],[שעות]]*(תעריפים_וסיכום8[שכר לשעה]*24))=0,\"\",\nSUMPRODUCT((שעות_עבודה7[[#This Row],[העבודה]]=תעריפים_וסיכום8[שמות העבודות])*שעות_עבודה7[[#This Row],[שעות]]*(תעריפים_וסיכום8[שכר לשעה]*24))))","v":""},null,null,"גיליונות- בקובץ אקסל ניתן ליצור מספר רב של גיליונות, כאשר כל גיליון מכיל מאות עמודות ואלפי שורות כנ\"ל, בקובץ הנוכחי קיימים 3 גיליונות, המעבר בין גיליון לגיליון נעשה באמצעות לשוניות הגיליונות שנמצאות בתחתית התוכנה מצד ימין."]
[null,{"$f":"IF(שעות_עבודה7[[#This Row],[תאריך]]=\"\",\"\",ROW(A87))","v":""},null,null,null,null,{"$f":"IF(שעות_עבודה7[[#This Row],[התחלה]]=\"\",\"\",\nIF(שעות_עבודה7[[#This Row],[התחלה]]>שעות_עבודה7[[#This Row],[סיום]],\"\",\nשעות_עבודה7[[#This Row],[סיום]]-שעות_עבודה7[[#This Row],[התחלה]]))","v":""},{"$f":"IF(שעות_עבודה7[[#This Row],[שעות]]=\"\",\"\",\nIF(SUMPRODUCT((שעות_עבודה7[[#This Row],[העבודה]]=תעריפים_וסיכום8[שמות העבודות])*שעות_עבודה7[[#This Row],[שעות]]*(תעריפים_וסיכום8[שכר לשעה]*24))=0,\"\",\nSUMPRODUCT((שעות_עבודה7[[#This Row],[העבודה]]=תעריפים_וסיכום8[שמות העבודות])*שעות_עבודה7[[#This Row],[שעות]]*(תעריפים_וסיכום8[שכר לשעה]*24))))","v":""}]
[null,{"$f":"IF(שעות_עבודה7[[#This Row],[תאריך]]=\"\",\"\",ROW(A88))","v":""},null,null,null,null,{"$f":"IF(שעות_עבודה7[[#This Row],[התחלה]]=\"\",\"\",\nIF(שעות_עבודה7[[#This Row],[התחלה]]>שעות_עבודה7[[#This Row],[סיום]],\"\",\nשעות_עבודה7[[#This Row],[סיום]]-שעות_עבודה7[[#This Row],[התחלה]]))","v":""},{"$f":"IF(שעות_עבודה7[[#This Row],[שעות]]=\"\",\"\",\nIF(SUMPRODUCT((שעות_עבודה7[[#This Row],[העבודה]]=תעריפים_וסיכום8[שמות העבודות])*שעות_עבודה7[[#This Row],[שעות]]*(תעריפים_וסיכום8[שכר לשעה]*24))=0,\"\",\nSUMPRODUCT((שעות_עבודה7[[#This Row],[העבודה]]=תעריפים_וסיכום8[שמות העבודות])*שעות_עבודה7[[#This Row],[שעות]]*(תעריפים_וסיכום8[שכר לשעה]*24))))","v":""}]
[null,{"$f":"IF(שעות_עבודה7[[#This Row],[תאריך]]=\"\",\"\",ROW(A89))","v":""},null,null,null,null,{"$f":"IF(שעות_עבודה7[[#This Row],[התחלה]]=\"\",\"\",\nIF(שעות_עבודה7[[#This Row],[התחלה]]>שעות_עבודה7[[#This Row],[סיום]],\"\",\nשעות_עבודה7[[#This Row],[סיום]]-שעות_עבודה7[[#This Row],[התחלה]]))","v":""},{"$f":"IF(שעות_עבודה7[[#This Row],[שעות]]=\"\",\"\",\nIF(SUMPRODUCT((שעות_עבודה7[[#This Row],[העבודה]]=תעריפים_וסיכום8[שמות העבודות])*שעות_עבודה7[[#This Row],[שעות]]*(תעריפים_וסיכום8[שכר לשעה]*24))=0,\"\",\nSUMPRODUCT((שעות_עבודה7[[#This Row],[העבודה]]=תעריפים_וסיכום8[שמות העבודות])*שעות_עבודה7[[#This Row],[שעות]]*(תעריפים_וסיכום8[שכר לשעה]*24))))","v":""}]
[null,{"$f":"IF(שעות_עבודה7[[#This Row],[תאריך]]=\"\",\"\",ROW(A90))","v":""},null,null,null,null,{"$f":"IF(שעות_עבודה7[[#This Row],[התחלה]]=\"\",\"\",\nIF(שעות_עבודה7[[#This Row],[התחלה]]>שעות_עבודה7[[#This Row],[סיום]],\"\",\nשעות_עבודה7[[#This Row],[סיום]]-שעות_עבודה7[[#This Row],[התחלה]]))","v":""},{"$f":"IF(שעות_עבודה7[[#This Row],[שעות]]=\"\",\"\",\nIF(SUMPRODUCT((שעות_עבודה7[[#This Row],[העבודה]]=תעריפים_וסיכום8[שמות העבודות])*שעות_עבודה7[[#This Row],[שעות]]*(תעריפים_וסיכום8[שכר לשעה]*24))=0,\"\",\nSUMPRODUCT((שעות_עבודה7[[#This Row],[העבודה]]=תעריפים_וסיכום8[שמות העבודות])*שעות_עבודה7[[#This Row],[שעות]]*(תעריפים_וסיכום8[שכר לשעה]*24))))","v":""},null,null,null,null,null,"נוצר על ידי החפץ בעילו\"ש לזיכוי הרבים.\nקרדיט ל-a5092920673@gmail.com.\nעותק חופשי - סיסמא 1234"]
[null,{"$f":"IF(שעות_עבודה7[[#This Row],[תאריך]]=\"\",\"\",ROW(A91))","v":""},null,null,null,null,{"$f":"IF(שעות_עבודה7[[#This Row],[התחלה]]=\"\",\"\",\nIF(שעות_עבודה7[[#This Row],[התחלה]]>שעות_עבודה7[[#This Row],[סיום]],\"\",\nשעות_עבודה7[[#This Row],[סיום]]-שעות_עבודה7[[#This Row],[התחלה]]))","v":""},{"$f":"IF(שעות_עבודה7[[#This Row],[שעות]]=\"\",\"\",\nIF(SUMPRODUCT((שעות_עבודה7[[#This Row],[העבודה]]=תעריפים_וסיכום8[שמות העבודות])*שעות_עבודה7[[#This Row],[שעות]]*(תעריפים_וסיכום8[שכר לשעה]*24))=0,\"\",\nSUMPRODUCT((שעות_עבודה7[[#This Row],[העבודה]]=תעריפים_וסיכום8[שמות העבודות])*שעות_עבודה7[[#This Row],[שעות]]*(תעריפים_וסיכום8[שכר לשעה]*24))))","v":""}]
[null,{"$f":"IF(שעות_עבודה7[[#This Row],[תאריך]]=\"\",\"\",ROW(A92))","v":""},null,null,null,null,{"$f":"IF(שעות_עבודה7[[#This Row],[התחלה]]=\"\",\"\",\nIF(שעות_עבודה7[[#This Row],[התחלה]]>שעות_עבודה7[[#This Row],[סיום]],\"\",\nשעות_עבודה7[[#This Row],[סיום]]-שעות_עבודה7[[#This Row],[התחלה]]))","v":""},{"$f":"IF(שעות_עבודה7[[#This Row],[שעות]]=\"\",\"\",\nIF(SUMPRODUCT((שעות_עבודה7[[#This Row],[העבודה]]=תעריפים_וסיכום8[שמות העבודות])*שעות_עבודה7[[#This Row],[שעות]]*(תעריפים_וסיכום8[שכר לשעה]*24))=0,\"\",\nSUMPRODUCT((שעות_עבודה7[[#This Row],[העבודה]]=תעריפים_וסיכום8[שמות העבודות])*שעות_עבודה7[[#This Row],[שעות]]*(תעריפים_וסיכום8[שכר לשעה]*24))))","v":""}]
[null,{"$f":"IF(שעות_עבודה7[[#This Row],[תאריך]]=\"\",\"\",ROW(A93))","v":""},null,null,null,null,{"$f":"IF(שעות_עבודה7[[#This Row],[התחלה]]=\"\",\"\",\nIF(שעות_עבודה7[[#This Row],[התחלה]]>שעות_עבודה7[[#This Row],[סיום]],\"\",\nשעות_עבודה7[[#This Row],[סיום]]-שעות_עבודה7[[#This Row],[התחלה]]))","v":""},{"$f":"IF(שעות_עבודה7[[#This Row],[שעות]]=\"\",\"\",\nIF(SUMPRODUCT((שעות_עבודה7[[#This Row],[העבודה]]=תעריפים_וסיכום8[שמות העבודות])*שעות_עבודה7[[#This Row],[שעות]]*(תעריפים_וסיכום8[שכר לשעה]*24))=0,\"\",\nSUMPRODUCT((שעות_עבודה7[[#This Row],[העבודה]]=תעריפים_וסיכום8[שמות העבודות])*שעות_עבודה7[[#This Row],[שעות]]*(תעריפים_וסיכום8[שכר לשעה]*24))))","v":""}]
[null,{"$f":"IF(שעות_עבודה7[[#This Row],[תאריך]]=\"\",\"\",ROW(A94))","v":""},null,null,null,null,{"$f":"IF(שעות_עבודה7[[#This Row],[התחלה]]=\"\",\"\",\nIF(שעות_עבודה7[[#This Row],[התחלה]]>שעות_עבודה7[[#This Row],[סיום]],\"\",\nשעות_עבודה7[[#This Row],[סיום]]-שעות_עבודה7[[#This Row],[התחלה]]))","v":""},{"$f":"IF(שעות_עבודה7[[#This Row],[שעות]]=\"\",\"\",\nIF(SUMPRODUCT((שעות_עבודה7[[#This Row],[העבודה]]=תעריפים_וסיכום8[שמות העבודות])*שעות_עבודה7[[#This Row],[שעות]]*(תעריפים_וסיכום8[שכר לשעה]*24))=0,\"\",\nSUMPRODUCT((שעות_עבודה7[[#This Row],[העבודה]]=תעריפים_וסיכום8[שמות העבודות])*שעות_עבודה7[[#This Row],[שעות]]*(תעריפים_וסיכום8[שכר לשעה]*24))))","v":""}]
[null,{"$f":"IF(שעות_עבודה7[[#This Row],[תאריך]]=\"\",\"\",ROW(A95))","v":""},null,null,null,null,{"$f":"IF(שעות_עבודה7[[#This Row],[התחלה]]=\"\",\"\",\nIF(שעות_עבודה7[[#This Row],[התחלה]]>שעות_עבודה7[[#This Row],[סיום]],\"\",\nשעות_עבודה7[[#This Row],[סיום]]-שעות_עבודה7[[#This Row],[התחלה]]))","v":""},{"$f":"IF(שעות_עבודה7[[#This Row],[שעות]]=\"\",\"\",\nIF(SUMPRODUCT((שעות_עבודה7[[#This Row],[העבודה]]=תעריפים_וסיכום8[שמות העבודות])*שעות_עבודה7[[#This Row],[שעות]]*(תעריפים_וסיכום8[שכר לשעה]*24))=0,\"\",\nSUMPRODUCT((שעות_עבודה7[[#This Row],[העבודה]]=תעריפים_וסיכום8[שמות העבודות])*שעות_עבודה7[[#This Row],[שעות]]*(תעריפים_וסיכום8[שכר לשעה]*24))))","v":""}]
[null,{"$f":"IF(שעות_עבודה7[[#This Row],[תאריך]]=\"\",\"\",ROW(A96))","v":""},null,null,null,null,{"$f":"IF(שעות_עבודה7[[#This Row],[התחלה]]=\"\",\"\",\nIF(שעות_עבודה7[[#This Row],[התחלה]]>שעות_עבודה7[[#This Row],[סיום]],\"\",\nשעות_עבודה7[[#This Row],[סיום]]-שעות_עבודה7[[#This Row],[התחלה]]))","v":""},{"$f":"IF(שעות_עבודה7[[#This Row],[שעות]]=\"\",\"\",\nIF(SUMPRODUCT((שעות_עבודה7[[#This Row],[העבודה]]=תעריפים_וסיכום8[שמות העבודות])*שעות_עבודה7[[#This Row],[שעות]]*(תעריפים_וסיכום8[שכר לשעה]*24))=0,\"\",\nSUMPRODUCT((שעות_עבודה7[[#This Row],[העבודה]]=תעריפים_וסיכום8[שמות העבודות])*שעות_עבודה7[[#This Row],[שעות]]*(תעריפים_וסיכום8[שכר לשעה]*24))))","v":""}]
[null,{"$f":"IF(שעות_עבודה7[[#This Row],[תאריך]]=\"\",\"\",ROW(A97))","v":""},null,null,null,null,{"$f":"IF(שעות_עבודה7[[#This Row],[התחלה]]=\"\",\"\",\nIF(שעות_עבודה7[[#This Row],[התחלה]]>שעות_עבודה7[[#This Row],[סיום]],\"\",\nשעות_עבודה7[[#This Row],[סיום]]-שעות_עבודה7[[#This Row],[התחלה]]))","v":""},{"$f":"IF(שעות_עבודה7[[#This Row],[שעות]]=\"\",\"\",\nIF(SUMPRODUCT((שעות_עבודה7[[#This Row],[העבודה]]=תעריפים_וסיכום8[שמות העבודות])*שעות_עבודה7[[#This Row],[שעות]]*(תעריפים_וסיכום8[שכר לשעה]*24))=0,\"\",\nSUMPRODUCT((שעות_עבודה7[[#This Row],[העבודה]]=תעריפים_וסיכום8[שמות העבודות])*שעות_עבודה7[[#This Row],[שעות]]*(תעריפים_וסיכום8[שכר לשעה]*24))))","v":""}]
[null,{"$f":"IF(שעות_עבודה7[[#This Row],[תאריך]]=\"\",\"\",ROW(A98))","v":""},null,null,null,null,{"$f":"IF(שעות_עבודה7[[#This Row],[התחלה]]=\"\",\"\",\nIF(שעות_עבודה7[[#This Row],[התחלה]]>שעות_עבודה7[[#This Row],[סיום]],\"\",\nשעות_עבודה7[[#This Row],[סיום]]-שעות_עבודה7[[#This Row],[התחלה]]))","v":""},{"$f":"IF(שעות_עבודה7[[#This Row],[שעות]]=\"\",\"\",\nIF(SUMPRODUCT((שעות_עבודה7[[#This Row],[העבודה]]=תעריפים_וסיכום8[שמות העבודות])*שעות_עבודה7[[#This Row],[שעות]]*(תעריפים_וסיכום8[שכר לשעה]*24))=0,\"\",\nSUMPRODUCT((שעות_עבודה7[[#This Row],[העבודה]]=תעריפים_וסיכום8[שמות העבודות])*שעות_עבודה7[[#This Row],[שעות]]*(תעריפים_וסיכום8[שכר לשעה]*24))))","v":""}]
[null,{"$f":"IF(שעות_עבודה7[[#This Row],[תאריך]]=\"\",\"\",ROW(A99))","v":""},null,null,null,null,{"$f":"IF(שעות_עבודה7[[#This Row],[התחלה]]=\"\",\"\",\nIF(שעות_עבודה7[[#This Row],[התחלה]]>שעות_עבודה7[[#This Row],[סיום]],\"\",\nשעות_עבודה7[[#This Row],[סיום]]-שעות_עבודה7[[#This Row],[התחלה]]))","v":""},{"$f":"IF(שעות_עבודה7[[#This Row],[שעות]]=\"\",\"\",\nIF(SUMPRODUCT((שעות_עבודה7[[#This Row],[העבודה]]=תעריפים_וסיכום8[שמות העבודות])*שעות_עבודה7[[#This Row],[שעות]]*(תעריפים_וסיכום8[שכר לשעה]*24))=0,\"\",\nSUMPRODUCT((שעות_עבודה7[[#This Row],[העבודה]]=תעריפים_וסיכום8[שמות העבודות])*שעות_עבודה7[[#This Row],[שעות]]*(תעריפים_וסיכום8[שכר לשעה]*24))))","v":""}]
[null,{"$f":"IF(שעות_עבודה7[[#This Row],[תאריך]]=\"\",\"\",ROW(A100))","v":""},null,null,null,null,{"$f":"IF(שעות_עבודה7[[#This Row],[התחלה]]=\"\",\"\",\nIF(שעות_עבודה7[[#This Row],[התחלה]]>שעות_עבודה7[[#This Row],[סיום]],\"\",\nשעות_עבודה7[[#This Row],[סיום]]-שעות_עבודה7[[#This Row],[התחלה]]))","v":""},{"$f":"IF(שעות_עבודה7[[#This Row],[שעות]]=\"\",\"\",\nIF(SUMPRODUCT((שעות_עבודה7[[#This Row],[העבודה]]=תעריפים_וסיכום8[שמות העבודות])*שעות_עבודה7[[#This Row],[שעות]]*(תעריפים_וסיכום8[שכר לשעה]*24))=0,\"\",\nSUMPRODUCT((שעות_עבודה7[[#This Row],[העבודה]]=תעריפים_וסיכום8[שמות העבודות])*שעות_עבודה7[[#This Row],[שעות]]*(תעריפים_וסיכום8[שכר לשעה]*24))))","v":""}]
[null,{"$f":"IF(שעות_עבודה7[[#This Row],[תאריך]]=\"\",\"\",ROW(A101))","v":""},null,null,null,null,{"$f":"IF(שעות_עבודה7[[#This Row],[התחלה]]=\"\",\"\",\nIF(שעות_עבודה7[[#This Row],[התחלה]]>שעות_עבודה7[[#This Row],[סיום]],\"\",\nשעות_עבודה7[[#This Row],[סיום]]-שעות_עבודה7[[#This Row],[התחלה]]))","v":""},{"$f":"IF(שעות_עבודה7[[#This Row],[שעות]]=\"\",\"\",\nIF(SUMPRODUCT((שעות_עבודה7[[#This Row],[העבודה]]=תעריפים_וסיכום8[שמות העבודות])*שעות_עבודה7[[#This Row],[שעות]]*(תעריפים_וסיכום8[שכר לשעה]*24))=0,\"\",\nSUMPRODUCT((שעות_עבודה7[[#This Row],[העבודה]]=תעריפים_וסיכום8[שמות העבודות])*שעות_עבודה7[[#This Row],[שעות]]*(תעריפים_וסיכום8[שכר לשעה]*24))))","v":""}]
[null,{"$f":"IF(שעות_עבודה7[[#This Row],[תאריך]]=\"\",\"\",ROW(A102))","v":""},null,null,null,null,{"$f":"IF(שעות_עבודה7[[#This Row],[התחלה]]=\"\",\"\",\nIF(שעות_עבודה7[[#This Row],[התחלה]]>שעות_עבודה7[[#This Row],[סיום]],\"\",\nשעות_עבודה7[[#This Row],[סיום]]-שעות_עבודה7[[#This Row],[התחלה]]))","v":""},{"$f":"IF(שעות_עבודה7[[#This Row],[שעות]]=\"\",\"\",\nIF(SUMPRODUCT((שעות_עבודה7[[#This Row],[העבודה]]=תעריפים_וסיכום8[שמות העבודות])*שעות_עבודה7[[#This Row],[שעות]]*(תעריפים_וסיכום8[שכר לשעה]*24))=0,\"\",\nSUMPRODUCT((שעות_עבודה7[[#This Row],[העבודה]]=תעריפים_וסיכום8[שמות העבודות])*שעות_עבודה7[[#This Row],[שעות]]*(תעריפים_וסיכום8[שכר לשעה]*24))))","v":""}]
[null,{"$f":"IF(שעות_עבודה7[[#This Row],[תאריך]]=\"\",\"\",ROW(A103))","v":""},null,null,null,null,{"$f":"IF(שעות_עבודה7[[#This Row],[התחלה]]=\"\",\"\",\nIF(שעות_עבודה7[[#This Row],[התחלה]]>שעות_עבודה7[[#This Row],[סיום]],\"\",\nשעות_עבודה7[[#This Row],[סיום]]-שעות_עבודה7[[#This Row],[התחלה]]))","v":""},{"$f":"IF(שעות_עבודה7[[#This Row],[שעות]]=\"\",\"\",\nIF(SUMPRODUCT((שעות_עבודה7[[#This Row],[העבודה]]=תעריפים_וסיכום8[שמות העבודות])*שעות_עבודה7[[#This Row],[שעות]]*(תעריפים_וסיכום8[שכר לשעה]*24))=0,\"\",\nSUMPRODUCT((שעות_עבודה7[[#This Row],[העבודה]]=תעריפים_וסיכום8[שמות העבודות])*שעות_עבודה7[[#This Row],[שעות]]*(תעריפים_וסיכום8[שכר לשעה]*24))))","v":""}]
[null,{"$f":"IF(שעות_עבודה7[[#This Row],[תאריך]]=\"\",\"\",ROW(A104))","v":""},null,null,null,null,{"$f":"IF(שעות_עבודה7[[#This Row],[התחלה]]=\"\",\"\",\nIF(שעות_עבודה7[[#This Row],[התחלה]]>שעות_עבודה7[[#This Row],[סיום]],\"\",\nשעות_עבודה7[[#This Row],[סיום]]-שעות_עבודה7[[#This Row],[התחלה]]))","v":""},{"$f":"IF(שעות_עבודה7[[#This Row],[שעות]]=\"\",\"\",\nIF(SUMPRODUCT((שעות_עבודה7[[#This Row],[העבודה]]=תעריפים_וסיכום8[שמות העבודות])*שעות_עבודה7[[#This Row],[שעות]]*(תעריפים_וסיכום8[שכר לשעה]*24))=0,\"\",\nSUMPRODUCT((שעות_עבודה7[[#This Row],[העבודה]]=תעריפים_וסיכום8[שמות העבודות])*שעות_עבודה7[[#This Row],[שעות]]*(תעריפים_וסיכום8[שכר לשעה]*24))))","v":""}]
[null,{"$f":"IF(שעות_עבודה7[[#This Row],[תאריך]]=\"\",\"\",ROW(A105))","v":""},null,null,null,null,{"$f":"IF(שעות_עבודה7[[#This Row],[התחלה]]=\"\",\"\",\nIF(שעות_עבודה7[[#This Row],[התחלה]]>שעות_עבודה7[[#This Row],[סיום]],\"\",\nשעות_עבודה7[[#This Row],[סיום]]-שעות_עבודה7[[#This Row],[התחלה]]))","v":""},{"$f":"IF(שעות_עבודה7[[#This Row],[שעות]]=\"\",\"\",\nIF(SUMPRODUCT((שעות_עבודה7[[#This Row],[העבודה]]=תעריפים_וסיכום8[שמות העבודות])*שעות_עבודה7[[#This Row],[שעות]]*(תעריפים_וסיכום8[שכר לשעה]*24))=0,\"\",\nSUMPRODUCT((שעות_עבודה7[[#This Row],[העבודה]]=תעריפים_וסיכום8[שמות העבודות])*שעות_עבודה7[[#This Row],[שעות]]*(תעריפים_וסיכום8[שכר לשעה]*24))))","v":""}]
[null,{"$f":"IF(שעות_עבודה7[[#This Row],[תאריך]]=\"\",\"\",ROW(A106))","v":""},null,null,null,null,{"$f":"IF(שעות_עבודה7[[#This Row],[התחלה]]=\"\",\"\",\nIF(שעות_עבודה7[[#This Row],[התחלה]]>שעות_עבודה7[[#This Row],[סיום]],\"\",\nשעות_עבודה7[[#This Row],[סיום]]-שעות_עבודה7[[#This Row],[התחלה]]))","v":""},{"$f":"IF(שעות_עבודה7[[#This Row],[שעות]]=\"\",\"\",\nIF(SUMPRODUCT((שעות_עבודה7[[#This Row],[העבודה]]=תעריפים_וסיכום8[שמות העבודות])*שעות_עבודה7[[#This Row],[שעות]]*(תעריפים_וסיכום8[שכר לשעה]*24))=0,\"\",\nSUMPRODUCT((שעות_עבודה7[[#This Row],[העבודה]]=תעריפים_וסיכום8[שמות העבודות])*שעות_עבודה7[[#This Row],[שעות]]*(תעריפים_וסיכום8[שכר לשעה]*24))))","v":""}]
[null,{"$f":"IF(שעות_עבודה7[[#This Row],[תאריך]]=\"\",\"\",ROW(A107))","v":""},null,null,null,null,{"$f":"IF(שעות_עבודה7[[#This Row],[התחלה]]=\"\",\"\",\nIF(שעות_עבודה7[[#This Row],[התחלה]]>שעות_עבודה7[[#This Row],[סיום]],\"\",\nשעות_עבודה7[[#This Row],[סיום]]-שעות_עבודה7[[#This Row],[התחלה]]))","v":""},{"$f":"IF(שעות_עבודה7[[#This Row],[שעות]]=\"\",\"\",\nIF(SUMPRODUCT((שעות_עבודה7[[#This Row],[העבודה]]=תעריפים_וסיכום8[שמות העבודות])*שעות_עבודה7[[#This Row],[שעות]]*(תעריפים_וסיכום8[שכר לשעה]*24))=0,\"\",\nSUMPRODUCT((שעות_עבודה7[[#This Row],[העבודה]]=תעריפים_וסיכום8[שמות העבודות])*שעות_עבודה7[[#This Row],[שעות]]*(תעריפים_וסיכום8[שכר לשעה]*24))))","v":""}]
[null,{"$f":"IF(שעות_עבודה7[[#This Row],[תאריך]]=\"\",\"\",ROW(A108))","v":""},null,null,null,null,{"$f":"IF(שעות_עבודה7[[#This Row],[התחלה]]=\"\",\"\",\nIF(שעות_עבודה7[[#This Row],[התחלה]]>שעות_עבודה7[[#This Row],[סיום]],\"\",\nשעות_עבודה7[[#This Row],[סיום]]-שעות_עבודה7[[#This Row],[התחלה]]))","v":""},{"$f":"IF(שעות_עבודה7[[#This Row],[שעות]]=\"\",\"\",\nIF(SUMPRODUCT((שעות_עבודה7[[#This Row],[העבודה]]=תעריפים_וסיכום8[שמות העבודות])*שעות_עבודה7[[#This Row],[שעות]]*(תעריפים_וסיכום8[שכר לשעה]*24))=0,\"\",\nSUMPRODUCT((שעות_עבודה7[[#This Row],[העבודה]]=תעריפים_וסיכום8[שמות העבודות])*שעות_עבודה7[[#This Row],[שעות]]*(תעריפים_וסיכום8[שכר לשעה]*24))))","v":""}]
[null,{"$f":"IF(שעות_עבודה7[[#This Row],[תאריך]]=\"\",\"\",ROW(A109))","v":""},null,null,null,null,{"$f":"IF(שעות_עבודה7[[#This Row],[התחלה]]=\"\",\"\",\nIF(שעות_עבודה7[[#This Row],[התחלה]]>שעות_עבודה7[[#This Row],[סיום]],\"\",\nשעות_עבודה7[[#This Row],[סיום]]-שעות_עבודה7[[#This Row],[התחלה]]))","v":""},{"$f":"IF(שעות_עבודה7[[#This Row],[שעות]]=\"\",\"\",\nIF(SUMPRODUCT((שעות_עבודה7[[#This Row],[העבודה]]=תעריפים_וסיכום8[שמות העבודות])*שעות_עבודה7[[#This Row],[שעות]]*(תעריפים_וסיכום8[שכר לשעה]*24))=0,\"\",\nSUMPRODUCT((שעות_עבודה7[[#This Row],[העבודה]]=תעריפים_וסיכום8[שמות העבודות])*שעות_עבודה7[[#This Row],[שעות]]*(תעריפים_וסיכום8[שכר לשעה]*24))))","v":""}]
[null,{"$f":"IF(שעות_עבודה7[[#This Row],[תאריך]]=\"\",\"\",ROW(A110))","v":""},null,null,null,null,{"$f":"IF(שעות_עבודה7[[#This Row],[התחלה]]=\"\",\"\",\nIF(שעות_עבודה7[[#This Row],[התחלה]]>שעות_עבודה7[[#This Row],[סיום]],\"\",\nשעות_עבודה7[[#This Row],[סיום]]-שעות_עבודה7[[#This Row],[התחלה]]))","v":""},{"$f":"IF(שעות_עבודה7[[#This Row],[שעות]]=\"\",\"\",\nIF(SUMPRODUCT((שעות_עבודה7[[#This Row],[העבודה]]=תעריפים_וסיכום8[שמות העבודות])*שעות_עבודה7[[#This Row],[שעות]]*(תעריפים_וסיכום8[שכר לשעה]*24))=0,\"\",\nSUMPRODUCT((שעות_עבודה7[[#This Row],[העבודה]]=תעריפים_וסיכום8[שמות העבודות])*שעות_עבודה7[[#This Row],[שעות]]*(תעריפים_וסיכום8[שכר לשעה]*24))))","v":""}]
[null,{"$f":"IF(שעות_עבודה7[[#This Row],[תאריך]]=\"\",\"\",ROW(A111))","v":""},null,null,null,null,{"$f":"IF(שעות_עבודה7[[#This Row],[התחלה]]=\"\",\"\",\nIF(שעות_עבודה7[[#This Row],[התחלה]]>שעות_עבודה7[[#This Row],[סיום]],\"\",\nשעות_עבודה7[[#This Row],[סיום]]-שעות_עבודה7[[#This Row],[התחלה]]))","v":""},{"$f":"IF(שעות_עבודה7[[#This Row],[שעות]]=\"\",\"\",\nIF(SUMPRODUCT((שעות_עבודה7[[#This Row],[העבודה]]=תעריפים_וסיכום8[שמות העבודות])*שעות_עבודה7[[#This Row],[שעות]]*(תעריפים_וסיכום8[שכר לשעה]*24))=0,\"\",\nSUMPRODUCT((שעות_עבודה7[[#This Row],[העבודה]]=תעריפים_וסיכום8[שמות העבודות])*שעות_עבודה7[[#This Row],[שעות]]*(תעריפים_וסיכום8[שכר לשעה]*24))))","v":""}]
[null,{"$f":"IF(שעות_עבודה7[[#This Row],[תאריך]]=\"\",\"\",ROW(A112))","v":""},null,null,null,null,{"$f":"IF(שעות_עבודה7[[#This Row],[התחלה]]=\"\",\"\",\nIF(שעות_עבודה7[[#This Row],[התחלה]]>שעות_עבודה7[[#This Row],[סיום]],\"\",\nשעות_עבודה7[[#This Row],[סיום]]-שעות_עבודה7[[#This Row],[התחלה]]))","v":""},{"$f":"IF(שעות_עבודה7[[#This Row],[שעות]]=\"\",\"\",\nIF(SUMPRODUCT((שעות_עבודה7[[#This Row],[העבודה]]=תעריפים_וסיכום8[שמות העבודות])*שעות_עבודה7[[#This Row],[שעות]]*(תעריפים_וסיכום8[שכר לשעה]*24))=0,\"\",\nSUMPRODUCT((שעות_עבודה7[[#This Row],[העבודה]]=תעריפים_וסיכום8[שמות העבודות])*שעות_עבודה7[[#This Row],[שעות]]*(תעריפים_וסיכום8[שכר לשעה]*24))))","v":""}]
[null,{"$f":"IF(שעות_עבודה7[[#This Row],[תאריך]]=\"\",\"\",ROW(A113))","v":""},null,null,null,null,{"$f":"IF(שעות_עבודה7[[#This Row],[התחלה]]=\"\",\"\",\nIF(שעות_עבודה7[[#This Row],[התחלה]]>שעות_עבודה7[[#This Row],[סיום]],\"\",\nשעות_עבודה7[[#This Row],[סיום]]-שעות_עבודה7[[#This Row],[התחלה]]))","v":""},{"$f":"IF(שעות_עבודה7[[#This Row],[שעות]]=\"\",\"\",\nIF(SUMPRODUCT((שעות_עבודה7[[#This Row],[העבודה]]=תעריפים_וסיכום8[שמות העבודות])*שעות_עבודה7[[#This Row],[שעות]]*(תעריפים_וסיכום8[שכר לשעה]*24))=0,\"\",\nSUMPRODUCT((שעות_עבודה7[[#This Row],[העבודה]]=תעריפים_וסיכום8[שמות העבודות])*שעות_עבודה7[[#This Row],[שעות]]*(תעריפים_וסיכום8[שכר לשעה]*24))))","v":""}]
[null,{"$f":"IF(שעות_עבודה7[[#This Row],[תאריך]]=\"\",\"\",ROW(A114))","v":""},null,null,null,null,{"$f":"IF(שעות_עבודה7[[#This Row],[התחלה]]=\"\",\"\",\nIF(שעות_עבודה7[[#This Row],[התחלה]]>שעות_עבודה7[[#This Row],[סיום]],\"\",\nשעות_עבודה7[[#This Row],[סיום]]-שעות_עבודה7[[#This Row],[התחלה]]))","v":""},{"$f":"IF(שעות_עבודה7[[#This Row],[שעות]]=\"\",\"\",\nIF(SUMPRODUCT((שעות_עבודה7[[#This Row],[העבודה]]=תעריפים_וסיכום8[שמות העבודות])*שעות_עבודה7[[#This Row],[שעות]]*(תעריפים_וסיכום8[שכר לשעה]*24))=0,\"\",\nSUMPRODUCT((שעות_עבודה7[[#This Row],[העבודה]]=תעריפים_וסיכום8[שמות העבודות])*שעות_עבודה7[[#This Row],[שעות]]*(תעריפים_וסיכום8[שכר לשעה]*24))))","v":""}]
[null,{"$f":"IF(שעות_עבודה7[[#This Row],[תאריך]]=\"\",\"\",ROW(A115))","v":""},null,null,null,null,{"$f":"IF(שעות_עבודה7[[#This Row],[התחלה]]=\"\",\"\",\nIF(שעות_עבודה7[[#This Row],[התחלה]]>שעות_עבודה7[[#This Row],[סיום]],\"\",\nשעות_עבודה7[[#This Row],[סיום]]-שעות_עבודה7[[#This Row],[התחלה]]))","v":""},{"$f":"IF(שעות_עבודה7[[#This Row],[שעות]]=\"\",\"\",\nIF(SUMPRODUCT((שעות_עבודה7[[#This Row],[העבודה]]=תעריפים_וסיכום8[שמות העבודות])*שעות_עבודה7[[#This Row],[שעות]]*(תעריפים_וסיכום8[שכר לשעה]*24))=0,\"\",\nSUMPRODUCT((שעות_עבודה7[[#This Row],[העבודה]]=תעריפים_וסיכום8[שמות העבודות])*שעות_עבודה7[[#This Row],[שעות]]*(תעריפים_וסיכום8[שכר לשעה]*24))))","v":""}]
[null,{"$f":"IF(שעות_עבודה7[[#This Row],[תאריך]]=\"\",\"\",ROW(A116))","v":""},null,null,null,null,{"$f":"IF(שעות_עבודה7[[#This Row],[התחלה]]=\"\",\"\",\nIF(שעות_עבודה7[[#This Row],[התחלה]]>שעות_עבודה7[[#This Row],[סיום]],\"\",\nשעות_עבודה7[[#This Row],[סיום]]-שעות_עבודה7[[#This Row],[התחלה]]))","v":""},{"$f":"IF(שעות_עבודה7[[#This Row],[שעות]]=\"\",\"\",\nIF(SUMPRODUCT((שעות_עבודה7[[#This Row],[העבודה]]=תעריפים_וסיכום8[שמות העבודות])*שעות_עבודה7[[#This Row],[שעות]]*(תעריפים_וסיכום8[שכר לשעה]*24))=0,\"\",\nSUMPRODUCT((שעות_עבודה7[[#This Row],[העבודה]]=תעריפים_וסיכום8[שמות העבודות])*שעות_עבודה7[[#This Row],[שעות]]*(תעריפים_וסיכום8[שכר לשעה]*24))))","v":""}]
[null,{"$f":"IF(שעות_עבודה7[[#This Row],[תאריך]]=\"\",\"\",ROW(A117))","v":""},null,null,null,null,{"$f":"IF(שעות_עבודה7[[#This Row],[התחלה]]=\"\",\"\",\nIF(שעות_עבודה7[[#This Row],[התחלה]]>שעות_עבודה7[[#This Row],[סיום]],\"\",\nשעות_עבודה7[[#This Row],[סיום]]-שעות_עבודה7[[#This Row],[התחלה]]))","v":""},{"$f":"IF(שעות_עבודה7[[#This Row],[שעות]]=\"\",\"\",\nIF(SUMPRODUCT((שעות_עבודה7[[#This Row],[העבודה]]=תעריפים_וסיכום8[שמות העבודות])*שעות_עבודה7[[#This Row],[שעות]]*(תעריפים_וסיכום8[שכר לשעה]*24))=0,\"\",\nSUMPRODUCT((שעות_עבודה7[[#This Row],[העבודה]]=תעריפים_וסיכום8[שמות העבודות])*שעות_עבודה7[[#This Row],[שעות]]*(תעריפים_וסיכום8[שכר לשעה]*24))))","v":""}]
[null,{"$f":"IF(שעות_עבודה7[[#This Row],[תאריך]]=\"\",\"\",ROW(A118))","v":""},null,null,null,null,{"$f":"IF(שעות_עבודה7[[#This Row],[התחלה]]=\"\",\"\",\nIF(שעות_עבודה7[[#This Row],[התחלה]]>שעות_עבודה7[[#This Row],[סיום]],\"\",\nשעות_עבודה7[[#This Row],[סיום]]-שעות_עבודה7[[#This Row],[התחלה]]))","v":""},{"$f":"IF(שעות_עבודה7[[#This Row],[שעות]]=\"\",\"\",\nIF(SUMPRODUCT((שעות_עבודה7[[#This Row],[העבודה]]=תעריפים_וסיכום8[שמות העבודות])*שעות_עבודה7[[#This Row],[שעות]]*(תעריפים_וסיכום8[שכר לשעה]*24))=0,\"\",\nSUMPRODUCT((שעות_עבודה7[[#This Row],[העבודה]]=תעריפים_וסיכום8[שמות העבודות])*שעות_עבודה7[[#This Row],[שעות]]*(תעריפים_וסיכום8[שכר לשעה]*24))))","v":""}]
[null,{"$f":"IF(שעות_עבודה7[[#This Row],[תאריך]]=\"\",\"\",ROW(A119))","v":""},null,null,null,null,{"$f":"IF(שעות_עבודה7[[#This Row],[התחלה]]=\"\",\"\",\nIF(שעות_עבודה7[[#This Row],[התחלה]]>שעות_עבודה7[[#This Row],[סיום]],\"\",\nשעות_עבודה7[[#This Row],[סיום]]-שעות_עבודה7[[#This Row],[התחלה]]))","v":""},{"$f":"IF(שעות_עבודה7[[#This Row],[שעות]]=\"\",\"\",\nIF(SUMPRODUCT((שעות_עבודה7[[#This Row],[העבודה]]=תעריפים_וסיכום8[שמות העבודות])*שעות_עבודה7[[#This Row],[שעות]]*(תעריפים_וסיכום8[שכר לשעה]*24))=0,\"\",\nSUMPRODUCT((שעות_עבודה7[[#This Row],[העבודה]]=תעריפים_וסיכום8[שמות העבודות])*שעות_עבודה7[[#This Row],[שעות]]*(תעריפים_וסיכום8[שכר לשעה]*24))))","v":""}]
[null,{"$f":"IF(שעות_עבודה7[[#This Row],[תאריך]]=\"\",\"\",ROW(A120))","v":""},null,null,null,null,{"$f":"IF(שעות_עבודה7[[#This Row],[התחלה]]=\"\",\"\",\nIF(שעות_עבודה7[[#This Row],[התחלה]]>שעות_עבודה7[[#This Row],[סיום]],\"\",\nשעות_עבודה7[[#This Row],[סיום]]-שעות_עבודה7[[#This Row],[התחלה]]))","v":""},{"$f":"IF(שעות_עבודה7[[#This Row],[שעות]]=\"\",\"\",\nIF(SUMPRODUCT((שעות_עבודה7[[#This Row],[העבודה]]=תעריפים_וסיכום8[שמות העבודות])*שעות_עבודה7[[#This Row],[שעות]]*(תעריפים_וסיכום8[שכר לשעה]*24))=0,\"\",\nSUMPRODUCT((שעות_עבודה7[[#This Row],[העבודה]]=תעריפים_וסיכום8[שמות העבודות])*שעות_עבודה7[[#This Row],[שעות]]*(תעריפים_וסיכום8[שכר לשעה]*24))))","v":""}]
[null,{"$f":"IF(שעות_עבודה7[[#This Row],[תאריך]]=\"\",\"\",ROW(A121))","v":""},null,null,null,null,{"$f":"IF(שעות_עבודה7[[#This Row],[התחלה]]=\"\",\"\",\nIF(שעות_עבודה7[[#This Row],[התחלה]]>שעות_עבודה7[[#This Row],[סיום]],\"\",\nשעות_עבודה7[[#This Row],[סיום]]-שעות_עבודה7[[#This Row],[התחלה]]))","v":""},{"$f":"IF(שעות_עבודה7[[#This Row],[שעות]]=\"\",\"\",\nIF(SUMPRODUCT((שעות_עבודה7[[#This Row],[העבודה]]=תעריפים_וסיכום8[שמות העבודות])*שעות_עבודה7[[#This Row],[שעות]]*(תעריפים_וסיכום8[שכר לשעה]*24))=0,\"\",\nSUMPRODUCT((שעות_עבודה7[[#This Row],[העבודה]]=תעריפים_וסיכום8[שמות העבודות])*שעות_עבודה7[[#This Row],[שעות]]*(תעריפים_וסיכום8[שכר לשעה]*24))))","v":""}]
[null,{"$f":"IF(שעות_עבודה7[[#This Row],[תאריך]]=\"\",\"\",ROW(A122))","v":""},null,null,null,null,{"$f":"IF(שעות_עבודה7[[#This Row],[התחלה]]=\"\",\"\",\nIF(שעות_עבודה7[[#This Row],[התחלה]]>שעות_עבודה7[[#This Row],[סיום]],\"\",\nשעות_עבודה7[[#This Row],[סיום]]-שעות_עבודה7[[#This Row],[התחלה]]))","v":""},{"$f":"IF(שעות_עבודה7[[#This Row],[שעות]]=\"\",\"\",\nIF(SUMPRODUCT((שעות_עבודה7[[#This Row],[העבודה]]=תעריפים_וסיכום8[שמות העבודות])*שעות_עבודה7[[#This Row],[שעות]]*(תעריפים_וסיכום8[שכר לשעה]*24))=0,\"\",\nSUMPRODUCT((שעות_עבודה7[[#This Row],[העבודה]]=תעריפים_וסיכום8[שמות העבודות])*שעות_עבודה7[[#This Row],[שעות]]*(תעריפים_וסיכום8[שכר לשעה]*24))))","v":""}]
[null,{"$f":"IF(שעות_עבודה7[[#This Row],[תאריך]]=\"\",\"\",ROW(A123))","v":""},null,null,null,null,{"$f":"IF(שעות_עבודה7[[#This Row],[התחלה]]=\"\",\"\",\nIF(שעות_עבודה7[[#This Row],[התחלה]]>שעות_עבודה7[[#This Row],[סיום]],\"\",\nשעות_עבודה7[[#This Row],[סיום]]-שעות_עבודה7[[#This Row],[התחלה]]))","v":""},{"$f":"IF(שעות_עבודה7[[#This Row],[שעות]]=\"\",\"\",\nIF(SUMPRODUCT((שעות_עבודה7[[#This Row],[העבודה]]=תעריפים_וסיכום8[שמות העבודות])*שעות_עבודה7[[#This Row],[שעות]]*(תעריפים_וסיכום8[שכר לשעה]*24))=0,\"\",\nSUMPRODUCT((שעות_עבודה7[[#This Row],[העבודה]]=תעריפים_וסיכום8[שמות העבודות])*שעות_עבודה7[[#This Row],[שעות]]*(תעריפים_וסיכום8[שכר לשעה]*24))))","v":""}]
[null,{"$f":"IF(שעות_עבודה7[[#This Row],[תאריך]]=\"\",\"\",ROW(A124))","v":""},null,null,null,null,{"$f":"IF(שעות_עבודה7[[#This Row],[התחלה]]=\"\",\"\",\nIF(שעות_עבודה7[[#This Row],[התחלה]]>שעות_עבודה7[[#This Row],[סיום]],\"\",\nשעות_עבודה7[[#This Row],[סיום]]-שעות_עבודה7[[#This Row],[התחלה]]))","v":""},{"$f":"IF(שעות_עבודה7[[#This Row],[שעות]]=\"\",\"\",\nIF(SUMPRODUCT((שעות_עבודה7[[#This Row],[העבודה]]=תעריפים_וסיכום8[שמות העבודות])*שעות_עבודה7[[#This Row],[שעות]]*(תעריפים_וסיכום8[שכר לשעה]*24))=0,\"\",\nSUMPRODUCT((שעות_עבודה7[[#This Row],[העבודה]]=תעריפים_וסיכום8[שמות העבודות])*שעות_עבודה7[[#This Row],[שעות]]*(תעריפים_וסיכום8[שכר לשעה]*24))))","v":""}]
[null,{"$f":"IF(שעות_עבודה7[[#This Row],[תאריך]]=\"\",\"\",ROW(A125))","v":""},null,null,null,null,{"$f":"IF(שעות_עבודה7[[#This Row],[התחלה]]=\"\",\"\",\nIF(שעות_עבודה7[[#This Row],[התחלה]]>שעות_עבודה7[[#This Row],[סיום]],\"\",\nשעות_עבודה7[[#This Row],[סיום]]-שעות_עבודה7[[#This Row],[התחלה]]))","v":""},{"$f":"IF(שעות_עבודה7[[#This Row],[שעות]]=\"\",\"\",\nIF(SUMPRODUCT((שעות_עבודה7[[#This Row],[העבודה]]=תעריפים_וסיכום8[שמות העבודות])*שעות_עבודה7[[#This Row],[שעות]]*(תעריפים_וסיכום8[שכר לשעה]*24))=0,\"\",\nSUMPRODUCT((שעות_עבודה7[[#This Row],[העבודה]]=תעריפים_וסיכום8[שמות העבודות])*שעות_עבודה7[[#This Row],[שעות]]*(תעריפים_וסיכום8[שכר לשעה]*24))))","v":""}]
[null,{"$f":"IF(שעות_עבודה7[[#This Row],[תאריך]]=\"\",\"\",ROW(A126))","v":""},null,null,null,null,{"$f":"IF(שעות_עבודה7[[#This Row],[התחלה]]=\"\",\"\",\nIF(שעות_עבודה7[[#This Row],[התחלה]]>שעות_עבודה7[[#This Row],[סיום]],\"\",\nשעות_עבודה7[[#This Row],[סיום]]-שעות_עבודה7[[#This Row],[התחלה]]))","v":""},{"$f":"IF(שעות_עבודה7[[#This Row],[שעות]]=\"\",\"\",\nIF(SUMPRODUCT((שעות_עבודה7[[#This Row],[העבודה]]=תעריפים_וסיכום8[שמות העבודות])*שעות_עבודה7[[#This Row],[שעות]]*(תעריפים_וסיכום8[שכר לשעה]*24))=0,\"\",\nSUMPRODUCT((שעות_עבודה7[[#This Row],[העבודה]]=תעריפים_וסיכום8[שמות העבודות])*שעות_עבודה7[[#This Row],[שעות]]*(תעריפים_וסיכום8[שכר לשעה]*24))))","v":""}]
[null,{"$f":"IF(שעות_עבודה7[[#This Row],[תאריך]]=\"\",\"\",ROW(A127))","v":""},null,null,null,null,{"$f":"IF(שעות_עבודה7[[#This Row],[התחלה]]=\"\",\"\",\nIF(שעות_עבודה7[[#This Row],[התחלה]]>שעות_עבודה7[[#This Row],[סיום]],\"\",\nשעות_עבודה7[[#This Row],[סיום]]-שעות_עבודה7[[#This Row],[התחלה]]))","v":""},{"$f":"IF(שעות_עבודה7[[#This Row],[שעות]]=\"\",\"\",\nIF(SUMPRODUCT((שעות_עבודה7[[#This Row],[העבודה]]=תעריפים_וסיכום8[שמות העבודות])*שעות_עבודה7[[#This Row],[שעות]]*(תעריפים_וסיכום8[שכר לשעה]*24))=0,\"\",\nSUMPRODUCT((שעות_עבודה7[[#This Row],[העבודה]]=תעריפים_וסיכום8[שמות העבודות])*שעות_עבודה7[[#This Row],[שעות]]*(תעריפים_וסיכום8[שכר לשעה]*24))))","v":""}]
[null,{"$f":"IF(שעות_עבודה7[[#This Row],[תאריך]]=\"\",\"\",ROW(A128))","v":""},null,null,null,null,{"$f":"IF(שעות_עבודה7[[#This Row],[התחלה]]=\"\",\"\",\nIF(שעות_עבודה7[[#This Row],[התחלה]]>שעות_עבודה7[[#This Row],[סיום]],\"\",\nשעות_עבודה7[[#This Row],[סיום]]-שעות_עבודה7[[#This Row],[התחלה]]))","v":""},{"$f":"IF(שעות_עבודה7[[#This Row],[שעות]]=\"\",\"\",\nIF(SUMPRODUCT((שעות_עבודה7[[#This Row],[העבודה]]=תעריפים_וסיכום8[שמות העבודות])*שעות_עבודה7[[#This Row],[שעות]]*(תעריפים_וסיכום8[שכר לשעה]*24))=0,\"\",\nSUMPRODUCT((שעות_עבודה7[[#This Row],[העבודה]]=תעריפים_וסיכום8[שמות העבודות])*שעות_עבודה7[[#This Row],[שעות]]*(תעריפים_וסיכום8[שכר לשעה]*24))))","v":""}]
[null,{"$f":"IF(שעות_עבודה7[[#This Row],[תאריך]]=\"\",\"\",ROW(A129))","v":""},null,null,null,null,{"$f":"IF(שעות_עבודה7[[#This Row],[התחלה]]=\"\",\"\",\nIF(שעות_עבודה7[[#This Row],[התחלה]]>שעות_עבודה7[[#This Row],[סיום]],\"\",\nשעות_עבודה7[[#This Row],[סיום]]-שעות_עבודה7[[#This Row],[התחלה]]))","v":""},{"$f":"IF(שעות_עבודה7[[#This Row],[שעות]]=\"\",\"\",\nIF(SUMPRODUCT((שעות_עבודה7[[#This Row],[העבודה]]=תעריפים_וסיכום8[שמות העבודות])*שעות_עבודה7[[#This Row],[שעות]]*(תעריפים_וסיכום8[שכר לשעה]*24))=0,\"\",\nSUMPRODUCT((שעות_עבודה7[[#This Row],[העבודה]]=תעריפים_וסיכום8[שמות העבודות])*שעות_עבודה7[[#This Row],[שעות]]*(תעריפים_וסיכום8[שכר לשעה]*24))))","v":""}]
[null,{"$f":"IF(שעות_עבודה7[[#This Row],[תאריך]]=\"\",\"\",ROW(A130))","v":""},null,null,null,null,{"$f":"IF(שעות_עבודה7[[#This Row],[התחלה]]=\"\",\"\",\nIF(שעות_עבודה7[[#This Row],[התחלה]]>שעות_עבודה7[[#This Row],[סיום]],\"\",\nשעות_עבודה7[[#This Row],[סיום]]-שעות_עבודה7[[#This Row],[התחלה]]))","v":""},{"$f":"IF(שעות_עבודה7[[#This Row],[שעות]]=\"\",\"\",\nIF(SUMPRODUCT((שעות_עבודה7[[#This Row],[העבודה]]=תעריפים_וסיכום8[שמות העבודות])*שעות_עבודה7[[#This Row],[שעות]]*(תעריפים_וסיכום8[שכר לשעה]*24))=0,\"\",\nSUMPRODUCT((שעות_עבודה7[[#This Row],[העבודה]]=תעריפים_וסיכום8[שמות העבודות])*שעות_עבודה7[[#This Row],[שעות]]*(תעריפים_וסיכום8[שכר לשעה]*24))))","v":""}]
[null,{"$f":"IF(שעות_עבודה7[[#This Row],[תאריך]]=\"\",\"\",ROW(A131))","v":""},null,null,null,null,{"$f":"IF(שעות_עבודה7[[#This Row],[התחלה]]=\"\",\"\",\nIF(שעות_עבודה7[[#This Row],[התחלה]]>שעות_עבודה7[[#This Row],[סיום]],\"\",\nשעות_עבודה7[[#This Row],[סיום]]-שעות_עבודה7[[#This Row],[התחלה]]))","v":""},{"$f":"IF(שעות_עבודה7[[#This Row],[שעות]]=\"\",\"\",\nIF(SUMPRODUCT((שעות_עבודה7[[#This Row],[העבודה]]=תעריפים_וסיכום8[שמות העבודות])*שעות_עבודה7[[#This Row],[שעות]]*(תעריפים_וסיכום8[שכר לשעה]*24))=0,\"\",\nSUMPRODUCT((שעות_עבודה7[[#This Row],[העבודה]]=תעריפים_וסיכום8[שמות העבודות])*שעות_עבודה7[[#This Row],[שעות]]*(תעריפים_וסיכום8[שכר לשעה]*24))))","v":""}]
[null,{"$f":"IF(שעות_עבודה7[[#This Row],[תאריך]]=\"\",\"\",ROW(A132))","v":""},null,null,null,null,{"$f":"IF(שעות_עבודה7[[#This Row],[התחלה]]=\"\",\"\",\nIF(שעות_עבודה7[[#This Row],[התחלה]]>שעות_עבודה7[[#This Row],[סיום]],\"\",\nשעות_עבודה7[[#This Row],[סיום]]-שעות_עבודה7[[#This Row],[התחלה]]))","v":""},{"$f":"IF(שעות_עבודה7[[#This Row],[שעות]]=\"\",\"\",\nIF(SUMPRODUCT((שעות_עבודה7[[#This Row],[העבודה]]=תעריפים_וסיכום8[שמות העבודות])*שעות_עבודה7[[#This Row],[שעות]]*(תעריפים_וסיכום8[שכר לשעה]*24))=0,\"\",\nSUMPRODUCT((שעות_עבודה7[[#This Row],[העבודה]]=תעריפים_וסיכום8[שמות העבודות])*שעות_עבודה7[[#This Row],[שעות]]*(תעריפים_וסיכום8[שכר לשעה]*24))))","v":""}]
[null,{"$f":"IF(שעות_עבודה7[[#This Row],[תאריך]]=\"\",\"\",ROW(A133))","v":""},null,null,null,null,{"$f":"IF(שעות_עבודה7[[#This Row],[התחלה]]=\"\",\"\",\nIF(שעות_עבודה7[[#This Row],[התחלה]]>שעות_עבודה7[[#This Row],[סיום]],\"\",\nשעות_עבודה7[[#This Row],[סיום]]-שעות_עבודה7[[#This Row],[התחלה]]))","v":""},{"$f":"IF(שעות_עבודה7[[#This Row],[שעות]]=\"\",\"\",\nIF(SUMPRODUCT((שעות_עבודה7[[#This Row],[העבודה]]=תעריפים_וסיכום8[שמות העבודות])*שעות_עבודה7[[#This Row],[שעות]]*(תעריפים_וסיכום8[שכר לשעה]*24))=0,\"\",\nSUMPRODUCT((שעות_עבודה7[[#This Row],[העבודה]]=תעריפים_וסיכום8[שמות העבודות])*שעות_עבודה7[[#This Row],[שעות]]*(תעריפים_וסיכום8[שכר לשעה]*24))))","v":""}]
[null,{"$f":"IF(שעות_עבודה7[[#This Row],[תאריך]]=\"\",\"\",ROW(A134))","v":""},null,null,null,null,{"$f":"IF(שעות_עבודה7[[#This Row],[התחלה]]=\"\",\"\",\nIF(שעות_עבודה7[[#This Row],[התחלה]]>שעות_עבודה7[[#This Row],[סיום]],\"\",\nשעות_עבודה7[[#This Row],[סיום]]-שעות_עבודה7[[#This Row],[התחלה]]))","v":""},{"$f":"IF(שעות_עבודה7[[#This Row],[שעות]]=\"\",\"\",\nIF(SUMPRODUCT((שעות_עבודה7[[#This Row],[העבודה]]=תעריפים_וסיכום8[שמות העבודות])*שעות_עבודה7[[#This Row],[שעות]]*(תעריפים_וסיכום8[שכר לשעה]*24))=0,\"\",\nSUMPRODUCT((שעות_עבודה7[[#This Row],[העבודה]]=תעריפים_וסיכום8[שמות העבודות])*שעות_עבודה7[[#This Row],[שעות]]*(תעריפים_וסיכום8[שכר לשעה]*24))))","v":""}]
[null,{"$f":"IF(שעות_עבודה7[[#This Row],[תאריך]]=\"\",\"\",ROW(A135))","v":""},null,null,null,null,{"$f":"IF(שעות_עבודה7[[#This Row],[התחלה]]=\"\",\"\",\nIF(שעות_עבודה7[[#This Row],[התחלה]]>שעות_עבודה7[[#This Row],[סיום]],\"\",\nשעות_עבודה7[[#This Row],[סיום]]-שעות_עבודה7[[#This Row],[התחלה]]))","v":""},{"$f":"IF(שעות_עבודה7[[#This Row],[שעות]]=\"\",\"\",\nIF(SUMPRODUCT((שעות_עבודה7[[#This Row],[העבודה]]=תעריפים_וסיכום8[שמות העבודות])*שעות_עבודה7[[#This Row],[שעות]]*(תעריפים_וסיכום8[שכר לשעה]*24))=0,\"\",\nSUMPRODUCT((שעות_עבודה7[[#This Row],[העבודה]]=תעריפים_וסיכום8[שמות העבודות])*שעות_עבודה7[[#This Row],[שעות]]*(תעריפים_וסיכום8[שכר לשעה]*24))))","v":""}]
[null,{"$f":"IF(שעות_עבודה7[[#This Row],[תאריך]]=\"\",\"\",ROW(A136))","v":""},null,null,null,null,{"$f":"IF(שעות_עבודה7[[#This Row],[התחלה]]=\"\",\"\",\nIF(שעות_עבודה7[[#This Row],[התחלה]]>שעות_עבודה7[[#This Row],[סיום]],\"\",\nשעות_עבודה7[[#This Row],[סיום]]-שעות_עבודה7[[#This Row],[התחלה]]))","v":""},{"$f":"IF(שעות_עבודה7[[#This Row],[שעות]]=\"\",\"\",\nIF(SUMPRODUCT((שעות_עבודה7[[#This Row],[העבודה]]=תעריפים_וסיכום8[שמות העבודות])*שעות_עבודה7[[#This Row],[שעות]]*(תעריפים_וסיכום8[שכר לשעה]*24))=0,\"\",\nSUMPRODUCT((שעות_עבודה7[[#This Row],[העבודה]]=תעריפים_וסיכום8[שמות העבודות])*שעות_עבודה7[[#This Row],[שעות]]*(תעריפים_וסיכום8[שכר לשעה]*24))))","v":""}]
[null,{"$f":"IF(שעות_עבודה7[[#This Row],[תאריך]]=\"\",\"\",ROW(A137))","v":""},null,null,null,null,{"$f":"IF(שעות_עבודה7[[#This Row],[התחלה]]=\"\",\"\",\nIF(שעות_עבודה7[[#This Row],[התחלה]]>שעות_עבודה7[[#This Row],[סיום]],\"\",\nשעות_עבודה7[[#This Row],[סיום]]-שעות_עבודה7[[#This Row],[התחלה]]))","v":""},{"$f":"IF(שעות_עבודה7[[#This Row],[שעות]]=\"\",\"\",\nIF(SUMPRODUCT((שעות_עבודה7[[#This Row],[העבודה]]=תעריפים_וסיכום8[שמות העבודות])*שעות_עבודה7[[#This Row],[שעות]]*(תעריפים_וסיכום8[שכר לשעה]*24))=0,\"\",\nSUMPRODUCT((שעות_עבודה7[[#This Row],[העבודה]]=תעריפים_וסיכום8[שמות העבודות])*שעות_עבודה7[[#This Row],[שעות]]*(תעריפים_וסיכום8[שכר לשעה]*24))))","v":""}]
[null,{"$f":"IF(שעות_עבודה7[[#This Row],[תאריך]]=\"\",\"\",ROW(A138))","v":""},null,null,null,null,{"$f":"IF(שעות_עבודה7[[#This Row],[התחלה]]=\"\",\"\",\nIF(שעות_עבודה7[[#This Row],[התחלה]]>שעות_עבודה7[[#This Row],[סיום]],\"\",\nשעות_עבודה7[[#This Row],[סיום]]-שעות_עבודה7[[#This Row],[התחלה]]))","v":""},{"$f":"IF(שעות_עבודה7[[#This Row],[שעות]]=\"\",\"\",\nIF(SUMPRODUCT((שעות_עבודה7[[#This Row],[העבודה]]=תעריפים_וסיכום8[שמות העבודות])*שעות_עבודה7[[#This Row],[שעות]]*(תעריפים_וסיכום8[שכר לשעה]*24))=0,\"\",\nSUMPRODUCT((שעות_עבודה7[[#This Row],[העבודה]]=תעריפים_וסיכום8[שמות העבודות])*שעות_עבודה7[[#This Row],[שעות]]*(תעריפים_וסיכום8[שכר לשעה]*24))))","v":""}]
[null,{"$f":"IF(שעות_עבודה7[[#This Row],[תאריך]]=\"\",\"\",ROW(A139))","v":""},null,null,null,null,{"$f":"IF(שעות_עבודה7[[#This Row],[התחלה]]=\"\",\"\",\nIF(שעות_עבודה7[[#This Row],[התחלה]]>שעות_עבודה7[[#This Row],[סיום]],\"\",\nשעות_עבודה7[[#This Row],[סיום]]-שעות_עבודה7[[#This Row],[התחלה]]))","v":""},{"$f":"IF(שעות_עבודה7[[#This Row],[שעות]]=\"\",\"\",\nIF(SUMPRODUCT((שעות_עבודה7[[#This Row],[העבודה]]=תעריפים_וסיכום8[שמות העבודות])*שעות_עבודה7[[#This Row],[שעות]]*(תעריפים_וסיכום8[שכר לשעה]*24))=0,\"\",\nSUMPRODUCT((שעות_עבודה7[[#This Row],[העבודה]]=תעריפים_וסיכום8[שמות העבודות])*שעות_עבודה7[[#This Row],[שעות]]*(תעריפים_וסיכום8[שכר לשעה]*24))))","v":""}]
[null,{"$f":"IF(שעות_עבודה7[[#This Row],[תאריך]]=\"\",\"\",ROW(A140))","v":""},null,null,null,null,{"$f":"IF(שעות_עבודה7[[#This Row],[התחלה]]=\"\",\"\",\nIF(שעות_עבודה7[[#This Row],[התחלה]]>שעות_עבודה7[[#This Row],[סיום]],\"\",\nשעות_עבודה7[[#This Row],[סיום]]-שעות_עבודה7[[#This Row],[התחלה]]))","v":""},{"$f":"IF(שעות_עבודה7[[#This Row],[שעות]]=\"\",\"\",\nIF(SUMPRODUCT((שעות_עבודה7[[#This Row],[העבודה]]=תעריפים_וסיכום8[שמות העבודות])*שעות_עבודה7[[#This Row],[שעות]]*(תעריפים_וסיכום8[שכר לשעה]*24))=0,\"\",\nSUMPRODUCT((שעות_עבודה7[[#This Row],[העבודה]]=תעריפים_וסיכום8[שמות העבודות])*שעות_עבודה7[[#This Row],[שעות]]*(תעריפים_וסיכום8[שכר לשעה]*24))))","v":""}]
[null,{"$f":"IF(שעות_עבודה7[[#This Row],[תאריך]]=\"\",\"\",ROW(A141))","v":""},null,null,null,null,{"$f":"IF(שעות_עבודה7[[#This Row],[התחלה]]=\"\",\"\",\nIF(שעות_עבודה7[[#This Row],[התחלה]]>שעות_עבודה7[[#This Row],[סיום]],\"\",\nשעות_עבודה7[[#This Row],[סיום]]-שעות_עבודה7[[#This Row],[התחלה]]))","v":""},{"$f":"IF(שעות_עבודה7[[#This Row],[שעות]]=\"\",\"\",\nIF(SUMPRODUCT((שעות_עבודה7[[#This Row],[העבודה]]=תעריפים_וסיכום8[שמות העבודות])*שעות_עבודה7[[#This Row],[שעות]]*(תעריפים_וסיכום8[שכר לשעה]*24))=0,\"\",\nSUMPRODUCT((שעות_עבודה7[[#This Row],[העבודה]]=תעריפים_וסיכום8[שמות העבודות])*שעות_עבודה7[[#This Row],[שעות]]*(תעריפים_וסיכום8[שכר לשעה]*24))))","v":""}]
[null,{"$f":"IF(שעות_עבודה7[[#This Row],[תאריך]]=\"\",\"\",ROW(A142))","v":""},null,null,null,null,{"$f":"IF(שעות_עבודה7[[#This Row],[התחלה]]=\"\",\"\",\nIF(שעות_עבודה7[[#This Row],[התחלה]]>שעות_עבודה7[[#This Row],[סיום]],\"\",\nשעות_עבודה7[[#This Row],[סיום]]-שעות_עבודה7[[#This Row],[התחלה]]))","v":""},{"$f":"IF(שעות_עבודה7[[#This Row],[שעות]]=\"\",\"\",\nIF(SUMPRODUCT((שעות_עבודה7[[#This Row],[העבודה]]=תעריפים_וסיכום8[שמות העבודות])*שעות_עבודה7[[#This Row],[שעות]]*(תעריפים_וסיכום8[שכר לשעה]*24))=0,\"\",\nSUMPRODUCT((שעות_עבודה7[[#This Row],[העבודה]]=תעריפים_וסיכום8[שמות העבודות])*שעות_עבודה7[[#This Row],[שעות]]*(תעריפים_וסיכום8[שכר לשעה]*24))))","v":""}]
[null,{"$f":"IF(שעות_עבודה7[[#This Row],[תאריך]]=\"\",\"\",ROW(A143))","v":""},null,null,null,null,{"$f":"IF(שעות_עבודה7[[#This Row],[התחלה]]=\"\",\"\",\nIF(שעות_עבודה7[[#This Row],[התחלה]]>שעות_עבודה7[[#This Row],[סיום]],\"\",\nשעות_עבודה7[[#This Row],[סיום]]-שעות_עבודה7[[#This Row],[התחלה]]))","v":""},{"$f":"IF(שעות_עבודה7[[#This Row],[שעות]]=\"\",\"\",\nIF(SUMPRODUCT((שעות_עבודה7[[#This Row],[העבודה]]=תעריפים_וסיכום8[שמות העבודות])*שעות_עבודה7[[#This Row],[שעות]]*(תעריפים_וסיכום8[שכר לשעה]*24))=0,\"\",\nSUMPRODUCT((שעות_עבודה7[[#This Row],[העבודה]]=תעריפים_וסיכום8[שמות העבודות])*שעות_עבודה7[[#This Row],[שעות]]*(תעריפים_וסיכום8[שכר לשעה]*24))))","v":""}]
[null,{"$f":"IF(שעות_עבודה7[[#This Row],[תאריך]]=\"\",\"\",ROW(A144))","v":""},null,null,null,null,{"$f":"IF(שעות_עבודה7[[#This Row],[התחלה]]=\"\",\"\",\nIF(שעות_עבודה7[[#This Row],[התחלה]]>שעות_עבודה7[[#This Row],[סיום]],\"\",\nשעות_עבודה7[[#This Row],[סיום]]-שעות_עבודה7[[#This Row],[התחלה]]))","v":""},{"$f":"IF(שעות_עבודה7[[#This Row],[שעות]]=\"\",\"\",\nIF(SUMPRODUCT((שעות_עבודה7[[#This Row],[העבודה]]=תעריפים_וסיכום8[שמות העבודות])*שעות_עבודה7[[#This Row],[שעות]]*(תעריפים_וסיכום8[שכר לשעה]*24))=0,\"\",\nSUMPRODUCT((שעות_עבודה7[[#This Row],[העבודה]]=תעריפים_וסיכום8[שמות העבודות])*שעות_עבודה7[[#This Row],[שעות]]*(תעריפים_וסיכום8[שכר לשעה]*24))))","v":""}]
[null,{"$f":"IF(שעות_עבודה7[[#This Row],[תאריך]]=\"\",\"\",ROW(A145))","v":""},null,null,null,null,{"$f":"IF(שעות_עבודה7[[#This Row],[התחלה]]=\"\",\"\",\nIF(שעות_עבודה7[[#This Row],[התחלה]]>שעות_עבודה7[[#This Row],[סיום]],\"\",\nשעות_עבודה7[[#This Row],[סיום]]-שעות_עבודה7[[#This Row],[התחלה]]))","v":""},{"$f":"IF(שעות_עבודה7[[#This Row],[שעות]]=\"\",\"\",\nIF(SUMPRODUCT((שעות_עבודה7[[#This Row],[העבודה]]=תעריפים_וסיכום8[שמות העבודות])*שעות_עבודה7[[#This Row],[שעות]]*(תעריפים_וסיכום8[שכר לשעה]*24))=0,\"\",\nSUMPRODUCT((שעות_עבודה7[[#This Row],[העבודה]]=תעריפים_וסיכום8[שמות העבודות])*שעות_עבודה7[[#This Row],[שעות]]*(תעריפים_וסיכום8[שכר לשעה]*24))))","v":""}]
[null,{"$f":"IF(שעות_עבודה7[[#This Row],[תאריך]]=\"\",\"\",ROW(A146))","v":""},null,null,null,null,{"$f":"IF(שעות_עבודה7[[#This Row],[התחלה]]=\"\",\"\",\nIF(שעות_עבודה7[[#This Row],[התחלה]]>שעות_עבודה7[[#This Row],[סיום]],\"\",\nשעות_עבודה7[[#This Row],[סיום]]-שעות_עבודה7[[#This Row],[התחלה]]))","v":""},{"$f":"IF(שעות_עבודה7[[#This Row],[שעות]]=\"\",\"\",\nIF(SUMPRODUCT((שעות_עבודה7[[#This Row],[העבודה]]=תעריפים_וסיכום8[שמות העבודות])*שעות_עבודה7[[#This Row],[שעות]]*(תעריפים_וסיכום8[שכר לשעה]*24))=0,\"\",\nSUMPRODUCT((שעות_עבודה7[[#This Row],[העבודה]]=תעריפים_וסיכום8[שמות העבודות])*שעות_עבודה7[[#This Row],[שעות]]*(תעריפים_וסיכום8[שכר לשעה]*24))))","v":""}]
[null,{"$f":"IF(שעות_עבודה7[[#This Row],[תאריך]]=\"\",\"\",ROW(A147))","v":""},null,null,null,null,{"$f":"IF(שעות_עבודה7[[#This Row],[התחלה]]=\"\",\"\",\nIF(שעות_עבודה7[[#This Row],[התחלה]]>שעות_עבודה7[[#This Row],[סיום]],\"\",\nשעות_עבודה7[[#This Row],[סיום]]-שעות_עבודה7[[#This Row],[התחלה]]))","v":""},{"$f":"IF(שעות_עבודה7[[#This Row],[שעות]]=\"\",\"\",\nIF(SUMPRODUCT((שעות_עבודה7[[#This Row],[העבודה]]=תעריפים_וסיכום8[שמות העבודות])*שעות_עבודה7[[#This Row],[שעות]]*(תעריפים_וסיכום8[שכר לשעה]*24))=0,\"\",\nSUMPRODUCT((שעות_עבודה7[[#This Row],[העבודה]]=תעריפים_וסיכום8[שמות העבודות])*שעות_עבודה7[[#This Row],[שעות]]*(תעריפים_וסיכום8[שכר לשעה]*24))))","v":""}]
[null,{"$f":"IF(שעות_עבודה7[[#This Row],[תאריך]]=\"\",\"\",ROW(A148))","v":""},null,null,null,null,{"$f":"IF(שעות_עבודה7[[#This Row],[התחלה]]=\"\",\"\",\nIF(שעות_עבודה7[[#This Row],[התחלה]]>שעות_עבודה7[[#This Row],[סיום]],\"\",\nשעות_עבודה7[[#This Row],[סיום]]-שעות_עבודה7[[#This Row],[התחלה]]))","v":""},{"$f":"IF(שעות_עבודה7[[#This Row],[שעות]]=\"\",\"\",\nIF(SUMPRODUCT((שעות_עבודה7[[#This Row],[העבודה]]=תעריפים_וסיכום8[שמות העבודות])*שעות_עבודה7[[#This Row],[שעות]]*(תעריפים_וסיכום8[שכר לשעה]*24))=0,\"\",\nSUMPRODUCT((שעות_עבודה7[[#This Row],[העבודה]]=תעריפים_וסיכום8[שמות העבודות])*שעות_עבודה7[[#This Row],[שעות]]*(תעריפים_וסיכום8[שכר לשעה]*24))))","v":""}]
[null,{"$f":"IF(שעות_עבודה7[[#This Row],[תאריך]]=\"\",\"\",ROW(A149))","v":""},null,null,null,null,{"$f":"IF(שעות_עבודה7[[#This Row],[התחלה]]=\"\",\"\",\nIF(שעות_עבודה7[[#This Row],[התחלה]]>שעות_עבודה7[[#This Row],[סיום]],\"\",\nשעות_עבודה7[[#This Row],[סיום]]-שעות_עבודה7[[#This Row],[התחלה]]))","v":""},{"$f":"IF(שעות_עבודה7[[#This Row],[שעות]]=\"\",\"\",\nIF(SUMPRODUCT((שעות_עבודה7[[#This Row],[העבודה]]=תעריפים_וסיכום8[שמות העבודות])*שעות_עבודה7[[#This Row],[שעות]]*(תעריפים_וסיכום8[שכר לשעה]*24))=0,\"\",\nSUMPRODUCT((שעות_עבודה7[[#This Row],[העבודה]]=תעריפים_וסיכום8[שמות העבודות])*שעות_עבודה7[[#This Row],[שעות]]*(תעריפים_וסיכום8[שכר לשעה]*24))))","v":""}]
[null,{"$f":"IF(שעות_עבודה7[[#This Row],[תאריך]]=\"\",\"\",ROW(A150))","v":""},null,null,null,null,{"$f":"IF(שעות_עבודה7[[#This Row],[התחלה]]=\"\",\"\",\nIF(שעות_עבודה7[[#This Row],[התחלה]]>שעות_עבודה7[[#This Row],[סיום]],\"\",\nשעות_עבודה7[[#This Row],[סיום]]-שעות_עבודה7[[#This Row],[התחלה]]))","v":""},{"$f":"IF(שעות_עבודה7[[#This Row],[שעות]]=\"\",\"\",\nIF(SUMPRODUCT((שעות_עבודה7[[#This Row],[העבודה]]=תעריפים_וסיכום8[שמות העבודות])*שעות_עבודה7[[#This Row],[שעות]]*(תעריפים_וסיכום8[שכר לשעה]*24))=0,\"\",\nSUMPRODUCT((שעות_עבודה7[[#This Row],[העבודה]]=תעריפים_וסיכום8[שמות העבודות])*שעות_עבודה7[[#This Row],[שעות]]*(תעריפים_וסיכום8[שכר לשעה]*24))))","v":""}]
[null,{"$f":"IF(שעות_עבודה7[[#This Row],[תאריך]]=\"\",\"\",ROW(A151))","v":""},null,null,null,null,{"$f":"IF(שעות_עבודה7[[#This Row],[התחלה]]=\"\",\"\",\nIF(שעות_עבודה7[[#This Row],[התחלה]]>שעות_עבודה7[[#This Row],[סיום]],\"\",\nשעות_עבודה7[[#This Row],[סיום]]-שעות_עבודה7[[#This Row],[התחלה]]))","v":""},{"$f":"IF(שעות_עבודה7[[#This Row],[שעות]]=\"\",\"\",\nIF(SUMPRODUCT((שעות_עבודה7[[#This Row],[העבודה]]=תעריפים_וסיכום8[שמות העבודות])*שעות_עבודה7[[#This Row],[שעות]]*(תעריפים_וסיכום8[שכר לשעה]*24))=0,\"\",\nSUMPRODUCT((שעות_עבודה7[[#This Row],[העבודה]]=תעריפים_וסיכום8[שמות העבודות])*שעות_עבודה7[[#This Row],[שעות]]*(תעריפים_וסיכום8[שכר לשעה]*24))))","v":""}]
[null,{"$f":"IF(שעות_עבודה7[[#This Row],[תאריך]]=\"\",\"\",ROW(A152))","v":""},null,null,null,null,{"$f":"IF(שעות_עבודה7[[#This Row],[התחלה]]=\"\",\"\",\nIF(שעות_עבודה7[[#This Row],[התחלה]]>שעות_עבודה7[[#This Row],[סיום]],\"\",\nשעות_עבודה7[[#This Row],[סיום]]-שעות_עבודה7[[#This Row],[התחלה]]))","v":""},{"$f":"IF(שעות_עבודה7[[#This Row],[שעות]]=\"\",\"\",\nIF(SUMPRODUCT((שעות_עבודה7[[#This Row],[העבודה]]=תעריפים_וסיכום8[שמות העבודות])*שעות_עבודה7[[#This Row],[שעות]]*(תעריפים_וסיכום8[שכר לשעה]*24))=0,\"\",\nSUMPRODUCT((שעות_עבודה7[[#This Row],[העבודה]]=תעריפים_וסיכום8[שמות העבודות])*שעות_עבודה7[[#This Row],[שעות]]*(תעריפים_וסיכום8[שכר לשעה]*24))))","v":""}]
[null,{"$f":"IF(שעות_עבודה7[[#This Row],[תאריך]]=\"\",\"\",ROW(A153))","v":""},null,null,null,null,{"$f":"IF(שעות_עבודה7[[#This Row],[התחלה]]=\"\",\"\",\nIF(שעות_עבודה7[[#This Row],[התחלה]]>שעות_עבודה7[[#This Row],[סיום]],\"\",\nשעות_עבודה7[[#This Row],[סיום]]-שעות_עבודה7[[#This Row],[התחלה]]))","v":""},{"$f":"IF(שעות_עבודה7[[#This Row],[שעות]]=\"\",\"\",\nIF(SUMPRODUCT((שעות_עבודה7[[#This Row],[העבודה]]=תעריפים_וסיכום8[שמות העבודות])*שעות_עבודה7[[#This Row],[שעות]]*(תעריפים_וסיכום8[שכר לשעה]*24))=0,\"\",\nSUMPRODUCT((שעות_עבודה7[[#This Row],[העבודה]]=תעריפים_וסיכום8[שמות העבודות])*שעות_עבודה7[[#This Row],[שעות]]*(תעריפים_וסיכום8[שכר לשעה]*24))))","v":""}]
[null,{"$f":"IF(שעות_עבודה7[[#This Row],[תאריך]]=\"\",\"\",ROW(A154))","v":""},null,null,null,null,{"$f":"IF(שעות_עבודה7[[#This Row],[התחלה]]=\"\",\"\",\nIF(שעות_עבודה7[[#This Row],[התחלה]]>שעות_עבודה7[[#This Row],[סיום]],\"\",\nשעות_עבודה7[[#This Row],[סיום]]-שעות_עבודה7[[#This Row],[התחלה]]))","v":""},{"$f":"IF(שעות_עבודה7[[#This Row],[שעות]]=\"\",\"\",\nIF(SUMPRODUCT((שעות_עבודה7[[#This Row],[העבודה]]=תעריפים_וסיכום8[שמות העבודות])*שעות_עבודה7[[#This Row],[שעות]]*(תעריפים_וסיכום8[שכר לשעה]*24))=0,\"\",\nSUMPRODUCT((שעות_עבודה7[[#This Row],[העבודה]]=תעריפים_וסיכום8[שמות העבודות])*שעות_עבודה7[[#This Row],[שעות]]*(תעריפים_וסיכום8[שכר לשעה]*24))))","v":""}]
[null,{"$f":"IF(שעות_עבודה7[[#This Row],[תאריך]]=\"\",\"\",ROW(A155))","v":""},null,null,null,null,{"$f":"IF(שעות_עבודה7[[#This Row],[התחלה]]=\"\",\"\",\nIF(שעות_עבודה7[[#This Row],[התחלה]]>שעות_עבודה7[[#This Row],[סיום]],\"\",\nשעות_עבודה7[[#This Row],[סיום]]-שעות_עבודה7[[#This Row],[התחלה]]))","v":""},{"$f":"IF(שעות_עבודה7[[#This Row],[שעות]]=\"\",\"\",\nIF(SUMPRODUCT((שעות_עבודה7[[#This Row],[העבודה]]=תעריפים_וסיכום8[שמות העבודות])*שעות_עבודה7[[#This Row],[שעות]]*(תעריפים_וסיכום8[שכר לשעה]*24))=0,\"\",\nSUMPRODUCT((שעות_עבודה7[[#This Row],[העבודה]]=תעריפים_וסיכום8[שמות העבודות])*שעות_עבודה7[[#This Row],[שעות]]*(תעריפים_וסיכום8[שכר לשעה]*24))))","v":""}]
[null,{"$f":"IF(שעות_עבודה7[[#This Row],[תאריך]]=\"\",\"\",ROW(A156))","v":""},null,null,null,null,{"$f":"IF(שעות_עבודה7[[#This Row],[התחלה]]=\"\",\"\",\nIF(שעות_עבודה7[[#This Row],[התחלה]]>שעות_עבודה7[[#This Row],[סיום]],\"\",\nשעות_עבודה7[[#This Row],[סיום]]-שעות_עבודה7[[#This Row],[התחלה]]))","v":""},{"$f":"IF(שעות_עבודה7[[#This Row],[שעות]]=\"\",\"\",\nIF(SUMPRODUCT((שעות_עבודה7[[#This Row],[העבודה]]=תעריפים_וסיכום8[שמות העבודות])*שעות_עבודה7[[#This Row],[שעות]]*(תעריפים_וסיכום8[שכר לשעה]*24))=0,\"\",\nSUMPRODUCT((שעות_עבודה7[[#This Row],[העבודה]]=תעריפים_וסיכום8[שמות העבודות])*שעות_עבודה7[[#This Row],[שעות]]*(תעריפים_וסיכום8[שכר לשעה]*24))))","v":""}]
[null,{"$f":"IF(שעות_עבודה7[[#This Row],[תאריך]]=\"\",\"\",ROW(A157))","v":""},null,null,null,null,{"$f":"IF(שעות_עבודה7[[#This Row],[התחלה]]=\"\",\"\",\nIF(שעות_עבודה7[[#This Row],[התחלה]]>שעות_עבודה7[[#This Row],[סיום]],\"\",\nשעות_עבודה7[[#This Row],[סיום]]-שעות_עבודה7[[#This Row],[התחלה]]))","v":""},{"$f":"IF(שעות_עבודה7[[#This Row],[שעות]]=\"\",\"\",\nIF(SUMPRODUCT((שעות_עבודה7[[#This Row],[העבודה]]=תעריפים_וסיכום8[שמות העבודות])*שעות_עבודה7[[#This Row],[שעות]]*(תעריפים_וסיכום8[שכר לשעה]*24))=0,\"\",\nSUMPRODUCT((שעות_עבודה7[[#This Row],[העבודה]]=תעריפים_וסיכום8[שמות העבודות])*שעות_עבודה7[[#This Row],[שעות]]*(תעריפים_וסיכום8[שכר לשעה]*24))))","v":""}]
[null,{"$f":"IF(שעות_עבודה7[[#This Row],[תאריך]]=\"\",\"\",ROW(A158))","v":""},null,null,null,null,{"$f":"IF(שעות_עבודה7[[#This Row],[התחלה]]=\"\",\"\",\nIF(שעות_עבודה7[[#This Row],[התחלה]]>שעות_עבודה7[[#This Row],[סיום]],\"\",\nשעות_עבודה7[[#This Row],[סיום]]-שעות_עבודה7[[#This Row],[התחלה]]))","v":""},{"$f":"IF(שעות_עבודה7[[#This Row],[שעות]]=\"\",\"\",\nIF(SUMPRODUCT((שעות_עבודה7[[#This Row],[העבודה]]=תעריפים_וסיכום8[שמות העבודות])*שעות_עבודה7[[#This Row],[שעות]]*(תעריפים_וסיכום8[שכר לשעה]*24))=0,\"\",\nSUMPRODUCT((שעות_עבודה7[[#This Row],[העבודה]]=תעריפים_וסיכום8[שמות העבודות])*שעות_עבודה7[[#This Row],[שעות]]*(תעריפים_וסיכום8[שכר לשעה]*24))))","v":""}]
[null,{"$f":"IF(שעות_עבודה7[[#This Row],[תאריך]]=\"\",\"\",ROW(A159))","v":""},null,null,null,null,{"$f":"IF(שעות_עבודה7[[#This Row],[התחלה]]=\"\",\"\",\nIF(שעות_עבודה7[[#This Row],[התחלה]]>שעות_עבודה7[[#This Row],[סיום]],\"\",\nשעות_עבודה7[[#This Row],[סיום]]-שעות_עבודה7[[#This Row],[התחלה]]))","v":""},{"$f":"IF(שעות_עבודה7[[#This Row],[שעות]]=\"\",\"\",\nIF(SUMPRODUCT((שעות_עבודה7[[#This Row],[העבודה]]=תעריפים_וסיכום8[שמות העבודות])*שעות_עבודה7[[#This Row],[שעות]]*(תעריפים_וסיכום8[שכר לשעה]*24))=0,\"\",\nSUMPRODUCT((שעות_עבודה7[[#This Row],[העבודה]]=תעריפים_וסיכום8[שמות העבודות])*שעות_עבודה7[[#This Row],[שעות]]*(תעריפים_וסיכום8[שכר לשעה]*24))))","v":""}]
[null,{"$f":"IF(שעות_עבודה7[[#This Row],[תאריך]]=\"\",\"\",ROW(A160))","v":""},null,null,null,null,{"$f":"IF(שעות_עבודה7[[#This Row],[התחלה]]=\"\",\"\",\nIF(שעות_עבודה7[[#This Row],[התחלה]]>שעות_עבודה7[[#This Row],[סיום]],\"\",\nשעות_עבודה7[[#This Row],[סיום]]-שעות_עבודה7[[#This Row],[התחלה]]))","v":""},{"$f":"IF(שעות_עבודה7[[#This Row],[שעות]]=\"\",\"\",\nIF(SUMPRODUCT((שעות_עבודה7[[#This Row],[העבודה]]=תעריפים_וסיכום8[שמות העבודות])*שעות_עבודה7[[#This Row],[שעות]]*(תעריפים_וסיכום8[שכר לשעה]*24))=0,\"\",\nSUMPRODUCT((שעות_עבודה7[[#This Row],[העבודה]]=תעריפים_וסיכום8[שמות העבודות])*שעות_עבודה7[[#This Row],[שעות]]*(תעריפים_וסיכום8[שכר לשעה]*24))))","v":""}]
[null,{"$f":"IF(שעות_עבודה7[[#This Row],[תאריך]]=\"\",\"\",ROW(A161))","v":""},null,null,null,null,{"$f":"IF(שעות_עבודה7[[#This Row],[התחלה]]=\"\",\"\",\nIF(שעות_עבודה7[[#This Row],[התחלה]]>שעות_עבודה7[[#This Row],[סיום]],\"\",\nשעות_עבודה7[[#This Row],[סיום]]-שעות_עבודה7[[#This Row],[התחלה]]))","v":""},{"$f":"IF(שעות_עבודה7[[#This Row],[שעות]]=\"\",\"\",\nIF(SUMPRODUCT((שעות_עבודה7[[#This Row],[העבודה]]=תעריפים_וסיכום8[שמות העבודות])*שעות_עבודה7[[#This Row],[שעות]]*(תעריפים_וסיכום8[שכר לשעה]*24))=0,\"\",\nSUMPRODUCT((שעות_עבודה7[[#This Row],[העבודה]]=תעריפים_וסיכום8[שמות העבודות])*שעות_עבודה7[[#This Row],[שעות]]*(תעריפים_וסיכום8[שכר לשעה]*24))))","v":""}]
[null,{"$f":"IF(שעות_עבודה7[[#This Row],[תאריך]]=\"\",\"\",ROW(A162))","v":""},null,null,null,null,{"$f":"IF(שעות_עבודה7[[#This Row],[התחלה]]=\"\",\"\",\nIF(שעות_עבודה7[[#This Row],[התחלה]]>שעות_עבודה7[[#This Row],[סיום]],\"\",\nשעות_עבודה7[[#This Row],[סיום]]-שעות_עבודה7[[#This Row],[התחלה]]))","v":""},{"$f":"IF(שעות_עבודה7[[#This Row],[שעות]]=\"\",\"\",\nIF(SUMPRODUCT((שעות_עבודה7[[#This Row],[העבודה]]=תעריפים_וסיכום8[שמות העבודות])*שעות_עבודה7[[#This Row],[שעות]]*(תעריפים_וסיכום8[שכר לשעה]*24))=0,\"\",\nSUMPRODUCT((שעות_עבודה7[[#This Row],[העבודה]]=תעריפים_וסיכום8[שמות העבודות])*שעות_עבודה7[[#This Row],[שעות]]*(תעריפים_וסיכום8[שכר לשעה]*24))))","v":""}]
[null,{"$f":"IF(שעות_עבודה7[[#This Row],[תאריך]]=\"\",\"\",ROW(A163))","v":""},null,null,null,null,{"$f":"IF(שעות_עבודה7[[#This Row],[התחלה]]=\"\",\"\",\nIF(שעות_עבודה7[[#This Row],[התחלה]]>שעות_עבודה7[[#This Row],[סיום]],\"\",\nשעות_עבודה7[[#This Row],[סיום]]-שעות_עבודה7[[#This Row],[התחלה]]))","v":""},{"$f":"IF(שעות_עבודה7[[#This Row],[שעות]]=\"\",\"\",\nIF(SUMPRODUCT((שעות_עבודה7[[#This Row],[העבודה]]=תעריפים_וסיכום8[שמות העבודות])*שעות_עבודה7[[#This Row],[שעות]]*(תעריפים_וסיכום8[שכר לשעה]*24))=0,\"\",\nSUMPRODUCT((שעות_עבודה7[[#This Row],[העבודה]]=תעריפים_וסיכום8[שמות העבודות])*שעות_עבודה7[[#This Row],[שעות]]*(תעריפים_וסיכום8[שכר לשעה]*24))))","v":""}]
[null,{"$f":"IF(שעות_עבודה7[[#This Row],[תאריך]]=\"\",\"\",ROW(A164))","v":""},null,null,null,null,{"$f":"IF(שעות_עבודה7[[#This Row],[התחלה]]=\"\",\"\",\nIF(שעות_עבודה7[[#This Row],[התחלה]]>שעות_עבודה7[[#This Row],[סיום]],\"\",\nשעות_עבודה7[[#This Row],[סיום]]-שעות_עבודה7[[#This Row],[התחלה]]))","v":""},{"$f":"IF(שעות_עבודה7[[#This Row],[שעות]]=\"\",\"\",\nIF(SUMPRODUCT((שעות_עבודה7[[#This Row],[העבודה]]=תעריפים_וסיכום8[שמות העבודות])*שעות_עבודה7[[#This Row],[שעות]]*(תעריפים_וסיכום8[שכר לשעה]*24))=0,\"\",\nSUMPRODUCT((שעות_עבודה7[[#This Row],[העבודה]]=תעריפים_וסיכום8[שמות העבודות])*שעות_עבודה7[[#This Row],[שעות]]*(תעריפים_וסיכום8[שכר לשעה]*24))))","v":""}]
[null,{"$f":"IF(שעות_עבודה7[[#This Row],[תאריך]]=\"\",\"\",ROW(A165))","v":""},null,null,null,null,{"$f":"IF(שעות_עבודה7[[#This Row],[התחלה]]=\"\",\"\",\nIF(שעות_עבודה7[[#This Row],[התחלה]]>שעות_עבודה7[[#This Row],[סיום]],\"\",\nשעות_עבודה7[[#This Row],[סיום]]-שעות_עבודה7[[#This Row],[התחלה]]))","v":""},{"$f":"IF(שעות_עבודה7[[#This Row],[שעות]]=\"\",\"\",\nIF(SUMPRODUCT((שעות_עבודה7[[#This Row],[העבודה]]=תעריפים_וסיכום8[שמות העבודות])*שעות_עבודה7[[#This Row],[שעות]]*(תעריפים_וסיכום8[שכר לשעה]*24))=0,\"\",\nSUMPRODUCT((שעות_עבודה7[[#This Row],[העבודה]]=תעריפים_וסיכום8[שמות העבודות])*שעות_עבודה7[[#This Row],[שעות]]*(תעריפים_וסיכום8[שכר לשעה]*24))))","v":""}]
[null,{"$f":"IF(שעות_עבודה7[[#This Row],[תאריך]]=\"\",\"\",ROW(A166))","v":""},null,null,null,null,{"$f":"IF(שעות_עבודה7[[#This Row],[התחלה]]=\"\",\"\",\nIF(שעות_עבודה7[[#This Row],[התחלה]]>שעות_עבודה7[[#This Row],[סיום]],\"\",\nשעות_עבודה7[[#This Row],[סיום]]-שעות_עבודה7[[#This Row],[התחלה]]))","v":""},{"$f":"IF(שעות_עבודה7[[#This Row],[שעות]]=\"\",\"\",\nIF(SUMPRODUCT((שעות_עבודה7[[#This Row],[העבודה]]=תעריפים_וסיכום8[שמות העבודות])*שעות_עבודה7[[#This Row],[שעות]]*(תעריפים_וסיכום8[שכר לשעה]*24))=0,\"\",\nSUMPRODUCT((שעות_עבודה7[[#This Row],[העבודה]]=תעריפים_וסיכום8[שמות העבודות])*שעות_עבודה7[[#This Row],[שעות]]*(תעריפים_וסיכום8[שכר לשעה]*24))))","v":""}]
[null,{"$f":"IF(שעות_עבודה7[[#This Row],[תאריך]]=\"\",\"\",ROW(A167))","v":""},null,null,null,null,{"$f":"IF(שעות_עבודה7[[#This Row],[התחלה]]=\"\",\"\",\nIF(שעות_עבודה7[[#This Row],[התחלה]]>שעות_עבודה7[[#This Row],[סיום]],\"\",\nשעות_עבודה7[[#This Row],[סיום]]-שעות_עבודה7[[#This Row],[התחלה]]))","v":""},{"$f":"IF(שעות_עבודה7[[#This Row],[שעות]]=\"\",\"\",\nIF(SUMPRODUCT((שעות_עבודה7[[#This Row],[העבודה]]=תעריפים_וסיכום8[שמות העבודות])*שעות_עבודה7[[#This Row],[שעות]]*(תעריפים_וסיכום8[שכר לשעה]*24))=0,\"\",\nSUMPRODUCT((שעות_עבודה7[[#This Row],[העבודה]]=תעריפים_וסיכום8[שמות העבודות])*שעות_עבודה7[[#This Row],[שעות]]*(תעריפים_וסיכום8[שכר לשעה]*24))))","v":""}]
[null,{"$f":"IF(שעות_עבודה7[[#This Row],[תאריך]]=\"\",\"\",ROW(A168))","v":""},null,null,null,null,{"$f":"IF(שעות_עבודה7[[#This Row],[התחלה]]=\"\",\"\",\nIF(שעות_עבודה7[[#This Row],[התחלה]]>שעות_עבודה7[[#This Row],[סיום]],\"\",\nשעות_עבודה7[[#This Row],[סיום]]-שעות_עבודה7[[#This Row],[התחלה]]))","v":""},{"$f":"IF(שעות_עבודה7[[#This Row],[שעות]]=\"\",\"\",\nIF(SUMPRODUCT((שעות_עבודה7[[#This Row],[העבודה]]=תעריפים_וסיכום8[שמות העבודות])*שעות_עבודה7[[#This Row],[שעות]]*(תעריפים_וסיכום8[שכר לשעה]*24))=0,\"\",\nSUMPRODUCT((שעות_עבודה7[[#This Row],[העבודה]]=תעריפים_וסיכום8[שמות העבודות])*שעות_עבודה7[[#This Row],[שעות]]*(תעריפים_וסיכום8[שכר לשעה]*24))))","v":""}]
[null,{"$f":"IF(שעות_עבודה7[[#This Row],[תאריך]]=\"\",\"\",ROW(A169))","v":""},null,null,null,null,{"$f":"IF(שעות_עבודה7[[#This Row],[התחלה]]=\"\",\"\",\nIF(שעות_עבודה7[[#This Row],[התחלה]]>שעות_עבודה7[[#This Row],[סיום]],\"\",\nשעות_עבודה7[[#This Row],[סיום]]-שעות_עבודה7[[#This Row],[התחלה]]))","v":""},{"$f":"IF(שעות_עבודה7[[#This Row],[שעות]]=\"\",\"\",\nIF(SUMPRODUCT((שעות_עבודה7[[#This Row],[העבודה]]=תעריפים_וסיכום8[שמות העבודות])*שעות_עבודה7[[#This Row],[שעות]]*(תעריפים_וסיכום8[שכר לשעה]*24))=0,\"\",\nSUMPRODUCT((שעות_עבודה7[[#This Row],[העבודה]]=תעריפים_וסיכום8[שמות העבודות])*שעות_עבודה7[[#This Row],[שעות]]*(תעריפים_וסיכום8[שכר לשעה]*24))))","v":""}]
[null,{"$f":"IF(שעות_עבודה7[[#This Row],[תאריך]]=\"\",\"\",ROW(A170))","v":""},null,null,null,null,{"$f":"IF(שעות_עבודה7[[#This Row],[התחלה]]=\"\",\"\",\nIF(שעות_עבודה7[[#This Row],[התחלה]]>שעות_עבודה7[[#This Row],[סיום]],\"\",\nשעות_עבודה7[[#This Row],[סיום]]-שעות_עבודה7[[#This Row],[התחלה]]))","v":""},{"$f":"IF(שעות_עבודה7[[#This Row],[שעות]]=\"\",\"\",\nIF(SUMPRODUCT((שעות_עבודה7[[#This Row],[העבודה]]=תעריפים_וסיכום8[שמות העבודות])*שעות_עבודה7[[#This Row],[שעות]]*(תעריפים_וסיכום8[שכר לשעה]*24))=0,\"\",\nSUMPRODUCT((שעות_עבודה7[[#This Row],[העבודה]]=תעריפים_וסיכום8[שמות העבודות])*שעות_עבודה7[[#This Row],[שעות]]*(תעריפים_וסיכום8[שכר לשעה]*24))))","v":""}]
[null,{"$f":"IF(שעות_עבודה7[[#This Row],[תאריך]]=\"\",\"\",ROW(A171))","v":""},null,null,null,null,{"$f":"IF(שעות_עבודה7[[#This Row],[התחלה]]=\"\",\"\",\nIF(שעות_עבודה7[[#This Row],[התחלה]]>שעות_עבודה7[[#This Row],[סיום]],\"\",\nשעות_עבודה7[[#This Row],[סיום]]-שעות_עבודה7[[#This Row],[התחלה]]))","v":""},{"$f":"IF(שעות_עבודה7[[#This Row],[שעות]]=\"\",\"\",\nIF(SUMPRODUCT((שעות_עבודה7[[#This Row],[העבודה]]=תעריפים_וסיכום8[שמות העבודות])*שעות_עבודה7[[#This Row],[שעות]]*(תעריפים_וסיכום8[שכר לשעה]*24))=0,\"\",\nSUMPRODUCT((שעות_עבודה7[[#This Row],[העבודה]]=תעריפים_וסיכום8[שמות העבודות])*שעות_עבודה7[[#This Row],[שעות]]*(תעריפים_וסיכום8[שכר לשעה]*24))))","v":""}]
[null,{"$f":"IF(שעות_עבודה7[[#This Row],[תאריך]]=\"\",\"\",ROW(A172))","v":""},null,null,null,null,{"$f":"IF(שעות_עבודה7[[#This Row],[התחלה]]=\"\",\"\",\nIF(שעות_עבודה7[[#This Row],[התחלה]]>שעות_עבודה7[[#This Row],[סיום]],\"\",\nשעות_עבודה7[[#This Row],[סיום]]-שעות_עבודה7[[#This Row],[התחלה]]))","v":""},{"$f":"IF(שעות_עבודה7[[#This Row],[שעות]]=\"\",\"\",\nIF(SUMPRODUCT((שעות_עבודה7[[#This Row],[העבודה]]=תעריפים_וסיכום8[שמות העבודות])*שעות_עבודה7[[#This Row],[שעות]]*(תעריפים_וסיכום8[שכר לשעה]*24))=0,\"\",\nSUMPRODUCT((שעות_עבודה7[[#This Row],[העבודה]]=תעריפים_וסיכום8[שמות העבודות])*שעות_עבודה7[[#This Row],[שעות]]*(תעריפים_וסיכום8[שכר לשעה]*24))))","v":""}]
[null,{"$f":"IF(שעות_עבודה7[[#This Row],[תאריך]]=\"\",\"\",ROW(A173))","v":""},null,null,null,null,{"$f":"IF(שעות_עבודה7[[#This Row],[התחלה]]=\"\",\"\",\nIF(שעות_עבודה7[[#This Row],[התחלה]]>שעות_עבודה7[[#This Row],[סיום]],\"\",\nשעות_עבודה7[[#This Row],[סיום]]-שעות_עבודה7[[#This Row],[התחלה]]))","v":""},{"$f":"IF(שעות_עבודה7[[#This Row],[שעות]]=\"\",\"\",\nIF(SUMPRODUCT((שעות_עבודה7[[#This Row],[העבודה]]=תעריפים_וסיכום8[שמות העבודות])*שעות_עבודה7[[#This Row],[שעות]]*(תעריפים_וסיכום8[שכר לשעה]*24))=0,\"\",\nSUMPRODUCT((שעות_עבודה7[[#This Row],[העבודה]]=תעריפים_וסיכום8[שמות העבודות])*שעות_עבודה7[[#This Row],[שעות]]*(תעריפים_וסיכום8[שכר לשעה]*24))))","v":""}]
[null,{"$f":"IF(שעות_עבודה7[[#This Row],[תאריך]]=\"\",\"\",ROW(A174))","v":""},null,null,null,null,{"$f":"IF(שעות_עבודה7[[#This Row],[התחלה]]=\"\",\"\",\nIF(שעות_עבודה7[[#This Row],[התחלה]]>שעות_עבודה7[[#This Row],[סיום]],\"\",\nשעות_עבודה7[[#This Row],[סיום]]-שעות_עבודה7[[#This Row],[התחלה]]))","v":""},{"$f":"IF(שעות_עבודה7[[#This Row],[שעות]]=\"\",\"\",\nIF(SUMPRODUCT((שעות_עבודה7[[#This Row],[העבודה]]=תעריפים_וסיכום8[שמות העבודות])*שעות_עבודה7[[#This Row],[שעות]]*(תעריפים_וסיכום8[שכר לשעה]*24))=0,\"\",\nSUMPRODUCT((שעות_עבודה7[[#This Row],[העבודה]]=תעריפים_וסיכום8[שמות העבודות])*שעות_עבודה7[[#This Row],[שעות]]*(תעריפים_וסיכום8[שכר לשעה]*24))))","v":""}]
[null,{"$f":"IF(שעות_עבודה7[[#This Row],[תאריך]]=\"\",\"\",ROW(A175))","v":""},null,null,null,null,{"$f":"IF(שעות_עבודה7[[#This Row],[התחלה]]=\"\",\"\",\nIF(שעות_עבודה7[[#This Row],[התחלה]]>שעות_עבודה7[[#This Row],[סיום]],\"\",\nשעות_עבודה7[[#This Row],[סיום]]-שעות_עבודה7[[#This Row],[התחלה]]))","v":""},{"$f":"IF(שעות_עבודה7[[#This Row],[שעות]]=\"\",\"\",\nIF(SUMPRODUCT((שעות_עבודה7[[#This Row],[העבודה]]=תעריפים_וסיכום8[שמות העבודות])*שעות_עבודה7[[#This Row],[שעות]]*(תעריפים_וסיכום8[שכר לשעה]*24))=0,\"\",\nSUMPRODUCT((שעות_עבודה7[[#This Row],[העבודה]]=תעריפים_וסיכום8[שמות העבודות])*שעות_עבודה7[[#This Row],[שעות]]*(תעריפים_וסיכום8[שכר לשעה]*24))))","v":""}]
[null,{"$f":"IF(שעות_עבודה7[[#This Row],[תאריך]]=\"\",\"\",ROW(A176))","v":""},null,null,null,null,{"$f":"IF(שעות_עבודה7[[#This Row],[התחלה]]=\"\",\"\",\nIF(שעות_עבודה7[[#This Row],[התחלה]]>שעות_עבודה7[[#This Row],[סיום]],\"\",\nשעות_עבודה7[[#This Row],[סיום]]-שעות_עבודה7[[#This Row],[התחלה]]))","v":""},{"$f":"IF(שעות_עבודה7[[#This Row],[שעות]]=\"\",\"\",\nIF(SUMPRODUCT((שעות_עבודה7[[#This Row],[העבודה]]=תעריפים_וסיכום8[שמות העבודות])*שעות_עבודה7[[#This Row],[שעות]]*(תעריפים_וסיכום8[שכר לשעה]*24))=0,\"\",\nSUMPRODUCT((שעות_עבודה7[[#This Row],[העבודה]]=תעריפים_וסיכום8[שמות העבודות])*שעות_עבודה7[[#This Row],[שעות]]*(תעריפים_וסיכום8[שכר לשעה]*24))))","v":""}]
[null,{"$f":"IF(שעות_עבודה7[[#This Row],[תאריך]]=\"\",\"\",ROW(A177))","v":""},null,null,null,null,{"$f":"IF(שעות_עבודה7[[#This Row],[התחלה]]=\"\",\"\",\nIF(שעות_עבודה7[[#This Row],[התחלה]]>שעות_עבודה7[[#This Row],[סיום]],\"\",\nשעות_עבודה7[[#This Row],[סיום]]-שעות_עבודה7[[#This Row],[התחלה]]))","v":""},{"$f":"IF(שעות_עבודה7[[#This Row],[שעות]]=\"\",\"\",\nIF(SUMPRODUCT((שעות_עבודה7[[#This Row],[העבודה]]=תעריפים_וסיכום8[שמות העבודות])*שעות_עבודה7[[#This Row],[שעות]]*(תעריפים_וסיכום8[שכר לשעה]*24))=0,\"\",\nSUMPRODUCT((שעות_עבודה7[[#This Row],[העבודה]]=תעריפים_וסיכום8[שמות העבודות])*שעות_עבודה7[[#This Row],[שעות]]*(תעריפים_וסיכום8[שכר לשעה]*24))))","v":""}]
[null,{"$f":"IF(שעות_עבודה7[[#This Row],[תאריך]]=\"\",\"\",ROW(A178))","v":""},null,null,null,null,{"$f":"IF(שעות_עבודה7[[#This Row],[התחלה]]=\"\",\"\",\nIF(שעות_עבודה7[[#This Row],[התחלה]]>שעות_עבודה7[[#This Row],[סיום]],\"\",\nשעות_עבודה7[[#This Row],[סיום]]-שעות_עבודה7[[#This Row],[התחלה]]))","v":""},{"$f":"IF(שעות_עבודה7[[#This Row],[שעות]]=\"\",\"\",\nIF(SUMPRODUCT((שעות_עבודה7[[#This Row],[העבודה]]=תעריפים_וסיכום8[שמות העבודות])*שעות_עבודה7[[#This Row],[שעות]]*(תעריפים_וסיכום8[שכר לשעה]*24))=0,\"\",\nSUMPRODUCT((שעות_עבודה7[[#This Row],[העבודה]]=תעריפים_וסיכום8[שמות העבודות])*שעות_עבודה7[[#This Row],[שעות]]*(תעריפים_וסיכום8[שכר לשעה]*24))))","v":""}]
[null,{"$f":"IF(שעות_עבודה7[[#This Row],[תאריך]]=\"\",\"\",ROW(A179))","v":""},null,null,null,null,{"$f":"IF(שעות_עבודה7[[#This Row],[התחלה]]=\"\",\"\",\nIF(שעות_עבודה7[[#This Row],[התחלה]]>שעות_עבודה7[[#This Row],[סיום]],\"\",\nשעות_עבודה7[[#This Row],[סיום]]-שעות_עבודה7[[#This Row],[התחלה]]))","v":""},{"$f":"IF(שעות_עבודה7[[#This Row],[שעות]]=\"\",\"\",\nIF(SUMPRODUCT((שעות_עבודה7[[#This Row],[העבודה]]=תעריפים_וסיכום8[שמות העבודות])*שעות_עבודה7[[#This Row],[שעות]]*(תעריפים_וסיכום8[שכר לשעה]*24))=0,\"\",\nSUMPRODUCT((שעות_עבודה7[[#This Row],[העבודה]]=תעריפים_וסיכום8[שמות העבודות])*שעות_עבודה7[[#This Row],[שעות]]*(תעריפים_וסיכום8[שכר לשעה]*24))))","v":""}]
[null,{"$f":"IF(שעות_עבודה7[[#This Row],[תאריך]]=\"\",\"\",ROW(A180))","v":""},null,null,null,null,{"$f":"IF(שעות_עבודה7[[#This Row],[התחלה]]=\"\",\"\",\nIF(שעות_עבודה7[[#This Row],[התחלה]]>שעות_עבודה7[[#This Row],[סיום]],\"\",\nשעות_עבודה7[[#This Row],[סיום]]-שעות_עבודה7[[#This Row],[התחלה]]))","v":""},{"$f":"IF(שעות_עבודה7[[#This Row],[שעות]]=\"\",\"\",\nIF(SUMPRODUCT((שעות_עבודה7[[#This Row],[העבודה]]=תעריפים_וסיכום8[שמות העבודות])*שעות_עבודה7[[#This Row],[שעות]]*(תעריפים_וסיכום8[שכר לשעה]*24))=0,\"\",\nSUMPRODUCT((שעות_עבודה7[[#This Row],[העבודה]]=תעריפים_וסיכום8[שמות העבודות])*שעות_עבודה7[[#This Row],[שעות]]*(תעריפים_וסיכום8[שכר לשעה]*24))))","v":""}]
[null,{"$f":"IF(שעות_עבודה7[[#This Row],[תאריך]]=\"\",\"\",ROW(A181))","v":""},null,null,null,null,{"$f":"IF(שעות_עבודה7[[#This Row],[התחלה]]=\"\",\"\",\nIF(שעות_עבודה7[[#This Row],[התחלה]]>שעות_עבודה7[[#This Row],[סיום]],\"\",\nשעות_עבודה7[[#This Row],[סיום]]-שעות_עבודה7[[#This Row],[התחלה]]))","v":""},{"$f":"IF(שעות_עבודה7[[#This Row],[שעות]]=\"\",\"\",\nIF(SUMPRODUCT((שעות_עבודה7[[#This Row],[העבודה]]=תעריפים_וסיכום8[שמות העבודות])*שעות_עבודה7[[#This Row],[שעות]]*(תעריפים_וסיכום8[שכר לשעה]*24))=0,\"\",\nSUMPRODUCT((שעות_עבודה7[[#This Row],[העבודה]]=תעריפים_וסיכום8[שמות העבודות])*שעות_עבודה7[[#This Row],[שעות]]*(תעריפים_וסיכום8[שכר לשעה]*24))))","v":""}]
[null,{"$f":"IF(שעות_עבודה7[[#This Row],[תאריך]]=\"\",\"\",ROW(A182))","v":""},null,null,null,null,{"$f":"IF(שעות_עבודה7[[#This Row],[התחלה]]=\"\",\"\",\nIF(שעות_עבודה7[[#This Row],[התחלה]]>שעות_עבודה7[[#This Row],[סיום]],\"\",\nשעות_עבודה7[[#This Row],[סיום]]-שעות_עבודה7[[#This Row],[התחלה]]))","v":""},{"$f":"IF(שעות_עבודה7[[#This Row],[שעות]]=\"\",\"\",\nIF(SUMPRODUCT((שעות_עבודה7[[#This Row],[העבודה]]=תעריפים_וסיכום8[שמות העבודות])*שעות_עבודה7[[#This Row],[שעות]]*(תעריפים_וסיכום8[שכר לשעה]*24))=0,\"\",\nSUMPRODUCT((שעות_עבודה7[[#This Row],[העבודה]]=תעריפים_וסיכום8[שמות העבודות])*שעות_עבודה7[[#This Row],[שעות]]*(תעריפים_וסיכום8[שכר לשעה]*24))))","v":""}]
[null,{"$f":"IF(שעות_עבודה7[[#This Row],[תאריך]]=\"\",\"\",ROW(A183))","v":""},null,null,null,null,{"$f":"IF(שעות_עבודה7[[#This Row],[התחלה]]=\"\",\"\",\nIF(שעות_עבודה7[[#This Row],[התחלה]]>שעות_עבודה7[[#This Row],[סיום]],\"\",\nשעות_עבודה7[[#This Row],[סיום]]-שעות_עבודה7[[#This Row],[התחלה]]))","v":""},{"$f":"IF(שעות_עבודה7[[#This Row],[שעות]]=\"\",\"\",\nIF(SUMPRODUCT((שעות_עבודה7[[#This Row],[העבודה]]=תעריפים_וסיכום8[שמות העבודות])*שעות_עבודה7[[#This Row],[שעות]]*(תעריפים_וסיכום8[שכר לשעה]*24))=0,\"\",\nSUMPRODUCT((שעות_עבודה7[[#This Row],[העבודה]]=תעריפים_וסיכום8[שמות העבודות])*שעות_עבודה7[[#This Row],[שעות]]*(תעריפים_וסיכום8[שכר לשעה]*24))))","v":""}]
[null,{"$f":"IF(שעות_עבודה7[[#This Row],[תאריך]]=\"\",\"\",ROW(A184))","v":""},null,null,null,null,{"$f":"IF(שעות_עבודה7[[#This Row],[התחלה]]=\"\",\"\",\nIF(שעות_עבודה7[[#This Row],[התחלה]]>שעות_עבודה7[[#This Row],[סיום]],\"\",\nשעות_עבודה7[[#This Row],[סיום]]-שעות_עבודה7[[#This Row],[התחלה]]))","v":""},{"$f":"IF(שעות_עבודה7[[#This Row],[שעות]]=\"\",\"\",\nIF(SUMPRODUCT((שעות_עבודה7[[#This Row],[העבודה]]=תעריפים_וסיכום8[שמות העבודות])*שעות_עבודה7[[#This Row],[שעות]]*(תעריפים_וסיכום8[שכר לשעה]*24))=0,\"\",\nSUMPRODUCT((שעות_עבודה7[[#This Row],[העבודה]]=תעריפים_וסיכום8[שמות העבודות])*שעות_עבודה7[[#This Row],[שעות]]*(תעריפים_וסיכום8[שכר לשעה]*24))))","v":""}]
[null,{"$f":"IF(שעות_עבודה7[[#This Row],[תאריך]]=\"\",\"\",ROW(A185))","v":""},null,null,null,null,{"$f":"IF(שעות_עבודה7[[#This Row],[התחלה]]=\"\",\"\",\nIF(שעות_עבודה7[[#This Row],[התחלה]]>שעות_עבודה7[[#This Row],[סיום]],\"\",\nשעות_עבודה7[[#This Row],[סיום]]-שעות_עבודה7[[#This Row],[התחלה]]))","v":""},{"$f":"IF(שעות_עבודה7[[#This Row],[שעות]]=\"\",\"\",\nIF(SUMPRODUCT((שעות_עבודה7[[#This Row],[העבודה]]=תעריפים_וסיכום8[שמות העבודות])*שעות_עבודה7[[#This Row],[שעות]]*(תעריפים_וסיכום8[שכר לשעה]*24))=0,\"\",\nSUMPRODUCT((שעות_עבודה7[[#This Row],[העבודה]]=תעריפים_וסיכום8[שמות העבודות])*שעות_עבודה7[[#This Row],[שעות]]*(תעריפים_וסיכום8[שכר לשעה]*24))))","v":""}]
[null,{"$f":"IF(שעות_עבודה7[[#This Row],[תאריך]]=\"\",\"\",ROW(A186))","v":""},null,null,null,null,{"$f":"IF(שעות_עבודה7[[#This Row],[התחלה]]=\"\",\"\",\nIF(שעות_עבודה7[[#This Row],[התחלה]]>שעות_עבודה7[[#This Row],[סיום]],\"\",\nשעות_עבודה7[[#This Row],[סיום]]-שעות_עבודה7[[#This Row],[התחלה]]))","v":""},{"$f":"IF(שעות_עבודה7[[#This Row],[שעות]]=\"\",\"\",\nIF(SUMPRODUCT((שעות_עבודה7[[#This Row],[העבודה]]=תעריפים_וסיכום8[שמות העבודות])*שעות_עבודה7[[#This Row],[שעות]]*(תעריפים_וסיכום8[שכר לשעה]*24))=0,\"\",\nSUMPRODUCT((שעות_עבודה7[[#This Row],[העבודה]]=תעריפים_וסיכום8[שמות העבודות])*שעות_עבודה7[[#This Row],[שעות]]*(תעריפים_וסיכום8[שכר לשעה]*24))))","v":""}]
[null,{"$f":"IF(שעות_עבודה7[[#This Row],[תאריך]]=\"\",\"\",ROW(A187))","v":""},null,null,null,null,{"$f":"IF(שעות_עבודה7[[#This Row],[התחלה]]=\"\",\"\",\nIF(שעות_עבודה7[[#This Row],[התחלה]]>שעות_עבודה7[[#This Row],[סיום]],\"\",\nשעות_עבודה7[[#This Row],[סיום]]-שעות_עבודה7[[#This Row],[התחלה]]))","v":""},{"$f":"IF(שעות_עבודה7[[#This Row],[שעות]]=\"\",\"\",\nIF(SUMPRODUCT((שעות_עבודה7[[#This Row],[העבודה]]=תעריפים_וסיכום8[שמות העבודות])*שעות_עבודה7[[#This Row],[שעות]]*(תעריפים_וסיכום8[שכר לשעה]*24))=0,\"\",\nSUMPRODUCT((שעות_עבודה7[[#This Row],[העבודה]]=תעריפים_וסיכום8[שמות העבודות])*שעות_עבודה7[[#This Row],[שעות]]*(תעריפים_וסיכום8[שכר לשעה]*24))))","v":""}]
[null,{"$f":"IF(שעות_עבודה7[[#This Row],[תאריך]]=\"\",\"\",ROW(A188))","v":""},null,null,null,null,{"$f":"IF(שעות_עבודה7[[#This Row],[התחלה]]=\"\",\"\",\nIF(שעות_עבודה7[[#This Row],[התחלה]]>שעות_עבודה7[[#This Row],[סיום]],\"\",\nשעות_עבודה7[[#This Row],[סיום]]-שעות_עבודה7[[#This Row],[התחלה]]))","v":""},{"$f":"IF(שעות_עבודה7[[#This Row],[שעות]]=\"\",\"\",\nIF(SUMPRODUCT((שעות_עבודה7[[#This Row],[העבודה]]=תעריפים_וסיכום8[שמות העבודות])*שעות_עבודה7[[#This Row],[שעות]]*(תעריפים_וסיכום8[שכר לשעה]*24))=0,\"\",\nSUMPRODUCT((שעות_עבודה7[[#This Row],[העבודה]]=תעריפים_וסיכום8[שמות העבודות])*שעות_עבודה7[[#This Row],[שעות]]*(תעריפים_וסיכום8[שכר לשעה]*24))))","v":""}]
[null,{"$f":"IF(שעות_עבודה7[[#This Row],[תאריך]]=\"\",\"\",ROW(A189))","v":""},null,null,null,null,{"$f":"IF(שעות_עבודה7[[#This Row],[התחלה]]=\"\",\"\",\nIF(שעות_עבודה7[[#This Row],[התחלה]]>שעות_עבודה7[[#This Row],[סיום]],\"\",\nשעות_עבודה7[[#This Row],[סיום]]-שעות_עבודה7[[#This Row],[התחלה]]))","v":""},{"$f":"IF(שעות_עבודה7[[#This Row],[שעות]]=\"\",\"\",\nIF(SUMPRODUCT((שעות_עבודה7[[#This Row],[העבודה]]=תעריפים_וסיכום8[שמות העבודות])*שעות_עבודה7[[#This Row],[שעות]]*(תעריפים_וסיכום8[שכר לשעה]*24))=0,\"\",\nSUMPRODUCT((שעות_עבודה7[[#This Row],[העבודה]]=תעריפים_וסיכום8[שמות העבודות])*שעות_עבודה7[[#This Row],[שעות]]*(תעריפים_וסיכום8[שכר לשעה]*24))))","v":""}]
[null,{"$f":"IF(שעות_עבודה7[[#This Row],[תאריך]]=\"\",\"\",ROW(A190))","v":""},null,null,null,null,{"$f":"IF(שעות_עבודה7[[#This Row],[התחלה]]=\"\",\"\",\nIF(שעות_עבודה7[[#This Row],[התחלה]]>שעות_עבודה7[[#This Row],[סיום]],\"\",\nשעות_עבודה7[[#This Row],[סיום]]-שעות_עבודה7[[#This Row],[התחלה]]))","v":""},{"$f":"IF(שעות_עבודה7[[#This Row],[שעות]]=\"\",\"\",\nIF(SUMPRODUCT((שעות_עבודה7[[#This Row],[העבודה]]=תעריפים_וסיכום8[שמות העבודות])*שעות_עבודה7[[#This Row],[שעות]]*(תעריפים_וסיכום8[שכר לשעה]*24))=0,\"\",\nSUMPRODUCT((שעות_עבודה7[[#This Row],[העבודה]]=תעריפים_וסיכום8[שמות העבודות])*שעות_עבודה7[[#This Row],[שעות]]*(תעריפים_וסיכום8[שכר לשעה]*24))))","v":""}]
[null,{"$f":"IF(שעות_עבודה7[[#This Row],[תאריך]]=\"\",\"\",ROW(A191))","v":""},null,null,null,null,{"$f":"IF(שעות_עבודה7[[#This Row],[התחלה]]=\"\",\"\",\nIF(שעות_עבודה7[[#This Row],[התחלה]]>שעות_עבודה7[[#This Row],[סיום]],\"\",\nשעות_עבודה7[[#This Row],[סיום]]-שעות_עבודה7[[#This Row],[התחלה]]))","v":""},{"$f":"IF(שעות_עבודה7[[#This Row],[שעות]]=\"\",\"\",\nIF(SUMPRODUCT((שעות_עבודה7[[#This Row],[העבודה]]=תעריפים_וסיכום8[שמות העבודות])*שעות_עבודה7[[#This Row],[שעות]]*(תעריפים_וסיכום8[שכר לשעה]*24))=0,\"\",\nSUMPRODUCT((שעות_עבודה7[[#This Row],[העבודה]]=תעריפים_וסיכום8[שמות העבודות])*שעות_עבודה7[[#This Row],[שעות]]*(תעריפים_וסיכום8[שכר לשעה]*24))))","v":""}]
[null,{"$f":"IF(שעות_עבודה7[[#This Row],[תאריך]]=\"\",\"\",ROW(A192))","v":""},null,null,null,null,{"$f":"IF(שעות_עבודה7[[#This Row],[התחלה]]=\"\",\"\",\nIF(שעות_עבודה7[[#This Row],[התחלה]]>שעות_עבודה7[[#This Row],[סיום]],\"\",\nשעות_עבודה7[[#This Row],[סיום]]-שעות_עבודה7[[#This Row],[התחלה]]))","v":""},{"$f":"IF(שעות_עבודה7[[#This Row],[שעות]]=\"\",\"\",\nIF(SUMPRODUCT((שעות_עבודה7[[#This Row],[העבודה]]=תעריפים_וסיכום8[שמות העבודות])*שעות_עבודה7[[#This Row],[שעות]]*(תעריפים_וסיכום8[שכר לשעה]*24))=0,\"\",\nSUMPRODUCT((שעות_עבודה7[[#This Row],[העבודה]]=תעריפים_וסיכום8[שמות העבודות])*שעות_עבודה7[[#This Row],[שעות]]*(תעריפים_וסיכום8[שכר לשעה]*24))))","v":""}]
[null,{"$f":"IF(שעות_עבודה7[[#This Row],[תאריך]]=\"\",\"\",ROW(A193))","v":""},null,null,null,null,{"$f":"IF(שעות_עבודה7[[#This Row],[התחלה]]=\"\",\"\",\nIF(שעות_עבודה7[[#This Row],[התחלה]]>שעות_עבודה7[[#This Row],[סיום]],\"\",\nשעות_עבודה7[[#This Row],[סיום]]-שעות_עבודה7[[#This Row],[התחלה]]))","v":""},{"$f":"IF(שעות_עבודה7[[#This Row],[שעות]]=\"\",\"\",\nIF(SUMPRODUCT((שעות_עבודה7[[#This Row],[העבודה]]=תעריפים_וסיכום8[שמות העבודות])*שעות_עבודה7[[#This Row],[שעות]]*(תעריפים_וסיכום8[שכר לשעה]*24))=0,\"\",\nSUMPRODUCT((שעות_עבודה7[[#This Row],[העבודה]]=תעריפים_וסיכום8[שמות העבודות])*שעות_עבודה7[[#This Row],[שעות]]*(תעריפים_וסיכום8[שכר לשעה]*24))))","v":""}]
[null,{"$f":"IF(שעות_עבודה7[[#This Row],[תאריך]]=\"\",\"\",ROW(A194))","v":""},null,null,null,null,{"$f":"IF(שעות_עבודה7[[#This Row],[התחלה]]=\"\",\"\",\nIF(שעות_עבודה7[[#This Row],[התחלה]]>שעות_עבודה7[[#This Row],[סיום]],\"\",\nשעות_עבודה7[[#This Row],[סיום]]-שעות_עבודה7[[#This Row],[התחלה]]))","v":""},{"$f":"IF(שעות_עבודה7[[#This Row],[שעות]]=\"\",\"\",\nIF(SUMPRODUCT((שעות_עבודה7[[#This Row],[העבודה]]=תעריפים_וסיכום8[שמות העבודות])*שעות_עבודה7[[#This Row],[שעות]]*(תעריפים_וסיכום8[שכר לשעה]*24))=0,\"\",\nSUMPRODUCT((שעות_עבודה7[[#This Row],[העבודה]]=תעריפים_וסיכום8[שמות העבודות])*שעות_עבודה7[[#This Row],[שעות]]*(תעריפים_וסיכום8[שכר לשעה]*24))))","v":""}]
[null,{"$f":"IF(שעות_עבודה7[[#This Row],[תאריך]]=\"\",\"\",ROW(A195))","v":""},null,null,null,null,{"$f":"IF(שעות_עבודה7[[#This Row],[התחלה]]=\"\",\"\",\nIF(שעות_עבודה7[[#This Row],[התחלה]]>שעות_עבודה7[[#This Row],[סיום]],\"\",\nשעות_עבודה7[[#This Row],[סיום]]-שעות_עבודה7[[#This Row],[התחלה]]))","v":""},{"$f":"IF(שעות_עבודה7[[#This Row],[שעות]]=\"\",\"\",\nIF(SUMPRODUCT((שעות_עבודה7[[#This Row],[העבודה]]=תעריפים_וסיכום8[שמות העבודות])*שעות_עבודה7[[#This Row],[שעות]]*(תעריפים_וסיכום8[שכר לשעה]*24))=0,\"\",\nSUMPRODUCT((שעות_עבודה7[[#This Row],[העבודה]]=תעריפים_וסיכום8[שמות העבודות])*שעות_עבודה7[[#This Row],[שעות]]*(תעריפים_וסיכום8[שכר לשעה]*24))))","v":""}]
[null,{"$f":"IF(שעות_עבודה7[[#This Row],[תאריך]]=\"\",\"\",ROW(A196))","v":""},null,null,null,null,{"$f":"IF(שעות_עבודה7[[#This Row],[התחלה]]=\"\",\"\",\nIF(שעות_עבודה7[[#This Row],[התחלה]]>שעות_עבודה7[[#This Row],[סיום]],\"\",\nשעות_עבודה7[[#This Row],[סיום]]-שעות_עבודה7[[#This Row],[התחלה]]))","v":""},{"$f":"IF(שעות_עבודה7[[#This Row],[שעות]]=\"\",\"\",\nIF(SUMPRODUCT((שעות_עבודה7[[#This Row],[העבודה]]=תעריפים_וסיכום8[שמות העבודות])*שעות_עבודה7[[#This Row],[שעות]]*(תעריפים_וסיכום8[שכר לשעה]*24))=0,\"\",\nSUMPRODUCT((שעות_עבודה7[[#This Row],[העבודה]]=תעריפים_וסיכום8[שמות העבודות])*שעות_עבודה7[[#This Row],[שעות]]*(תעריפים_וסיכום8[שכר לשעה]*24))))","v":""}]
[null,{"$f":"IF(שעות_עבודה7[[#This Row],[תאריך]]=\"\",\"\",ROW(A197))","v":""},null,null,null,null,{"$f":"IF(שעות_עבודה7[[#This Row],[התחלה]]=\"\",\"\",\nIF(שעות_עבודה7[[#This Row],[התחלה]]>שעות_עבודה7[[#This Row],[סיום]],\"\",\nשעות_עבודה7[[#This Row],[סיום]]-שעות_עבודה7[[#This Row],[התחלה]]))","v":""},{"$f":"IF(שעות_עבודה7[[#This Row],[שעות]]=\"\",\"\",\nIF(SUMPRODUCT((שעות_עבודה7[[#This Row],[העבודה]]=תעריפים_וסיכום8[שמות העבודות])*שעות_עבודה7[[#This Row],[שעות]]*(תעריפים_וסיכום8[שכר לשעה]*24))=0,\"\",\nSUMPRODUCT((שעות_עבודה7[[#This Row],[העבודה]]=תעריפים_וסיכום8[שמות העבודות])*שעות_עבודה7[[#This Row],[שעות]]*(תעריפים_וסיכום8[שכר לשעה]*24))))","v":""}]
[null,{"$f":"IF(שעות_עבודה7[[#This Row],[תאריך]]=\"\",\"\",ROW(A198))","v":""},null,null,null,null,{"$f":"IF(שעות_עבודה7[[#This Row],[התחלה]]=\"\",\"\",\nIF(שעות_עבודה7[[#This Row],[התחלה]]>שעות_עבודה7[[#This Row],[סיום]],\"\",\nשעות_עבודה7[[#This Row],[סיום]]-שעות_עבודה7[[#This Row],[התחלה]]))","v":""},{"$f":"IF(שעות_עבודה7[[#This Row],[שעות]]=\"\",\"\",\nIF(SUMPRODUCT((שעות_עבודה7[[#This Row],[העבודה]]=תעריפים_וסיכום8[שמות העבודות])*שעות_עבודה7[[#This Row],[שעות]]*(תעריפים_וסיכום8[שכר לשעה]*24))=0,\"\",\nSUMPRODUCT((שעות_עבודה7[[#This Row],[העבודה]]=תעריפים_וסיכום8[שמות העבודות])*שעות_עבודה7[[#This Row],[שעות]]*(תעריפים_וסיכום8[שכר לשעה]*24))))","v":""}]
[null,{"$f":"IF(שעות_עבודה7[[#This Row],[תאריך]]=\"\",\"\",ROW(A199))","v":""},null,null,null,null,{"$f":"IF(שעות_עבודה7[[#This Row],[התחלה]]=\"\",\"\",\nIF(שעות_עבודה7[[#This Row],[התחלה]]>שעות_עבודה7[[#This Row],[סיום]],\"\",\nשעות_עבודה7[[#This Row],[סיום]]-שעות_עבודה7[[#This Row],[התחלה]]))","v":""},{"$f":"IF(שעות_עבודה7[[#This Row],[שעות]]=\"\",\"\",\nIF(SUMPRODUCT((שעות_עבודה7[[#This Row],[העבודה]]=תעריפים_וסיכום8[שמות העבודות])*שעות_עבודה7[[#This Row],[שעות]]*(תעריפים_וסיכום8[שכר לשעה]*24))=0,\"\",\nSUMPRODUCT((שעות_עבודה7[[#This Row],[העבודה]]=תעריפים_וסיכום8[שמות העבודות])*שעות_עבודה7[[#This Row],[שעות]]*(תעריפים_וסיכום8[שכר לשעה]*24))))","v":""}]
[null,{"$f":"IF(שעות_עבודה7[[#This Row],[תאריך]]=\"\",\"\",ROW(A200))","v":""},null,null,null,null,{"$f":"IF(שעות_עבודה7[[#This Row],[התחלה]]=\"\",\"\",\nIF(שעות_עבודה7[[#This Row],[התחלה]]>שעות_עבודה7[[#This Row],[סיום]],\"\",\nשעות_עבודה7[[#This Row],[סיום]]-שעות_עבודה7[[#This Row],[התחלה]]))","v":""},{"$f":"IF(שעות_עבודה7[[#This Row],[שעות]]=\"\",\"\",\nIF(SUMPRODUCT((שעות_עבודה7[[#This Row],[העבודה]]=תעריפים_וסיכום8[שמות העבודות])*שעות_עבודה7[[#This Row],[שעות]]*(תעריפים_וסיכום8[שכר לשעה]*24))=0,\"\",\nSUMPRODUCT((שעות_עבודה7[[#This Row],[העבודה]]=תעריפים_וסיכום8[שמות העבודות])*שעות_עבודה7[[#This Row],[שעות]]*(תעריפים_וסיכום8[שכר לשעה]*24))))","v":""}]

{"sheet":"סך שעות","index":1,"n_rows":83,"n_cols":8,"rows_kept":83,"cut":false,"hidden":false,"merged":[[81,0,81,1],[82,0,82,1],[0,0,1,2],[1,4,1,5],[1,7,1,8],[2,0,2,2],[2,4,3,5],[2,6,3,6],[2,7,3,8]]}
["חישוב שעות עבודה"]
[null,null,null,null,"סה\"כ שעות",null,"שכר לשעה","לתשלום"]
["רשום את סך השעות שעבדת",null,null,null,{"$f":"SUM(טבלה13[סך השעות])","v":0},null,40,{"$f":"G3*E3*24","v":0}]
["סך השעות","הערות","תאריך"]
[]
[]
[]
[]
[]
[]
[]
[]
[]
[]
[]
[]
[]
[]
[]
[]
[]
[]
[]
[]
[]
[]
[]
[]
[]
[]
[]
[]
[]
[]
[]
[]
[]
[]
[]
[]
[]
[]
[]
[]
[]
[]
[]
[]
[]
[]
[]
[]
[]
[]
[]
[]
[]
[]
[]
[]
[]
[]
[]
[]
[]
[]
[]
[]
[]
[]
[]
[]
[]
[]
[]
[]
[]
[]
[]
[]
[]
["נוצר ע\"י שמואל"]
["abc0533118127@gmail.com"]

{"sheet":"תשלומים","index":2,"n_rows":3,"n_cols":5,"rows_kept":3,"cut":false,"hidden":false,"merged":[[0,0,1,3]]}
["רישום ומעקב תשלומים"]
[]
["בתאריך","התקבל סך","מאת","עבור עבודה","הערות"]